Workbook

Sheet Combined (hidden)
A1: Combined member properties
B3: 1 | C3: 2 | D3: 3 | E3: 4 | F3: 5 | G3: 6 | H3: 7
B4: Section | C4: EI(s) (green) | D4: EI(s) (dry) | E4: EI(l) (green) | F4: EI(l) (dry) | G4: Bearing width
A5: 1 | B5: 70x45 | C5: 5.6595 | D5: 6.94575 | E5: 2.82975 | F5: 3.472875 | G5: 45 | H5: VSG/MSG8
A6: 2 | B6: 90x45 | C6: 12.0285 | D6: 14.76225 | E6: 6.01425 | F6: 7.381125 | G6: 45
A7: 3 | B7: 140x45 | C7: 45.276 | D7: 55.566 | E7: 22.638 | F7: 27.783 | G7: 45
A8: 4 | B8: 190x45 | C8: 113.1735 | D8: 138.89475 | E8: 56.58675 | F8: 69.447375 | G8: 45
A9: 5 | B9: 240x45 | C9: 228.096 | D9: 279.936 | E9: 114.048 | F9: 139.968 | G9: 45
A10: 6 | B10: 290x45 | C10: 402.4185 | D10: 493.87725 | E10: 201.20925 | F10: 246.938625 | G10: 45
A11: 7 | B11: 90x70 | C11: 18.711 | D11: 22.9635 | E11: 9.3555 | F11: 11.48175 | G11: 70
A12: 8 | B12: 140x70 | C12: 70.42933333 | D12: 86.436 | E12: 35.21466667 | F12: 43.218 | G12: 70
A13: 9 | B13: 190x70 | C13: 176.0476667 | D13: 216.0585 | E13: 88.02383333 | F13: 108.02925 | G13: 70
A14: 10 | B14: 240x70 | C14: 354.816 | D14: 435.456 | E14: 177.408 | F14: 217.728 | G14: 70
A15: 11 | B15: 290x70 | C15: 625.9843333 | D15: 768.2535 | E15: 312.9921667 | F15: 384.12675 | G15: 70
A16: 12 | B16: 2/90x45 | C16: 29.797875 | D16: 36.63225 | E16: 14.8989375 | F16: 18.316125 | G16: 90
A17: 13 | B17: 2/140x45 | C17: 112.161 | D17: 137.886 | E17: 56.0805 | F17: 68.943 | G17: 90
A18: 14 | B18: 2/190x45 | C18: 280.361625 | D18: 344.66475 | E18: 140.1808125 | F18: 172.332375 | G18: 90
A19: 15 | B19: 2/240x45 | C19: 565.056 | D19: 694.656 | E19: 282.528 | F19: 347.328 | G19: 90
A20: 16 | B20: 2/290x45 | C20: 996.900375 | D20: 1225.54725 | E20: 498.4501875 | F20: 612.773625 | G20: 90
A21: 17 | B21: 90x90 (or 2/45x90) | C21: 24.057 | D21: 29.5245 | E21: 12.0285 | F21: 14.76225 | G21: 90
A22: 18 | B22: 140x90 | C22: 90.552 | D22: 111.132 | E22: 45.276 | F22: 55.566 | G22: 90
A23: 19 | B23: 190x90 | C23: 226.347 | D23: 277.7895 | E23: 113.1735 | F23: 138.89475 | G23: 90
A24: 20 | B24: 240x90 | C24: 456.192 | D24: 559.872 | E24: 228.096 | F24: 279.936 | G24: 90
A25: 21 | B25: 290x90 | C25: 804.837 | D25: 987.7545 | E25: 402.4185 | F25: 493.87725 | G25: 90
A26: 22 | D26: 0 | F26: 0 | G26: 45 | H26: LVL
A27: 23 | B27: 90 x45 | D27: 88.154625 | F27: 58.76975 | G27: 45
A28: 24 | B28: 115x45 | D28: 135.421875 | F28: 90.28125 | G28: 45
A29: 25 | B29: 140 x45 | D29: 197.134125 | F29: 131.42275 | G29: 45
A30: 26 | B30: 190 x45 | D30: 321 | F30: 214 | G30: 45
A31: 27 | B31: 240 x45 | D31: 554.688 | F31: 369.792 | G31: 45
A32: 28 | B32: 300x45 | D32: 1083.375 | F32: 722.25 | G32: 45
A33: 29 | B33: 360x45 | D33: 1872.072 | F33: 1248.048 | G33: 45
A34: 30 | B34: 400x45 | D34: 2568 | F34: 1712 | G34: 45
A35: 31 | D35: 0 | F35: 0 | G35: 63
A36: 32 | D36: 0 | F36: 0 | G36: 63
A37: 33 | D37: 0 | F37: 0 | G37: 63
A38: 34 | B38: 170x63 | D38: 275.987775 | F38: 183.99185 | G38: 63
A39: 35 | B39: 200x63 | D39: 449.4 | F39: 299.6 | G39: 63
A40: 36 | B40: 240x63 | D40: 776.5632 | F40: 517.7088 | G40: 63
A41: 37 | B41: 300x63 | D41: 1516.725 | F41: 1011.15 | G41: 63
A42: 38 | B42: 360x63 | D42: 2620.9008 | F42: 1747.2672 | G42: 63
A43: 39 | B43: 400x63 | D43: 3595.2 | F43: 2396.8 | G43: 63
A44: 40 | B44: 460x63 | D44: 5467.8498 | F44: 3645.2332 | G44: 63
A45: 41 | B45: 610x63 | D45: 12750.65767 | F45: 8500.43845 | G45: 63
A46: 42 | B46: 150x90 | D46: 240.46875 | F46: 160.3125 | G46: 90
A47: 43 | B47: 200x90 | D47: 570 | F47: 380 | G47: 90
A48: 44 | B48: 240 x90 | D48: 984.96 | F48: 656.64 | G48: 90
A49: 45 | B49: 300x90 | D49: 1923.75 | F49: 1282.5 | G49: 90
A50: 46 | B50: 360x90 | D50: 3324.24 | F50: 2216.16 | G50: 90
A51: 47 | B51: 400x90 | D51: 4560 | F51: 3040 | G51: 90
A52: 48 | B52: 135x65 | D52: 106.61625 | F52: 71.0775 | G52: 65 | H52: Glulam
A53: 49 | B53: 180x65 | D53: 252.72 | F53: 168.48 | G53: 65
A54: 50 | B54: 225x65 | D54: 493.59375 | F54: 329.0625 | G54: 65
A55: 51 | B55: 270x65 | D55: 852.93 | F55: 568.62 | G55: 65
A56: 52 | B56: 315x65 | D56: 1354.42125 | F56: 902.9475 | G56: 65
A57: 53 | B57: 360x65 | D57: 2021.76 | F57: 1347.84 | G57: 65
A58: 54 | B58: 135x90 | D58: 147.6225 | F58: 98.415 | G58: 90
A59: 55 | B59: 180x90 | D59: 349.92 | F59: 233.28 | G59: 90
A60: 56 | B60: 225x90 | D60: 683.4375 | F60: 455.625 | G60: 90
A61: 57 | B61: 270x90 | D61: 1180.98 | F61: 787.32 | G61: 90
A62: 58 | B62: 315x90 | D62: 1875.3525 | F62: 1250.235 | G62: 90
A63: 59 | B63: 360 x90 | D63: 2799.36 | F63: 1866.24 | G63: 90
A64: 60 | B64: 405x90 | D64: 3985.8075 | F64: 2657.205 | G64: 90
A65: 61 | B65: 450x90 | D65: 5467.5 | F65: 3645 | G65: 90
A66: 62 | B66: 150UB14 | C66: 1400.7 | D66: 1400.7 | E66: 1400.7 | F66: 1400.7 | G66: 75 | H66: Steel
A67: 63 | B67: 150UB18 | C67: 1900.5 | D67: 1900.5 | E67: 1900.5 | F67: 1900.5 | G67: 75
A68: 64 | B68: 180UB16 | C68: 2226 | D68: 2226 | E68: 2226 | F68: 2226 | G68: 90
A69: 65 | B69: 180UB18 | C69: 2541 | D69: 2541 | E69: 2541 | F69: 2541 | G69: 90
A70: 66 | B70: 180UB22 | C70: 3213 | D70: 3213 | E70: 3213 | F70: 3213 | G70: 90
A71: 67 | B71: 200UB18 | C71: 3318 | D71: 3318 | E71: 3318 | F71: 3318 | G71: 133
A72: 68 | B72: 200UB22 | C72: 4410 | D72: 4410 | E72: 4410 | F72: 4410 | G72: 133
A73: 69 | B73: 200UB25 | C73: 4956 | D73: 4956 | E73: 4956 | F73: 4956 | G73: 133
A74: 70 | B74: 200UB30 | C74: 6069 | D74: 6069 | E74: 6069 | F74: 6069 | G74: 133
A75: 71 | B75: 250UB26 | C75: 7434 | D75: 7434 | E75: 7434 | F75: 7434 | G75: 146
A76: 72 | B76: 250UB31 | C76: 9324 | D76: 9324 | E76: 9324 | F76: 9324 | G76: 146
A77: 73 | B77: 250UB37 | C77: 11886 | D77: 11886 | E77: 11886 | F77: 11886 | G77: 146
A78: 74 | B78: 310UB32 | C78: 13272 | D78: 13272 | E78: 13272 | F78: 13272 | G78: 149
A79: 75 | B79: 310UB40 | C79: 17892 | D79: 17892 | E79: 17892 | F79: 17892 | G79: 165
A80: 76 | B80: 310UB46 | C80: 20895 | D80: 20895 | E80: 20895 | F80: 20895 | G80: 165
A81: 77 | B81: 360UB45 | C81: 25410 | D81: 25410 | E81: 25410 | F81: 25410 | G81: 171
A82: 78 | B82: 360UB51 | C82: 29820 | D82: 29820 | E82: 29820 | F82: 29820 | G82: 171
A83: 79 | B83: 360UB57 | C83: 33810 | D83: 33810 | E83: 33810 | F83: 33810 | G83: 171
A84: 80 | B84: 410UB54 | C84: 39060 | D84: 39060 | E84: 39060 | F84: 39060 | G84: 178
A85: 81 | B85: 410UB60 | C85: 45150 | D85: 45150 | E85: 45150 | F85: 45150 | G85: 178
A86: 82 | B86: 100PFC | C86: 394.8 | D86: 394.8 | E86: 394.8 | F86: 394.8 | G86: 50
A87: 83 | B87: 125PFC | C87: 890.4 | D87: 890.4 | E87: 890.4 | F87: 890.4 | G87: 65
A88: 84 | B88: 150PFC | C88: 1751.4 | D88: 1751.4 | E88: 1751.4 | F88: 1751.4 | G88: 75
A89: 85 | B89: 180PFC | C89: 2961 | D89: 2961 | E89: 2961 | F89: 2961 | G89: 75
A90: 86 | B90: 200PFC | C90: 4011 | D90: 4011 | E90: 4011 | F90: 4011 | G90: 75
A91: 87 | B91: 230PFC | C91: 5628 | D91: 5628 | E91: 5628 | F91: 5628 | G91: 75
A92: 88 | B92: 250PFC | C92: 9471 | D92: 9471 | E92: 9471 | F92: 9471 | G92: 90
A93: 89 | B93: 300PFC | C93: 15204 | D93: 15204 | E93: 15204 | F93: 15204 | G93: 90
A94: 90 | B94: 380PFC | C94: 31920 | D94: 31920 | E94: 31920 | F94: 31920 | G94: 100
A95: 91 | B95: FB15L | D95: 322.1516667 | F95: 291.9676667 | G95: 90 | H95: Flitch (Mitek)
A96: 92 | B96: FB20M | D96: 1115.060833 | F96: 1039.611833 | G96: 90
A97: 93 | B97: FB25L | D97: 1300.8 | F97: 1148.736 | G97: 90
A98: 94 | B98: FB25M | D98: 2277.7025 | F98: 2125.6385 | G98: 90
A99: 95 | B99: FB30M | D99: 4053.844167 | F99: 3785.565167 | G99: 90
A100: 96 | B100: 150PF6 | D100: 349.8060417 | F100: 304.0727083 | G100: 90 | H100: Flitch (Pryda)
A101: 97 | B101: 200PF6 | D101: 893.4539583 | F101: 779.1372917 | G101: 90
A102: 98 | B102: 200PF8 | D102: 1115.060833 | F102: 1000.744167 | G102: 90
A103: 99 | B103: 200PF10 | D103: 1336.667708 | F103: 1222.351042 | G103: 90
A104: 100 | B104: 250PF6 | D104: 1823.476875 | F104: 1593.076875 | G104: 90
A105: 101 | B105: 250PF8 | D105: 2277.7025 | F105: 2047.3025 | G105: 90
A106: 102 | B106: 250PF10 | D106: 2731.928125 | F106: 2501.528125 | G106: 90
A107: 103 | B107: 300PF6 | D107: 3243.624792 | F107: 2837.141458 | G107: 90
A108: 104 | B108: 300PF8 | D108: 4053.844167 | F108: 3647.360833 | G108: 90
A109: 105 | B109: 300PF10 | D109: 4864.063542 | F109: 4457.580208 | G109: 90

Sheet VSGMSG8 (hidden)
A1: VSG/MSG8 properties | D1: (k1 = 1.0) | F1: Note: I have offset all properties down 1 row to allow the Vlookup function to pick the correct size in the last column
A3: Sorted by width | K3: Used for face load (wind only)
A4: fM (green) | B4: fM (dry) | C4: fM x k8 | D4: EI(s) (green) | E4: EI(s) (dry) | F4: EI(l) (green) | G4: EI(l) (dry) | H4: Index | I4: Size | J4: k8 | K4: fM (dry) | L4: fM (dry) | M4: EI(s) (dry)
A5: 0 | B5: 0 | C5: 0 | D5: 0 | E5: 0 | F5: 0 | G5: 0 | H5: 0 | I5: 70x45 | J5: 1 | K5: 0.2646 | L5: 0.4116 | M5: 2.8704375
A6: 0.34398 | B6: 0.4116 | C6: =B6*J5 -> 0.4116 | D6: 5.6595 | E6: 6.94575 | F6: 2.82975 | G6: 3.472875 | H6: 1 | I6: 90x45 | J6: 1 | K6: 0.3402 | L6: 0.6804 | M6: 3.6905625
A7: 0.56862 | B7: 0.6804 | C7: 0.6804 | D7: 12.0285 | E7: 14.76225 | F7: 6.01425 | G7: 7.381125 | H7: 2 | I7: 140x45 | J7: 1 | K7: 0.5292 | L7: 1.6464 | M7: 5.740875
A8: 1.37592 | B8: 1.6464 | C8: 1.6464 | D8: 45.276 | E8: 55.566 | F8: 22.638 | G8: 27.783 | H8: 3 | I8: 190x45 | J8: 0.9719703704 | K8: 0.7182 | L8: 2.947402951 | M8: 7.7911875
A9: 2.53422 | B9: 3.0324 | C9: 2.947402951 | D9: 113.1735 | E9: 138.89475 | F9: 56.58675 | G9: 69.447375 | H9: 4 | I9: 240x45 | J9: 0.8596 | K9: 0.9072 | L9: 4.15908864 | M9: 9.8415
A10: 4.04352 | B10: 4.8384 | C10: 4.15908864 | D10: 228.096 | E10: 279.936 | F10: 114.048 | G10: 139.968 | H10: 5 | I10: 290x45 | J10: 0.7027851852 | K10: 1.0962 | L10: 4.964755662 | M10: 11.8918125
A11: 5.90382 | B11: 7.0644 | C11: 4.964755662 | D11: 402.4185 | E11: 493.87725 | F11: 201.20925 | G11: 246.938625 | H11: 6 | I11: X
A12: 0 | B12: 0 | C12: 0 | D12: 0 | E12: 0 | F12: 0 | G12: 0 | H12: 0 | I12: 90x70 | J12: 1 | K12: 0.8232 | L12: 1.0584 | M12: 17.23575
A13: 0.88452 | B13: 1.0584 | C13: =B13*J12 -> 1.0584 | D13: 18.711 | E13: 22.9635 | F13: 9.3555 | G13: 11.48175 | H13: 1 | I13: 140x70 | J13: 1 | K13: 1.280533333 | L13: 2.561066667 | M13: 26.81116667
A14: 2.14032 | B14: 2.561066667 | C14: =B14*J13 -> 2.561066667 | D14: 70.42933333 | E14: 86.436 | F14: 35.21466667 | G14: 43.218 | H14: 2 | I14: 190x70 | J14: 1 | K14: 1.737866667 | L14: 4.717066667 | M14: 36.38658333
A15: 3.94212 | B15: 4.717066667 | C15: =B15*J14 -> 4.717066667 | D15: 176.0476667 | E15: 216.0585 | F15: 88.02383333 | G15: 108.02925 | H15: 3 | I15: 240x70 | J15: 1.000404665 | K15: 2.1952 | L15: 7.529445669 | M15: 45.962
A16: 6.28992 | B16: 7.5264 | C16: =B16*J15 -> 7.529445669 | D16: 354.816 | E16: 435.456 | F16: 177.408 | G16: 217.728 | H16: 4 | I16: 290x70 | J16: 0.9771218659 | K16: 2.652533333 | L16: 10.98906667 | M16: 55.53741667
A17: 9.18372 | B17: 10.98906667 | C17: =B17*J16 -> 10.73765733 | D17: 625.9843333 | E17: 768.2535 | F17: 312.9921667 | G17: 384.12675 | H17: 5 | I17: X
A18: 0 | B18: 0 | C18: 0 | D18: 0 | E18: 0 | F18: 0 | G18: 0 | H18: 0 | I18: 2/90x45 | J18: 1 | K18: 0.775656 | L18: 1.551312 | M18: 9.1580625
A19: 1.2964536 | B19: 1.551312 | C19: =B19*J18 -> 1.551312 | D19: 29.797875 | E19: 36.63225 | F19: 14.8989375 | G19: 18.316125 | H19: 1 | I19: 2/140x45 | J19: 1 | K19: 1.206576 | L19: 3.753792 | M19: 14.245875
A20: 3.1370976 | B20: 3.753792 | C20: =B20*J19 -> 3.753792 | D20: 112.161 | E20: 137.886 | F20: 56.0805 | G20: 68.943 | H20: 2 | I20: 2/190x45 | J20: 1 | K20: 1.637496 | L20: 6.913872 | M20: 19.3336875
A21: 5.7780216 | B21: 6.913872 | C21: =B21*J20 -> 6.913872 | D21: 280.361625 | E21: 344.66475 | F21: 140.1808125 | G21: 172.332375 | H21: 3 | I21: 2/240x45 | J21: 1 | K21: 2.068416 | L21: 11.031552 | M21: 24.4215
A22: 9.2192256 | B22: 11.031552 | C22: =B22*J21 -> 11.031552 | D22: 565.056 | E22: 694.656 | F22: 282.528 | G22: 347.328 | H22: 4 | I22: 2/290x45 | J22: 0.95 | K22: 2.499336 | L22: 16.106832 | M22: 29.5093125
A23: 13.4607096 | B23: 16.106832 | C23: =B23*J22 -> 15.3014904 | D23: 996.900375 | E23: 1225.54725 | F23: 498.4501875 | G23: 612.773625 | H23: 5 | I23: X
A24: 0 | B24: 0 | C24: 0 | D24: 0 | E24: 0 | F24: 0 | G24: 0 | H24: 0 | I24: 90x90 (or 2/45x90) | J24: 1 | K24: 1.3608 | L24: 1.3608 | M24: 36.63225
A25: 1.13724 | B25: 1.3608 | C25: =B25*J24 -> 1.3608 | D25: 24.057 | E25: 29.5245 | F25: 12.0285 | G25: 14.76225 | H25: 1 | I25: 140x90 | J25: 1 | K25: 2.1168 | L25: 3.2928 | M25: 56.9835
A26: 2.75184 | B26: 3.2928 | C26: =B26*J25 -> 3.2928 | D26: 90.552 | E26: 111.132 | F26: 45.276 | G26: 55.566 | H26: 2 | I26: 190x90 | J26: 1 | K26: 2.8728 | L26: 6.0648 | M26: 77.33475
A27: 5.06844 | B27: 6.0648 | C27: =B27*J26 -> 6.0648 | D27: 226.347 | E27: 277.7895 | F27: 113.1735 | G27: 138.89475 | H27: 3 | I27: 240x90 | J27: 1 | K27: 3.6288 | L27: 9.6768 | M27: 97.686
A28: 8.08704 | B28: 9.6768 | C28: =B28*J27 -> 9.6768 | D28: 456.192 | E28: 559.872 | F28: 228.096 | G28: 279.936 | H28: 4 | I28: 290x90 | J28: 1 | K28: 4.3848 | L28: 14.1288 | M28: 118.03725
A29: 11.80764 | B29: 14.1288 | C29: =B29*J28 -> 14.1288 | D29: 804.837 | E29: 987.7545 | F29: 402.4185 | G29: 493.87725 | H29: 5 | I29: X
I30: 350x100
I31: 400x100
A33: 0.34398 | B33: 0.4116 | D33: 5.6595 | E33: 6.94575 | F33: 2.82975 | G33: 3.472875 | H33: 1 | I33: 70x45
A34: 0.56862 | B34: 0.6804 | D34: 12.0285 | E34: 14.76225 | F34: 6.01425 | G34: 7.381125 | H34: 2 | I34: 90x45
A35: 1.37592 | B35: 1.6464 | D35: 45.276 | E35: 55.566 | F35: 22.638 | G35: 27.783 | H35: 3 | I35: 140x45
A36: 2.53422 | B36: 3.0324 | D36: 113.1735 | E36: 138.89475 | F36: 56.58675 | G36: 69.447375 | H36: 4 | I36: 190x45
A37: 4.04352 | B37: 4.8384 | D37: 228.096 | E37: 279.936 | F37: 114.048 | G37: 139.968 | H37: 5 | I37: 240x45
A38: 5.90382 | B38: 7.0644 | D38: 402.4185 | E38: 493.87725 | F38: 201.20925 | G38: 246.938625 | H38: 6 | I38: 290x45
A39: 0.88452 | B39: 1.0584 | D39: 18.711 | E39: 22.9635 | F39: 9.3555 | G39: 11.48175 | H39: 7 | I39: 90x70
A40: 2.14032 | B40: 2.561066667 | D40: 70.42933333 | E40: 86.436 | F40: 35.21466667 | G40: 43.218 | H40: 8 | I40: 140x70
A41: 3.94212 | B41: 4.717066667 | D41: 176.0476667 | E41: 216.0585 | F41: 88.02383333 | G41: 108.02925 | H41: 9 | I41: 190x70
A42: 6.28992 | B42: 7.5264 | D42: 354.816 | E42: 435.456 | F42: 177.408 | G42: 217.728 | H42: 10 | I42: 240x70
A43: 9.18372 | B43: 10.98906667 | D43: 625.9843333 | E43: 768.2535 | F43: 312.9921667 | G43: 384.12675 | H43: 11 | I43: 290x70
A44: 1.2964536 | B44: 1.551312 | D44: 29.797875 | E44: 36.63225 | F44: 14.8989375 | G44: 18.316125 | H44: 12 | I44: 2/90x45
A45: 3.1370976 | B45: 3.753792 | D45: 112.161 | E45: 137.886 | F45: 56.0805 | G45: 68.943 | H45: 13 | I45: 2/140x45
A46: 5.7780216 | B46: 6.913872 | D46: 280.361625 | E46: 344.66475 | F46: 140.1808125 | G46: 172.332375 | H46: 14 | I46: 2/190x45
A47: 9.2192256 | B47: 11.031552 | D47: 565.056 | E47: 694.656 | F47: 282.528 | G47: 347.328 | H47: 15 | I47: 2/240x45
A48: 13.4607096 | B48: 16.106832 | D48: 996.900375 | E48: 1225.54725 | F48: 498.4501875 | G48: 612.773625 | H48: 16 | I48: 2/290x45
A49: 1.13724 | B49: 1.3608 | D49: 24.057 | E49: 29.5245 | F49: 12.0285 | G49: 14.76225 | H49: 17 | I49: 90x90 (or 2/45x90)
A50: 2.75184 | B50: 3.2928 | D50: 90.552 | E50: 111.132 | F50: 45.276 | G50: 55.566 | H50: 18 | I50: 140x90
A51: 5.06844 | B51: 6.0648 | D51: 226.347 | E51: 277.7895 | F51: 113.1735 | G51: 138.89475 | H51: 19 | I51: 190x90
A52: 8.08704 | B52: 9.6768 | D52: 456.192 | E52: 559.872 | F52: 228.096 | G52: 279.936 | H52: 20 | I52: 240x90
A53: 11.80764 | B53: 14.1288 | D53: 804.837 | E53: 987.7545 | F53: 402.4185 | G53: 493.87725 | H53: 21 | I53: 290x90

Sheet LVL (hidden)
A1: LVL section properties | F1: Note: I have offset all properties down 1 row to allow the Vlookup function to pick the correct size in the last column
E2: Data from: | F2: Nelson Pine | H2: CHH
A3: Sorted by width | H3: Used for face load (wind only)
A4: fM (dry) | B4: fM x k8 | C4: EI(s) | D4: EI(l) | E4: Index | F4: Size | G4: k8 | H4: fM (dry) | I4: fM (dry) | J4: EI(s) (dry)
A5: 0 | B5: 0 | C5: 0 | D5: 0 | E5: 0
A6: 0 | B6: 0 | C6: 0 | D6: 0 | E6: 1 | F6: 90 x45 | G6: 1 | H6: 1.038825 | I6: 2.07765 | J6: 7.5178125
A7: 2.07765 | B7: =A7*G6 -> 2.07765 | C7: 88.154625 | D7: 58.76975 | E7: 2 | F7: 115x45 | G7: 1 | H7: 1.3273875 | I7: 3.285688237 | J7: 9.60609375
A8: 3.285688237 | B8: 3.285688237 | C8: 135.421875 | D8: 90.28125 | E8: 3 | F8: 140 x45 | G8: 0.9945185185 | H8: 1.61595 | I8: 4.686329007 | J8: 11.694375
A9: 4.712158617 | B9: 4.686329007 | C9: 197.134125 | D9: 131.42275 | E9: 4 | F9: 190 x45 | G9: 0.9551851852 | H9: 2.193075 | I9: 7.877894129 | J9: 15.8709375
A10: 8.247504517 | B10: 7.877894129 | C10: 321 | D10: 214 | E10: 5 | F10: 240 x45 | G10: 0.8596 | H10: 2.7702 | I10: 10.87904628 | J10: 20.0475
A11: 12.6559403 | B11: 10.87904628 | C11: 554.688 | D11: 369.792 | E11: 6 | F11: 300x45 | G11: 0.67 | H11: 3.46275 | I11: 12.7645431 | J11: 25.059375
A12: 19.05155687 | B12: 12.7645431 | C12: 1083.375 | D12: 722.25 | E12: 7 | F12: 360x45 | G12: 0.4932 | H12: 4.1553 | I12: 13.12480209 | J12: 30.07125
A13: 26.61152086 | B13: 13.12480209 | C13: 1872.072 | D13: 1248.048 | E13: 8 | F13: 400x45 | G13: 0.4203703704 | H13: 4.617 | I13: 13.56985706 | J13: 33.4125
A14: 32.28071724 | B14: 13.56985706 | C14: 2568 | D14: 1712 | E14: 9 | F14: X
A15: 0 | B15: 0 | C15: 0 | D15: 0 | E15: 0
A16: 0 | B16: 0 | C16: 0 | D16: 0 | E16: 1
A17: 0 | B17: 0 | C17: 0 | D17: 0 | E17: 2
A18: 0 | B18: 0 | C18: 0 | D18: 0 | E18: 3 | F18: 170x63 | G18: 1 | H18: 3.845961 | I18: 9.416903502 | J18: 38.9656575
A19: 9.416903502 | B19: =A19*G18 -> 9.416903502 | C19: 275.987775 | D19: 183.99185 | E19: 4 | F19: 200x63 | G19: 1 | H19: 4.52466 | I19: 12.68478847 | J19: 45.84195
A20: 12.68478847 | B20: 12.68478847 | C20: 449.4 | D20: 299.6 | E20: 5 | F20: 240x63 | G20: 0.9934402332 | H20: 5.429592 | I20: 17.6020884 | J20: 55.01034
A21: 17.71831642 | B21: 17.6020884 | C21: 776.5632 | D21: 517.7088 | E21: 6 | F21: 300x63 | G21: 0.9257434402 | H21: 6.78699 | I21: 24.69159532 | J21: 68.762925
A22: 26.67217962 | B22: 24.69159532 | C22: 1516.725 | D22: 1011.15 | E22: 7 | F22: 360x63 | G22: 0.8086005831 | H22: 8.144388 | I22: 30.1253278 | J22: 82.51551
A23: 37.25612921 | B23: 30.1253278 | C23: 2620.9008 | D23: 1747.2672 | E23: 8 | F23: 400x63 | G23: 0.7168567109 | H23: 9.04932 | I23: 32.3969083 | J23: 91.6839
A24: 45.19300413 | B24: 32.3969083 | C24: 3595.2 | D24: 2396.8 | E24: 9 | F24: 460x63 | G24: 0.579500054 | H24: 10.406718 | I24: 33.83637531 | J24: 105.436485
A25: 58.38890795 | B25: 33.83637531 | C25: 5467.8498 | D25: 3645.2332 | E25: 10 | F25: 610x63 | G25: 0.407536983 | H25: 13.800213 | I25: 39.91828375 | J25: 139.8179475
A26: 97.95008896 | B26: 39.91828375 | C26: 12750.65767 | D26: 8500.43845 | E26: 11 | F26: X
A27: 0 | B27: 0 | C27: 0 | D27: 0 | E27: 0 | F27: 150x90 | G27: 1 | H27: 6.1965 | I27: 9.626016128 | J27: 86.56875
A28: 9.626016128 | B28: 9.626016128 | C28: 240.46875 | D28: 160.3125 | E28: 1 | F28: 200x90 | G28: 1 | H28: 8.262 | I28: 16.37131228 | J28: 115.425
A29: 16.37131228 | B29: 16.37131228 | C29: 570 | D29: 380 | E29: 2 | F29: 240 x90 | G29: 1 | H29: 9.9144 | I29: 22.92197703 | J29: 138.51
A30: 22.92197703 | B30: 22.92197703 | C30: 984.96 | D30: 656.64 | E30: 3 | F30: 300x90 | G30: 1 | H30: 12.393 | I30: 34.60572537 | J30: 173.1375
A31: 34.60572537 | B31: 34.60572537 | C31: 1923.75 | D31: 1282.5 | E31: 4 | F31: 360x90 | G31: 0.9852 | H31: 14.8716 | I31: 48.45253871 | J31: 207.765
A32: 48.45253871 | B32: 48.45253871 | C32: 3324.24 | D32: 2216.16 | E32: 5 | F32: 400x90 | G32: 0.9551851852 | H32: 16.524 | I32: 58.85520337 | J32: 230.85
A33: 58.85520337 | B33: 58.85520337 | C33: 4560 | D33: 3040 | E33: 6 | F33: X

Sheet Glulam (hidden)
A1: Glulam (GL8) | E1: Note: I have offset all properties down 1 row to allow the Vlookup function to pick the correct size in the last column
A3: Sorted by width | F3: Used for face load (wind only)
A4: fM (dry) | B4: EI(s) | C4: EI(l) | D4: Index | E4: Size | F4: fM (dry) | G4: fM (dry) | H4: EI(s) (dry)
A5: 0 | B5: 0 | C5: 0 | D5: 0 | E5: 135x65 | F5: 1.387152 | G5: 2.40084 | H5: 24.71625
A6: 2.40084 | B6: 106.61625 | C6: 71.0775 | D6: 1 | E6: 180x65 | F6: 1.9111872 | G6: 4.26816 | H6: 32.955
A7: 4.26816 | B7: 252.72 | C7: 168.48 | D7: 2 | E7: 225x65 | F7: 2.427516 | G7: 6.669 | H7: 41.19375
A8: 6.669 | B8: 493.59375 | C8: 329.0625 | D8: 3 | E8: 270x65 | F8: 2.9592576 | G8: 9.60336 | H8: 49.4325
A9: 9.60336 | B9: 852.93 | C9: 568.62 | D9: 4 | E9: 315x65 | F9: 3.506412 | G9: 12.96516881 | H9: 57.67125
A10: 12.83551712 | B10: 1354.42125 | C10: 902.9475 | D10: 5 | E10: 360x65 | F10: 4.0381536 | G10: 18.87914256 | H10: 65.91
A11: 18.31276829 | B11: 2021.76 | C11: 1347.84 | D11: 6 | E11: X
A12: 0 | B12: 0 | C12: 0 | D12: 0 | E12: 135x90 | F12: 2.659392 | G12: 3.32424 | H12: 65.61
A13: 3.32424 | B13: 147.6225 | C13: 98.415 | D13: 1 | E13: 180x90 | F13: 3.6640512 | G13: 5.90976 | H13: 87.48
A14: 5.90976 | B14: 349.92 | C14: 233.28 | D14: 2 | E14: 225x90 | F14: 4.653936 | G14: 9.234 | H14: 109.35
A15: 9.234 | B15: 683.4375 | C15: 455.625 | D15: 3 | E15: 270x90 | F15: 5.6733696 | G15: 13.29696 | H15: 131.22
A16: 13.29696 | B16: 1180.98 | C16: 787.32 | D16: 4 | E16: 315x90 | F16: 6.722352 | G16: 17.9517722 | H16: 153.09
A17: 17.9517722 | B17: 1875.3525 | C17: 1250.235 | D17: 5 | E17: 360 x90 | F17: 7.7417856 | G17: 26.14035124 | H17: 174.96
A18: 25.3561407 | B18: 2799.36 | C18: 1866.24 | D18: 6 | E18: 405x90 | F18: 8.7759936 | G18: 32.4394881 | H18: 196.83
A19: 30.8175137 | B19: 3985.8075 | C19: 2657.205 | D19: 7 | E19: 450x90 | F19: 9.824976 | G19: 39.35024789 | H19: 218.7
A20: 36.59573054 | B20: 5467.5 | C20: 3645 | D20: 8 | E20: X
B22: Indicates values different from "Timber sections" spreadsheet

Sheet Steel (hidden)
A1: Hot rolled steel properties | F1: fy changed see col C | J1: fy | K1: 320 | M1: Note: I have offset all properties (columns A - F) down 1 row to allow the Vlookup function to pick the correct size in the last column
C2: Others | D2: Lintel up | E2: Lintel dn | K2: 300 | M2: Lintels up | O2: On the assumption partially restrained at ends, and unrestrained between | W2: Others | Y2: Lintels down | AC2: Face loading parameters
A3: Iex | B3: Zex | C3: fM | D3: faaM | E3: faaM | F3: EI | G3: Index | H3: Size | J3: f | K3: 0.9 | L3: kt | M3: Iw | N3: J | O3: alpha m | P3: Iy | Q3: Mo | R3: alpha s | S3: am x as | U3: Mo | V3: alpha s | W3: am x as | Y3: Mo | Z3: alpha s | AA3: am x as | AC3: Iey | AD3: Zey | AE3: fMy | AF3: fMx | AG3: faaMx | AH3: EIy
A4: 0 | B4: 0 | C4: 0 | D4: 0 | E4: 0 | F4: 0 | G4: 1 | H4: 150UB14 | L4: =2*LEFT(H4,3)/(Span*1000)+1 -> 1.1 | M4: 2.53 | N4: 28.2 | O4: =1.7/(0.75^2*2+1)^0.5 -> 1.166190379 | P4: 0.496 | Q4: =((PI()^2*205*P4/1000000)/Span^2*(80*N4/1000000000+(PI()^2*205*M4/1000000000/Span^2)))^0.5*1000000 -> 17.74750974 | R4: =0.6*(((C5/K$3/Q4)^2+3)^0.5-(C5/K$3/Q4)) -> 0.4123264305 | S4: =MIN(O4*R4,1) -> 0.4808511162 | U4: =((PI()^2*205*$P4/1000000)/(1.2)^2*(80*$N4/1000000000+(PI()^2*205*$M4/1000000000/(1.2)^2)))^0.5*1000000 -> 63.63605929 | V4: =0.6*((($C5/$K$3/U4)^2+3)^0.5-($C5/$K$3/U4)) -> 0.776090392 | W4: =MIN($O4*V4,1) -> 0.9050691483 | Y4: =((PI()^2*205*$P4/1000000)/(Span*1.2)^2*(80*$N4/1000000000+(PI()^2*205*$M4/1000000000/(Span*1.2)^2)))^0.5*1000000 -> 14.32741765 | Z4: =0.6*((($C5/$K$3/Y4)^2+3)^0.5-($C5/$K$3/Y4)) -> 0.3501972031 | AA4: =MIN($O4*Z4,1) -> 0.4083966091 | AC4: 0.495 | AD4: 20.8 | AE4: =$K$3*$K$1*AD4/1000 -> 5.9904 | AF4: 18.25220971 | AG4: 24.23632778 | AH4: =AC4*210 -> 103.95
A5: 6.67 | B5: 102 | C5: =$K$3*$K$1*B5/1000 -> 29.376 | D5: =C5*S4 -> 14.12548239 | E5: =C5*AA4 -> 11.99705879 | F5: =A5*210 -> 1400.7 | G5: 2 | H5: 150UB18 | K5: =Span&" m" -> 3 m | L5: 1.1 | M5: 3.56 | N5: 60.4 | O5: =1.7/(0.75^2*2+1)^0.5 -> 1.166190379 | P5: 0.672 | Q5: 29.16981419 | R5: 0.4787403765 | S5: =MIN(O5*R5,1) -> 0.5583024211 | U5: =((PI()^2*205*$P5/1000000)/(1.2)^2*(80*$N5/1000000000+(PI()^2*205*$M5/1000000000/(1.2)^2)))^0.5*1000000 -> 96.35952284 | V5: =0.6*((($C6/$K$3/U5)^2+3)^0.5-($C6/$K$3/U5)) -> 0.8044863216 | W5: =MIN($O5*V5,1) -> 0.9381842083 | Y5: 23.77462325 | Z5: =0.6*((($C6/$K$3/Y5)^2+3)^0.5-($C6/$K$3/Y5)) -> 0.4159554857 | AA5: =MIN($O5*Z5,1) -> 0.4850832855 | AC5: 0.672 | AD5: 28.2 | AE5: 8.1216 | AF5: 26.86465408 | AG5: 33.81312722 | AH5: =AC5*210 -> 141.12
A6: 9.05 | B6: 135 | C6: 38.88 | D6: =C6*S5 -> 21.70679813 | E6: =C6*AA5 -> 18.86003814 | F6: 1900.5 | G6: 3 | H6: 180UB16 | L6: 1.12 | M6: 5.88 | N6: 31.5 | O6: 1.166190379 | P6: 0.853 | Q6: 27.14259341 | R6: 0.4496282884 | S6: 0.5243521841 | U6: 113.6745697 | V6: 0.8319625259 | W6: 0.9702266934 | Y6: 21.39683403 | Z6: 0.3782940329 | AA6: 0.4411628616 | AC6: 0.853 | AD6: 29.4 | AE6: 8.4672 | AF6: 27.15191809 | AG6: 35.58014616 | AH6: 179.13
A7: 10.6 | B7: 138 | C7: 39.744 | D7: 20.8398532 | E7: 17.53357677 | F7: 2226 | G7: 4 | H7: 180UB18 | L7: 1.12 | M7: 6.8 | N7: 45 | O7: 1.166190379 | P7: 0.975 | Q7: 33.52827178 | R7: 0.4750967755 | S7: 0.5540532887 | U7: 134.2400654 | V7: 0.838661074 | W7: 0.9780384758 | Y7: 26.63751618 | Z7: 0.4047881581 | AA7: 0.4720600555 | AC7: 0.975 | AD7: 33.7 | AE7: 9.7056 | AF7: 31.95029743 | AG7: 41.00920362 | AH7: 204.75
A8: 12.1 | B8: 157 | C8: 45.216 | D8: 25.0520735 | E8: 21.34466747 | F8: 2541 | G8: 5 | H8: 180UB22 | I8: Flange width < 90mm | L8: 1.12 | M8: 8.71 | N8: 82 | O8: 1.166190379 | P8: 1.22 | Q8: 48.33438372 | R8: 0.5481544361 | S8: 0.6392524296 | U8: 179.5068026 | V8: 0.8652615915 | W8: 1 | Y8: 38.83833599 | Z8: 0.480035561 | AA8: 0.5598128528 | AC8: 1.22 | AD8: 42.3 | AE8: 12.1824 | AF8: 40.08605409 | AG8: 48.92330441 | AH8: 256.2
A9: 15.3 | B9: 179 | C9: 51.552 | D9: 32.95474125 | E9: 28.85947219 | F9: 3213 | G9: 6 | H9: 200UB18 | L9: 1.133333333 | M9: 10.4 | N9: 38.6 | O9: 1.166190379 | P9: 1.14 | Q9: 37.2904697 | R9: 0.4656720475 | S9: 0.5430622616 | U9: 168.3800836 | V9: 0.8540552846 | W9: 0.995991056 | Y9: 28.95752464 | Z9: 0.3890498092 | AA9: 0.4537061444 | AC9: 1.14 | AD9: 35.7 | AE9: 10.2816 | AF9: 36.8674124 | AG9: 47.92452964 | AH9: 239.4
A10: 15.8 | B10: 180 | C10: 51.84 | D10: 28.15234764 | E10: 23.52012652 | F10: 3318 | G10: 7 | H10: 200UB22 | L10: 1.133333333 | M10: 26 | N10: 45 | O10: 1.166190379 | P10: 2.75 | Q10: 76.41398604 | R10: 0.6150944173 | S10: 0.7173171916 | U10: 393.7796019 | V10: 0.9344266043 | W10: 1 | Y10: 57.34260956 | Z10: 0.5274523155 | AA10: 0.6151098157 | AC10: 2.75 | AD10: 63.4 | AE10: 18.2592 | AF10: 57.55085314 | AG10: 65.376 | AH10: 577.5
A11: 21 | B11: 227 | C11: 65.376 | D11: 46.89532872 | E11: 40.21341931 | F11: 4410 | G11: 8 | H11: 200UB25 | L11: 1.133333333 | M11: 29.5 | N11: 61 | O11: 1.166190379 | P11: 3.1 | Q11: 89.5691599 | R11: 0.6253167852 | S11: 0.7292384187 | U11: 449.2131412 | V11: 0.9351742171 | W11: 1 | Y11: 67.75381699 | Z11: 0.5407305458 | AA11: 0.6305947602 | AC11: 3.06 | AD11: 70.9 | AE11: 20.4192 | AF11: 65.60856301 | AG11: 74.016 | AH11: 642.6
A12: 23.6 | B12: 257 | C12: 74.016 | D12: 53.9753108 | E12: 46.67410177 | F12: 4956 | G12: 9 | H12: 200UB30 | I12: Flange width < 140mm | L12: 1.133333333 | M12: 37.3 | N12: 102 | O12: 1.166190379 | P12: 3.84 | Q12: 119.5112584 | R12: =0.6*(((C13/K$3/Q12)^2+3)^0.5-(C13/K$3/Q12)) -> 0.6516458636 | S12: 0.7599431367 | U12: 571.6547373 | V12: =0.6*((($C13/$K$3/U12)^2+3)^0.5-($C13/$K$3/U12)) -> 0.9394077426 | W12: 1 | Y12: 91.55715945 | Z12: =0.6*((($C13/$K$3/Y12)^2+3)^0.5-($C13/$K$3/Y12)) -> 0.5727816297 | AA12: 0.6679724258 | AC12: 3.86 | AD12: 88.4 | AE12: =$K$3*$K$1*AD12/1000 -> 25.4592 | AF12: 81.58534718 | AG12: 90.144 | AH12: 810.6
A13: 28.9 | B13: 313 | C13: =$K$3*$K$1*B13/1000 -> 90.144 | D13: =C13*S12 -> 68.50431411 | E13: =C13*AA12 -> 60.21370635 | F13: =A13*210 -> 6069 | G13: 10 | H13: 250UB26 | I13: Extra section added | L13: 1.166666667 | M13: 36.7 | N13: 67.4 | O13: 1.166190379 | P13: 2.55 | Q13: 88.43449097 | R13: 0.5907276073 | S13: 0.6889008522 | U13: 451.7416947 | V13: 0.925134934 | W13: 1 | Y13: 66.53888921 | Z13: 0.5028794723 | AA13: 0.5864532024 | AC13: 2.55 | AD13: 63.6 | AE13: =$K$3*$K$1*AD13/1000 -> 18.3168 | AF13: 70.29882305 | AG13: 82.08 | AH13: 535.5
A14: 35.4 | B14: 285 | C14: =$K$3*$K$1*B14/1000 -> 82.08 | D14: 56.54498195 | E14: =C14*AA13 -> 48.13607885 | F14: =A14*210 -> 7434 | G14: 11 | H14: 250UB31 | L14: =2*LEFT(H14,3)/(Span*1000)+1 -> 1.166666667 | M14: 66.2 | N14: 87.3 | O14: 1.166190379 | P14: 4.49 | Q14: 148.5648403 | R14: 0.6502556899 | S14: 0.7583219295 | U14: 794.2637623 | V14: 0.9490020925 | W14: 1 | Y14: 110.1812562 | Z14: 0.5613236543 | AA14: 0.6546102452 | AC14: 4.47 | AD14: 94.2 | AE14: =$K$3*$K$1*AD14/1000 -> 27.1296 | AF14: 103.1889545 | AG14: 112.608 | AH14: 938.7
A15: 44.4 | B15: 391 | C15: 112.608 | D15: 85.39311584 | E15: =C15*AA14 -> 73.71435049 | F15: 9324 | G15: 12 | H15: 250UB37 | L15: 1.166666667 | M15: 85.8 | N15: 155 | O15: 1.166190379 | P15: 5.71 | Q15: 201.6853821 | R15: 0.6754694849 | S15: 0.7877260145 | U15: 1032.791974 | V15: 0.9529710615 | W15: 1 | Y15: 151.6381057 | Z15: 0.5930148762 | AA15: 0.6915682432 | AC15: 5.66 | AD15: 119 | AE15: 34.272 | AF15: 130.3943311 | AG15: 99.12736232 | AH15: 1188.6
A16: 56.6 | B16: 485 | C16: 139.68 | D16: 110.0295697 | E16: 99.12736232 | F16: 11886 | G16: 13 | H16: 310UB32 | L16: 1.206666667 | M16: 92.9 | N16: 86.5 | O16: 1.166190379 | P16: 4.42 | Q16: 166.2169285 | R16: 0.6314553706 | S16: 0.736397178 | U16: 923.9051702 | V16: 0.9467032013 | W16: 1 | Y16: 121.5843764 | Z16: 0.5368413164 | AA16: 0.6260591782 | AC16: 4.42 | AD16: 91.8 | AE16: 26.4384 | AF16: 121.6576866 | AG16: 69.66654309 | AH16: 928.2
A17: 63.2 | B17: 467 | C17: 134.496 | D17: 99.04247485 | E17: 69.66654309 | F17: 13272 | G17: 14 | H17: 310UB40 | L17: 1.206666667 | M17: 164 | N17: 147 | O17: 1.166190379 | P17: 7.63 | Q17: =((PI()^2*205*P17/1000000)/Span^2*(80*N17/1000000000+(PI()^2*205*M17/1000000000/Span^2)))^0.5*1000000 -> 288.8105514 | R17: 0.705390541 | S17: 0.8226196623 | U17: 1611.328169 | V17: 0.9721719265 | W17: 1 | Y17: 210.9638237 | Z17: 0.6177957222 | AA17: 0.7204674274 | AC17: 7.65 | AD17: 142 | AE17: 40.896 | AF17: 173.1188147 | AG17: 178.848 | AH17: 1606.5
A18: 85.2 | B18: 621 | C18: 178.848 | D18: 147.1238814 | E18: =C18*AA17 -> 128.8541585 | F18: 17892 | G18: 15 | H18: 310UB46 | L18: 1.206666667 | M18: 196 | N18: 223 | O18: 1.166190379 | P18: 8.97 | Q18: 353.3093776 | R18: 0.7342324211 | S18: 0.8562547855 | U18: 1922.407794 | V18: 0.9737366947 | W18: 1 | Y18: 260.4457654 | Z18: 0.6534365572 | AA18: 0.7620314263 | AC18: 9.01 | AD18: 166 | AE18: 47.808 | AF18: 203.1925447 | AG18: 208.224 | AH18: 1892.1
A19: 99.5 | B19: 723 | C19: =$K$3*$K$2*B19/1000 -> 195.21 | D19: 167.1494967 | E19: 148.7561547 | F19: =A19*210 -> 20895 | G19: 16 | H19: 360UB45 | L19: 1.24 | M19: 238 | N19: 157 | O19: 1.166190379 | P19: 8.12 | Q19: 347.2695672 | R19: 0.7007722675 | S19: 0.8172338762 | U19: 1989.592545 | V19: 0.9727447882 | W19: 1 | Y19: 251.0435913 | Z19: 0.6094838626 | AA19: 0.7107742167 | AC19: 8.1 | AD19: 146 | AE19: 42.048 | AF19: 211.6630233 | AG19: 218.88 | AH19: 1701
A20: 121 | B20: 760 | C20: 218.88 | D20: 178.8761508 | E20: 155.5742606 | F20: 25410 | G20: 17 | H20: 360UB51 | L20: 1.24 | M20: 286 | N20: 236 | O20: 1.166190379 | P20: 9.68 | Q20: 425.4412585 | R20: 0.7274029024 | S20: 0.8482902664 | U20: 2392.113139 | V20: 0.9740640413 | W20: 1 | Y20: 309.8482234 | Z20: 0.6421047083 | AA20: 0.7488163332 | AC20: 9.6 | AD20: 173 | AE20: =$K$3*$K$2*AD20/1000 -> 46.71 | AF20: 238.4236259 | AG20: 241.65 | AH20: 2016
A21: 142 | B21: 895 | C21: =$K$3*$K$2*B21/1000 -> 241.65 | D21: 204.9893429 | E21: 180.9514669 | F21: 29820 | G21: 18 | H21: 360UB57 | L21: 1.24 | M21: 331 | N21: 331 | O21: 1.166190379 | P21: 11.1 | Q21: 501.7576126 | R21: 0.7382554946 | S21: 0.860946455 | U21: 2768.797964 | V21: 0.9756424173 | W21: 1 | Y21: 368.0127715 | Z21: 0.6566650102 | AA21: 0.7657964171 | AC21: 11 | AD21: 198 | AE21: =$K$3*$K$2*AD21/1000 -> 53.46 | AF21: 270.9366526 | AG21: 272.7 | AH21: 2310
A22: 161 | B22: 1010 | C22: =$K$3*$K$2*B22/1000 -> 272.7 | D22: 234.7800983 | E22: 208.832683 | F22: 33810 | G22: 19 | H22: 410UB54 | L22: 1.273333333 | M22: 390 | N22: 227 | O22: 1.166190379 | P22: 10.2 | Q22: 492.6293267 | R22: 0.7101452541 | S22: 0.828164563 | U22: 2848.414672 | V22: 0.9755857283 | W22: 1 | Y22: 354.7829232 | Z22: 0.6190271138 | AA22: 0.7219034645 | AC22: 10.3 | AD22: 179 | AE22: =$K$3*$K$1*AD22/1000 -> 51.552 | AF22: 292.2206714 | AG22: 299.52 | AH22: 2163
A23: 186 | B23: 1040 | C23: =$K$3*$K$1*B23/1000 -> 299.52 | D23: 248.0518499 | E23: 216.2245257 | F23: 39060 | G23: 20 | H23: 410UB60 | I23: Flange width < 190mm | L23: 1.273333333 | M23: 464 | N23: 329 | O23: 1.166190379 | P23: 12 | Q23: 593.6341621 | R23: 0.7392612763 | S23: 0.8621193879 | U23: 3381.699302 | V23: 0.977818069 | W23: 1 | Y23: 430.1313706 | Z23: 0.6543977176 | AA23: 0.7631523223 | AC23: 12.1 | AD23: 209 | AE23: =$K$3*$K$2*AD23/1000 -> 56.43 | AF23: 320.460692 | AG23: 321.3 | AH23: 2541
A24: 215 | B24: 1190 | C24: =$K$3*$K$2*B24/1000 -> 321.3 | D24: 276.9989593 | E24: 245.2008412 | F24: 45150 | G24: 21 | H24: X
A26: 0 | B26: 0 | C26: 0 | D26: =C26*S25 -> 0 | E26: 0 | F26: 0 | G26: 1 | H26: 100PFC | L26: =2*LEFT(H26,3)/(Span*1000)+1 -> 1.066666667 | M26: 0.424 | N26: 13.2 | O26: 1.166190379 | P26: 0.267 | Q26: =((PI()^2*205*P26/1000000)/Span^2*(80*N26/1000000000+(PI()^2*205*M26/1000000000/Span^2)))^0.5*1000000 -> 8.313021632 | R26: =0.6*(((C27/K$3/Q26)^2+3)^0.5-(C27/K$3/Q26)) -> 0.4352128183 | S26: =MIN(O26*R26,1) -> 0.5075410016 | U26: =((PI()^2*205*$P26/1000000)/(1.2)^2*(80*$N26/1000000000+(PI()^2*205*$M26/1000000000/(1.2)^2)))^0.5*1000000 -> 24.89270365 | V26: =0.6*((($C27/$K$3/U26)^2+3)^0.5-($C27/$K$3/U26)) -> 0.7522712997 | W26: =MIN($O26*V26,1) -> 0.8772915521 | Y26: =((PI()^2*205*$P26/1000000)/(Span*1.2)^2*(80*$N26/1000000000+(PI()^2*205*$M26/1000000000/(Span*1.2)^2)))^0.5*1000000 -> 6.839333502 | Z26: =0.6*((($C27/$K$3/Y26)^2+3)^0.5-($C27/$K$3/Y26)) -> 0.3770536868 | AA26: =MIN($O26*Z26,1) -> 0.4397163819 | AC26: 0.267 | AD26: 8.01 | AE26: =$K$3*$K$1*AD26/1000 -> 2.30688 | AF26: 8.066426719 | AG26: 10.29303385 | AH26: =AC26*210 -> 56.07
A27: 1.88 | B27: 44.3 | C27: =$K$3*$K$1*B27/1000 -> 12.7584 | D27: 6.475411114 | E27: =C27*AA26 -> 5.610077486 | F27: =A27*210 -> 394.8 | G27: 2 | H27: 125PFC | L27: 1.083333333 | M27: 1.64 | N27: 23.1 | O27: 1.166190379 | P27: 0.658 | Q27: =((PI()^2*205*P27/1000000)/Span^2*(80*N27/1000000000+(PI()^2*205*M27/1000000000/Span^2)))^0.5*1000000 -> 18.10799821 | R27: 0.4959583915 | S27: 0.5783819045 | U27: =((PI()^2*205*$P27/1000000)/(1.2)^2*(80*$N27/1000000000+(PI()^2*205*$M27/1000000000/(1.2)^2)))^0.5*1000000 -> 61.95862052 | V27: 0.8221509608 | W27: 0.9587845406 | Y27: 14.70155626 | Z27: 0.4315155805 | AA27: 0.5032293184 | AC27: 0.658 | AD27: 15.2 | AE27: 4.3776 | AF27: 16.29445642 | AG27: 20.37097656 | AH27: =AC27*210 -> 138.18
A28: 4.24 | B28: 79.3 | C28: 22.8384 | D28: 13.20931729 | E28: 11.49295246 | F28: =A28*210 -> 890.4 | G28: 3 | H28: 150PFC | L28: 1.1 | M28: 4.59 | N28: 54.9 | O28: 1.166190379 | P28: 1.29 | Q28: =((PI()^2*205*P28/1000000)/Span^2*(80*N28/1000000000+(PI()^2*205*M28/1000000000/Span^2)))^0.5*1000000 -> 39.66020229 | R28: 0.6073295604 | S28: 0.7082618902 | U28: 140.1775555 | V28: 0.8867021918 | W28: 1 | Y28: 32.07517386 | Z28: 0.5425930971 | AA28: 0.6327668495 | AC28: 1.29 | AD28: 25.7 | AE28: 7.4016 | AF28: 30.24357184 | AG28: 36.00147683 | AH28: 270.9
A29: 8.34 | B29: 129 | C29: =$K$3*$K$2*B29/1000 -> 34.83 | D29: 24.66876164 | E29: 22.03926937 | F29: 1751.4 | G29: 4 | H29: 180PFC | L29: 1.12 | M29: 7.82 | N29: 81.4 | O29: 1.166190379 | P29: 1.51 | Q29: 52.98423502 | R29: 0.5909552634 | S29: 0.6891663426 | U29: 192.6843891 | V29: 0.8830273076 | W29: 1 | Y29: 42.6954918 | Z29: 0.5245031791 | AA29: 0.6116705612 | AC29: 1.51 | AD29: 29.9 | AE29: 8.6112 | AF29: 41.91275542 | AG29: 50.42810317 | AH29: 317.1
A30: 14.1 | B30: 182 | C30: 49.14 | D30: 33.86563408 | E30: 30.05749138 | F30: 2961 | G30: 5 | H30: 200PFC | L30: 1.133333333 | M30: 10.6 | N30: 101 | O30: 1.166190379 | P30: 1.65 | Q30: =((PI()^2*205*P30/1000000)/Span^2*(80*N30/1000000000+(PI()^2*205*M30/1000000000/Span^2)))^0.5*1000000 -> 62.29810366 | R30: 0.5811854529 | S30: 0.6777728835 | U30: =((PI()^2*205*$P30/1000000)/(1.2)^2*(80*$N30/1000000000+(PI()^2*205*$M30/1000000000/(1.2)^2)))^0.5*1000000 -> 230.7815998 | V30: 0.8810577744 | W30: 1 | Y30: =((PI()^2*205*$P30/1000000)/(Span*1.2)^2*(80*$N30/1000000000+(PI()^2*205*$M30/1000000000/(Span*1.2)^2)))^0.5*1000000 -> 50.0761063 | Z30: 0.5136828619 | AA30: 0.5990520114 | AC30: 1.65 | AD30: 32.7 | AE30: 9.4176 | AF30: 50.35554088 | AG30: 60.98789528 | AH30: 346.5
A31: 19.1 | B31: 221 | C31: 59.67 | D31: 40.44270796 | E31: 35.74543352 | F31: 4011 | G31: 6 | H31: 230PFC | L31: 1.153333333 | M31: 15 | N31: 108 | O31: 1.166190379 | P31: 1.76 | Q31: 68.94005414 | R31: 0.5496706036 | S31: 0.6410205695 | U31: 271.078456 | V31: 0.8747469561 | W31: 1 | Y31: 54.93085285 | Z31: 0.4789380163 | AA31: 0.5585329067 | AC31: 1.76 | AD31: 33.6 | AE31: 9.6768 | AF31: 59.62494024 | AG31: 73.82255169 | AH31: 369.6
A32: 26.8 | B32: 271 | C32: 73.17 | D32: 46.90347507 | E32: 40.86785279 | F32: 5628 | G32: 7 | H32: 250PFC | L32: 1.166666667 | M32: 35.9 | N32: 238 | O32: 1.166190379 | P32: 3.64 | Q32: 148.9449434 | R32: 0.6483107059 | S32: 0.7560537078 | U32: 596.114876 | V32: 0.9198535917 | W32: 1 | Y32: 118.3411275 | Z32: 0.5803242326 | AA32: 0.6767685368 | AC32: 3.64 | AD32: 59.3 | AE32: 17.0784 | AF32: 105.0735843 | AG32: 121.248 | AH32: 764.4
A33: 45.1 | B33: 421 | C33: 113.67 | D33: 85.94062496 | E33: 76.92827958 | F33: 9471 | G33: 8 | H33: 300PFC | I33: Flange width < 90mm | L33: 1.2 | M33: 58.2 | N33: 290 | O33: 1.166190379 | P33: 4.04 | Q33: 181.5317718 | R33: 0.6209075338 | S33: 0.7240963921 | U33: 771.9277749 | V33: 0.9160041589 | W33: 1 | Y33: 142.6993337 | Z33: 0.5479893715 | AA33: 0.6390599328 | AC33: 4.04 | AD33: 64.4 | AE33: 18.5472 | AF33: 137.3486377 | AG33: 162.432 | AH33: 848.4
A34: 72.4 | B34: 564 | C34: 152.28 | D34: 110.2653986 | E34: 97.31604657 | F34: 15204 | G34: 9 | H34: 380PFC | I34: Flange width < 140mm | L34: 1.253333333 | M34: 151 | N34: 472 | O34: 1.166190379 | P34: 6.48 | Q34: 323.1994899 | R34: 0.638294474 | S34: 0.7443728745 | U34: 1508.465909 | V34: 0.9324603723 | W34: 1 | Y34: 249.0926798 | Z34: 0.5603083012 | AA34: 0.6534261501 | AC34: 6.48 | AD34: 89.4 | AE34: 25.7472 | AF34: 237.762257 | AG34: 272.448 | AH34: 1360.8
A35: 152 | B35: 946 | C35: 255.42 | D35: 190.1277196 | E35: 166.8981073 | F35: 31920 | G35: 10 | H35: X
C37: Others | D37: Lintel up | E37: Lintel dn | I37: This data used for lintels under upwards loading (Case 8)
A38: Iex | B38: Zex | C38: fM | D38: faaM | E38: faaM | F38: EI | G38: Index | H38: Size
A39: 0 | B39: 0 | C39: 0 | D39: =D4 -> 0 | E39: =E4 -> 0 | F39: 0 | G39: 1 | H39: 150UB14
A40: 6.67 | B40: 102 | C40: 29.376 | D40: =D5 -> 14.12548239 | E40: =E5 -> 11.99705879 | F40: 1400.7 | G40: 2 | H40: 150UB18
A41: 10.6 | B41: 138 | C41: 39.744 | D41: =D7 -> 20.8398532 | E41: =E7 -> 17.53357677 | F41: 2226 | G41: 4 | H41: 180UB18
A42: 9.05 | B42: 135 | C42: 38.88 | D42: =D6 -> 21.70679813 | E42: =E6 -> 18.86003814 | F42: 1900.5 | G42: 3 | H42: 180UB16
A43: 12.1 | B43: 157 | C43: 45.216 | D43: =D8 -> 25.0520735 | E43: =E8 -> 21.34466747 | F43: 2541 | G43: 5 | H43: 180UB22
A44: 15.8 | B44: 180 | C44: 51.84 | D44: =D10 -> 28.15234764 | E44: =E10 -> 23.52012652 | F44: 3318 | G44: 7 | H44: 200UB22
A45: 15.3 | B45: 179 | C45: 51.552 | D45: =D9 -> 32.95474125 | E45: =E9 -> 28.85947219 | F45: 3213 | G45: 6 | H45: 200UB18
A46: 21 | B46: 227 | C46: 65.376 | D46: =D11 -> 46.89532872 | E46: =E11 -> 40.21341931 | F46: 4410 | G46: 8 | H46: 200UB25
A47: 23.6 | B47: 257 | C47: 74.016 | D47: =D12 -> 53.9753108 | E47: =E12 -> 46.67410177 | F47: 4956 | G47: 9 | H47: 200UB30
A48: 35.4 | B48: 285 | C48: 82.08 | D48: =D14 -> 56.54498195 | E48: =E14 -> 48.13607885 | F48: 7434 | G48: 11 | H48: 250UB31
A49: 28.9 | B49: 313 | C49: 90.144 | D49: =D13 -> 68.50431411 | E49: =E13 -> 60.21370635 | F49: 6069 | G49: 10 | H49: 250UB26
A50: 44.4 | B50: 391 | C50: 112.608 | D50: =D15 -> 85.39311584 | E50: =E15 -> 73.71435049 | F50: 9324 | G50: 12 | H50: 250UB37
A51: 63.2 | B51: 467 | C51: 134.496 | D51: =D17 -> 99.04247485 | E51: =E17 -> 69.66654309 | F51: 13272 | G51: 14 | H51: 310UB40
A52: 56.6 | B52: 485 | C52: 139.68 | D52: =D16 -> 110.0295697 | E52: =E16 -> 99.12736232 | F52: 11886 | G52: 13 | H52: 310UB32
A53: 85.2 | B53: 621 | C53: 178.848 | D53: =D18 -> 147.1238814 | E53: =E18 -> 128.8541585 | F53: 17892 | G53: 15 | H53: 310UB46
A54: 121 | B54: 760 | C54: 218.88 | D54: =D20 -> 178.8761508 | E54: =E20 -> 155.5742606 | F54: 25410 | G54: 17 | H54: 360UB51
A55: 99.5 | B55: 723 | C55: 208.224 | D55: =D19 -> 167.1494967 | E55: =E19 -> 148.7561547 | F55: 20895 | G55: 16 | H55: 360UB45
A56: 142 | B56: 895 | C56: 241.65 | D56: =D21 -> 204.9893429 | E56: 180.9514669 | F56: 29820 | G56: 18 | H56: 360UB57
A57: 161 | B57: 1010 | C57: 272.7 | D57: 234.7800983 | E57: 208.832683 | F57: 33810 | G57: 19 | H57: 410UB54
A58: 186 | B58: 1040 | C58: 299.52 | D58: 248.0518499 | E58: 216.2245257 | F58: 39060 | G58: 20 | H58: 410UB60
A59: 215 | B59: 1190 | C59: 321.3 | D59: 276.9989593 | E59: 245.2008412 | F59: 45150 | G59: 21 | H59: X
C62: Others | D62: Lintel up | E62: Lintel dn | I62: This data used for lintels under downwards loading (Cases 5-7, 9)
A63: Iex | B63: Zex | C63: fM | D63: faaM | E63: faaM | F63: EI | G63: Index | H63: Size
A64: 0 | B64: 0 | C64: 0 | D64: =D4 -> 0 | E64: =E4 -> 0 | F64: 0 | G64: 1 | H64: 150UB14
A65: 6.67 | B65: 102 | C65: 29.376 | D65: =D5 -> 14.12548239 | E65: =E5 -> 11.99705879 | F65: 1400.7 | G65: 2 | H65: 150UB18
A66: 10.6 | B66: 138 | C66: 39.744 | D66: =D7 -> 20.8398532 | E66: =E7 -> 17.53357677 | F66: 2226 | G66: 4 | H66: 180UB18
A67: 9.05 | B67: 135 | C67: 38.88 | D67: =D6 -> 21.70679813 | E67: =E6 -> 18.86003814 | F67: 1900.5 | G67: 3 | H67: 180UB16
A68: 12.1 | B68: 157 | C68: 45.216 | D68: =D8 -> 25.0520735 | E68: =E8 -> 21.34466747 | F68: 2541 | G68: 5 | H68: 180UB22
A69: 15.8 | B69: 180 | C69: 51.84 | D69: =D10 -> 28.15234764 | E69: =E10 -> 23.52012652 | F69: 3318 | G69: 7 | H69: 200UB22
A70: 15.3 | B70: 179 | C70: 51.552 | D70: =D9 -> 32.95474125 | E70: =E9 -> 28.85947219 | F70: 3213 | G70: 6 | H70: 200UB18
A71: 21 | B71: 227 | C71: 65.376 | D71: =D11 -> 46.89532872 | E71: =E11 -> 40.21341931 | F71: 4410 | G71: 8 | H71: 200UB25
A72: 23.6 | B72: 257 | C72: 74.016 | D72: =D12 -> 53.9753108 | E72: =E12 -> 46.67410177 | F72: 4956 | G72: 9 | H72: 200UB30
A73: 35.4 | B73: 285 | C73: 82.08 | D73: =D14 -> 56.54498195 | E73: =E14 -> 48.13607885 | F73: 7434 | G73: 11 | H73: 250UB31
A74: 28.9 | B74: 313 | C74: 90.144 | D74: =D13 -> 68.50431411 | E74: =E13 -> 60.21370635 | F74: 6069 | G74: 10 | H74: 250UB26
A75: 63.2 | B75: 467 | C75: 134.496 | D75: =D17 -> 99.04247485 | E75: =E17 -> 69.66654309 | F75: 13272 | G75: 13 | H75: 310UB40
A76: 44.4 | B76: 391 | C76: 112.608 | D76: =D15 -> 85.39311584 | E76: =E15 -> 73.71435049 | F76: 9324 | G76: 12 | H76: 250UB37
A77: 56.6 | B77: 485 | C77: 139.68 | D77: =D16 -> 110.0295697 | E77: =E16 -> 99.12736232 | F77: 11886 | G77: 13 | H77: 310UB32
A78: 85.2 | B78: 621 | C78: 178.848 | D78: =D18 -> 147.1238814 | E78: 128.8541585 | F78: 17892 | G78: 15 | H78: 310UB46
A79: 99.5 | B79: 723 | C79: 208.224 | D79: 167.1494967 | E79: 148.7561547 | F79: 20895 | G79: 16 | H79: 360UB45
A80: 121 | B80: 760 | C80: 218.88 | D80: 178.8761508 | E80: 155.5742606 | F80: 25410 | G80: 17 | H80: 360UB51
A81: 142 | B81: 895 | C81: 241.65 | D81: 204.9893429 | E81: 180.9514669 | F81: 29820 | G81: 18 | H81: 360UB57
A82: 161 | B82: 1010 | C82: 272.7 | D82: 234.7800983 | E82: 208.832683 | F82: 33810 | G82: 19 | H82: 410UB54
A83: 186 | B83: 1040 | C83: 299.52 | D83: 248.0518499 | E83: 216.2245257 | F83: 39060 | G83: 20 | H83: 410UB60
A84: 215 | B84: 1190 | C84: 321.3 | D84: 276.9989593 | E84: 245.2008412 | F84: 45150 | G84: 21 | H84: X

Sheet Flitch (hidden)
A1: Flitch beams | E1: Note: I have offset all properties down 1 row to allow the Vlookup function to pick the correct size in the last column
H3: Assumes restrained at tension edge (NZS 3603) | J3: Used for face load (wind only)
A4: fM (short) | B4: fM (long) | C4: fM xk8 | D4: EI(s) | E4: EI(l) | F4: Index | G4: Code | H4: k8 | J4: fM (dry) | K4: fM (dry) | L4: EI(s) (dry)
A5: 0 | B5: 0 | C5: 0 | D5: 0 | E5: 0 | F5: 0 | G5: FB15L | H5: 1 | I5: Mitek | J5: 1.061666667 | K5: 6.372230769 | L5: 12.99806667
A6: 6.372230769 | B6: 5.467615385 | C6: =A6*H5 -> 6.372230769 | D6: 322.1516667 | E6: 291.9676667 | F6: 1 | G6: FB20M | H6: 1 | J6: 1.440833333 | K6: 15 | L6: 18.63093333
A7: 15 | B7: 12.3 | C7: =A7*H6 -> 15 | D7: 1115.060833 | E7: 1039.611833 | F7: 2 | G7: FB25L | H7: 1 | J7: 1.82 | K7: 15.03 | L7: 22.196
A8: 15.03 | B8: 12.4 | C8: =A8*H7 -> 15.03 | D8: 1300.8 | E8: 1148.736 | F8: 3 | G8: FB25M | H8: 1 | J8: 1.82 | K8: 24.92318845 | L8: 23.5456
A9: 24.92318845 | B9: 22.40209422 | C9: =A9*H8 -> 24.92318845 | D9: 2277.7025 | E9: 2125.6385 | F9: 4 | G9: FB30M | H9: 0.95 | J9: 2.199166667 | K9: 34.74723571 | L9: 28.46026667
A10: 36.57603759 | B10: 32.9085188 | C10: =A10*H9 -> 34.74723571 | D10: 4053.844167 | E10: 3785.565167 | F10: 5 | G10: X
A11: Ordered by EI
A12: 0 | B12: 0 | C12: 0 | D12: 0 | E12: 0 | F12: 0 | G12: FB130/5 | H12: 1
A13: 6.226869231 | B13: 5.014684615 | C13: =A13*H12 -> 6.226869231 | D13: 314.8028333 | E13: 253.5201667 | F13: 1 | G13: FB130/6 | H13: 1
A14: 6.987369231 | B14: 5.775184615 | C14: 6.987369231 | D14: 353.2503333 | E14: 291.9676667 | F14: 2 | G14: FB130/10 | H14: 1
A15: 10.02936923 | B15: 8.817184615 | C15: 10.02936923 | D15: 507.0403333 | E15: 445.7576667 | F15: 3 | G15: FB150/5 | H15: 1
A16: 10.31453429 | B16: 7.688517143 | C16: 10.31453429 | D16: 601.6811667 | E16: 448.4968333 | F16: 4 | G16: FB150/6 | H16: 1
A17: 11.32703429 | B17: 8.701017143 | C17: 11.32703429 | D17: 660.7436667 | E17: 507.5593333 | F17: 5 | G17: FB150/8 | H17: 1
A18: 13.35203429 | B18: 10.72601714 | C18: 13.35203429 | D18: 778.8686667 | E18: 625.6843333 | F18: 6 | G18: FB150/10 | H18: 1
A19: 15.37703429 | B19: 12.75101714 | C19: 15.37703429 | D19: 896.9936667 | E19: 743.8093333 | F19: 7 | G19: FB180/6 | H19: 1
A20: 13.12469524 | B20: 10.93634762 | C20: 13.12469524 | D20: 918.7286667 | E20: 765.5443333 | F20: 8 | G20: FB180/10 | H20: 1
A21: 18.95669524 | B21: 16.76834762 | C21: 18.95669524 | D21: 1326.968667 | E21: 1173.784333 | F21: 9 | G21: FB200/6 | H21: 1
A22: 18.73892571 | B22: 14.76946286 | C22: 18.73892571 | D22: 1457.472 | E22: 1148.736 | F22: 10 | G22: FB200/10 | H22: 1
A23: 25.93892571 | B23: 21.96946286 | C23: 25.93892571 | D23: 2017.472 | E23: 1708.736 | F23: 11 | G23: FB250/6 | H23: 1
A24: 28.08000343 | B24: 22.47750171 | C24: 28.08000343 | D24: 2730.000333 | E24: 2185.312667 | F24: 12 | G24: FB250/10 | H24: 1
A25: 39.33000343 | B25: 33.72750171 | C25: 39.33000343 | D25: 3823.750333 | E25: 3279.062667 | F25: 13 | G25: x
A27: Ordered by M
A28: 0 | B28: 0 | C28: 0 | D28: 0 | E28: 0 | F28: 0 | G28: FB130/5 | H28: 1
A29: 6.226869231 | B29: 5.014684615 | C29: =A29*H28 -> 6.226869231 | D29: 314.8028333 | E29: 253.5201667 | F29: 1 | G29: FB130/6 | H29: 1
A30: 6.987369231 | B30: 5.775184615 | C30: 6.987369231 | D30: 353.2503333 | E30: 291.9676667 | F30: 2 | G30: FB130/10 | H30: 1
A31: 10.02936923 | B31: 8.817184615 | C31: 10.02936923 | D31: 507.0403333 | E31: 445.7576667 | F31: 3 | G31: FB150/5 | H31: 1
A32: 10.31453429 | B32: 7.688517143 | C32: 10.31453429 | D32: 601.6811667 | E32: 448.4968333 | F32: 4 | G32: FB150/6 | H32: 1
A33: 11.32703429 | B33: 8.701017143 | C33: 11.32703429 | D33: 660.7436667 | E33: 507.5593333 | F33: 5 | G33: FB180/6 | H33: 1
A34: 13.12469524 | B34: 10.93634762 | C34: 13.12469524 | D34: 918.7286667 | E34: 765.5443333 | F34: 8 | G34: FB150/8 | H34: 1
A35: 13.35203429 | B35: 10.72601714 | C35: 13.35203429 | D35: 778.8686667 | E35: 625.6843333 | F35: 6 | G35: FB150/10 | H35: 1
A36: 15.37703429 | B36: 12.75101714 | C36: 15.37703429 | D36: 896.9936667 | E36: 743.8093333 | F36: 7 | G36: FB200/6 | H36: 1
A37: 18.73892571 | B37: 14.76946286 | C37: 18.73892571 | D37: 1457.472 | E37: 1148.736 | F37: 10 | G37: FB180/10 | H37: 1
A38: 18.95669524 | B38: 16.76834762 | C38: 18.95669524 | D38: 1326.968667 | E38: 1173.784333 | F38: 9 | G38: FB200/10 | H38: 1
A39: 25.93892571 | B39: 21.96946286 | C39: 25.93892571 | D39: 2017.472 | E39: 1708.736 | F39: 11 | G39: FB250/6 | H39: 1
A40: 28.08000343 | B40: 22.47750171 | C40: 28.08000343 | D40: 2730.000333 | E40: 2185.312667 | F40: 12 | G40: FB250/10 | H40: 1
A41: 39.33000343 | B41: 33.72750171 | C41: 39.33000343 | D41: 3823.750333 | E41: 3279.062667 | F41: 13 | G41: x
A44: 0 | B44: 0 | C44: 0 | D44: 0 | E44: 0 | F44: 0 | G44: 150PF6 | H44: 1 | I44: Pryda | J44: 1.061666667 | K44: 6.662972222 | L44: 13.01696667
A45: 6.662972222 | B45: 5.791861111 | C45: =A45*H44 -> 6.662972222 | D45: 349.8060417 | E45: 304.0727083 | F45: 1 | G45: 200PF6 | H45: 1 | J45: 1.440833333 | K45: 12.41866506 | L45: 17.67263333
A46: 12.41866506 | B46: 10.82970753 | C46: 12.41866506 | D46: 893.4539583 | E46: 779.1372917 | F46: 2 | G46: 200PF8 | H46: 1 | J46: 1.440833333 | K46: 15.49891506 | L46: 18.63093333
A47: 15.49891506 | B47: 13.90995753 | C47: 15.49891506 | D47: 1115.060833 | E47: 1000.744167 | F47: 3 | G47: 200PF10 | H47: 1 | J47: 1.440833333 | K47: 18.57916506 | L47: 20.21083333
A48: 18.57916506 | B48: 16.99020753 | C48: 18.57916506 | D48: 1336.667708 | E48: 1222.351042 | F48: 4 | G48: 250PF6 | H48: 1 | J48: 1.82 | K48: 19.95293845 | L48: 22.3283
A49: 19.95293845 | B49: 17.43184422 | C49: 19.95293845 | D49: 1823.476875 | E49: 1593.076875 | F49: 5 | G49: 250PF8 | H49: 1 | J49: 1.82 | K49: 24.92318845 | L49: 23.5456
A50: 24.92318845 | B50: 22.40209422 | C50: 24.92318845 | D50: 2277.7025 | E50: 2047.3025 | F50: 6 | G50: 250PF10 | H50: 1 | J50: 1.82 | K50: 29.89343845 | L50: 25.5525
A51: 29.89343845 | B51: 27.37234422 | C51: 29.89343845 | D51: 2731.928125 | E51: 2501.528125 | F51: 7 | G51: 300PF6 | H51: 0.95 | J51: 2.199166667 | K51: 27.80249821 | L51: 26.98396667
A52: 29.26578759 | B52: 25.5982688 | C52: 27.80249821 | D52: 3243.624792 | E52: 2837.141458 | F52: 8 | G52: 300PF8 | H52: 0.95 | J52: 2.199166667 | K52: 34.74723571 | L52: 28.46026667
A53: 36.57603759 | B53: 32.9085188 | C53: 34.74723571 | D53: 4053.844167 | E53: 3647.360833 | F53: 9 | G53: 300PF10 | H53: 0.95 | J53: 2.199166667 | K53: 41.69197321 | L53: 30.89416667
A54: 43.88628759 | B54: 40.2187688 | C54: 41.69197321 | D54: 4864.063542 | E54: 4457.580208 | F54: 10 | G54: X

Sheet Start
B2: Welcome to the BRANZ Lintels and beams calculator
B4: Calculator for selecting sizes and details of lintels and beams and their fixings and supports for various applications. The calculator is intended for buildings generally within the scope of NZS 3604.
B8: How to use the calculator:
B10: Start a new project | E10: 1 | F10: Go to "Input beam data" sheet and enter your project details in the "Project data" box.
E11: 2 | F11: Choose the wind zone, site elevation and snow region in "Site information" box.
B13: Input data to design | E13: 3 | F13: Enter your beam reference, then choose the application.
B14: a new beam for the project | E14: 4 | F14: To enter beam data specific to your application press the "Input beam data" button. Don’t enter data in the green box, it will automatically update as you go.
B17: Print your calculation | E17: Once you are satisfied with your design, pressing "Print" will take you to a page to print for a Building Consent application. Note: We no longer offer drawings or a PS1 with these calculations.
B21: Download a new spreadsheet for each beam calculation and save as required for your records
B24: Need help?
B25: Lintels and Beams: Engineering basis may answer your (or the BCA's) question. This is available from the following link;
B26: Lintels and Beams: Engineering Basis
B27: Alternatively you can ring the BRANZ helpline on 0800 80 80 85 or 0900 5 90 90

Sheet Input beam data
A1: BRANZ Lintels and beams calculator
B3: Project data | M3: Site information
C4: Owner's name: | D4: BRANZ | N4: Wind zone:
C5: Site address: | D5: 1222 Moonshine Road
N6: Site elevation:
C7: Project reference: | D7: Project reference
N8: Snow region:
B9: Beam reference | G9: Application: | N9: Ground snow load: | O9: =CHOOSE('Basic data'!J5,'Basic data'!K7,'Basic data'!K8,'Basic data'!K9,'Basic data'!K10,'Basic data'!K11,'Basic data'!K12) -> 0 | P9: kPa
B10: Beam reference
B14: You have input the following data. Are they correct?
B15: Beam | D15: Span | E15: 3 | F15: metres | J15: Loaded dimension | K15: 2 | L15: metres | N15: =IF('Basic data'!T5=1,"Lintel to ceiling","") -> Lintel to ceiling | O15: 400 | P15: =IF('Basic data'!T5=1,"mm","") -> mm | U15: Concentrated loads (kN)
E16: 3 | K16: 2 | W16: Distance (m)
B17: Roof | D17: Roof weight | E17: =IF(OR('Basic data'!T5=5,'Basic data'!T5=6),"",VLOOKUP('Basic data'!M5,'Basic data'!G7:L14,6)) -> Heavy | J17: Roof slope | K17: =IF(OR('Basic data'!T5=5,'Basic data'!T5=6),"",VLOOKUP('Basic data'!V5,'Basic data'!W14:X19,2)) -> 10 to 15 degrees | O17: 0.6 | P17: =IF(OR('Basic data'!T5=1,'Basic data'!T5=2,'Basic data'!T5=3,'Basic data'!T5=4,'Basic data'!T5=7,'Basic data'!T5=8,'Basic data'!T5=9),"metres","") -> metres | W17: Dead load
O18: 0.6 | W18: Live load
B19: Wall | E19: Weight of supported wall | F19: =IF(OR('Basic data'!T5=2,'Basic data'!T5=3),VLOOKUP('Basic data'!O5,'Basic data'!G7:U14,8),"") ->  | J19: Height of supported wall | K19: =IF(OR('Basic data'!T5=2,'Basic data'!T5=3),VLOOKUP('Basic data'!Y5,'Basic data'!G7:Y14,19),"") ->  | L19: =IF(OR('Basic data'!T5=2,'Basic data'!T5=3),"metres","") ->  | M19: =IF('Basic data'!T5=9,"Cantilever data","") ->  | N19: =IF('Basic data'!T5=9,IF(Calc!P113=2,"Cantilever span 2","Supported span"),"") ->  | P19: =IF('Basic data'!T5=9,"metres","") ->  | W19: up Wind
N20: =IF('Basic data'!T5=9,IF(OR(Calc!P113=1,Calc!P113=2,Calc!P113=3),"","LD of supported span"),"") ->  | W20: down Wind
B21: Floor | D21: Floor (or deck) load | E21: =IF(OR('Basic data'!T5=3,'Basic data'!T5=5,'Basic data'!T5=6),VLOOKUP('Basic data'!Q5,'Basic data'!G7:Q9,11),"") ->  | F21: =IF(OR('Basic data'!T5=3,'Basic data'!T5=5,'Basic data'!T5=6),"kPa","") ->  | J21: LD of intermediate floor | K21: 3 | L21: =IF('Basic data'!T5=3,"metres","") ->  | P21: =IF(AND(Calc!P113=4,'Basic data'!T5=9),"metres","") ->  | W21: Snow load
D22: =IF('Basic data'!T5=6,"Deck height above ground","") ->  | E22: <3m | K22: 3
N23: =IF('Basic data'!T5=9,"Back span","") ->  | P23: =IF('Basic data'!T5=9,"metres","") ->  | W23: Total
A24: Beam options for this application: | H24: Choose a beam option: | N24: =IF('Basic data'!T5=9,"Configuration","") ->  | P24: =IF('Basic data'!T5=9,IF(OR(Configuration=1,Configuration=2),"(Hip roof)","(Gable roof)"),"") -> 
A26: Timber (VSG/MSG8) | C26: =IF(Results!B6="X","Not possible in a single 45mm thick timber",Results!B6) -> 290x45 | H26: Support required for your chosen option:
C27: =IF(Results!B7="X","Not possible in 70mm thick timber",Results!B7) -> 290x70 | I27: End 1 | M27: =Results!I38 -> Single prop stud (90x45)
C28: =IF(Results!B8="X","Not possible in 2/45mm thick timber",Results!B8) -> 2/240x45 | I28: End 2 | M28: =Results!I48 -> Single prop stud (90x45)
C29: =IF(Results!B9="X","Not possible in 90mm thick timber",Results!B9) -> 240x90 | H29: Beam end fixing required for your chosen option:
A30: LVL (Laminated veneer lumber) | C30: =IF(Results!B10="X","Not possible in 45mm thick LVL",IF(Results!B10="NA","LVL not suitable for exposed situation",Results!B10)) -> 240 x45 | I30: End 1 | K30: =Results!S38 -> 25x0.9 mm nail strap with 6/30x3.15 nails (see Figure 8.12 NZS 3604)
C31: =IF(Results!B11="X","Not possible in 63mm thick LVL",IF(Results!B11="NA","",Results!B11)) -> 200x63 | I31: End 2 | K31: =Results!S48 -> 25x0.9 mm nail strap with 6/30x3.15 nails (see Figure 8.12 NZS 3604)
C32: =IF(Results!B12="X","Not possible in 90mm thick LVL",IF(Results!B12="NA","",Results!B12)) -> 200x90 | H32: Choose the most appropriate foundation type for your situation:
A33: Glulam (GL8) | C33: =IF(Results!B13="X","Not possible in 65mm thick Glulam",IF(Results!B13="NA","Glulam not suitable for exposed situation",Results!B13)) -> 225x65 | I33: End 1 | O33: End 2
C34: =IF(Results!B14="X","Not possible in 90mm thick Glulam",IF(Results!B14="NA","",Results!B14)) -> 225x90
A35: Hot rolled steel | C35: =IF(Results!B15="NA","Steel in exposed situations, requires SED",Results!B15) -> 150UB14 | J35: Foundation required: | K35: End 1 | L35: =IF(OR(Results!AB4=1,Results!AB4=5),IF(Results!AC32>Results!AC28,Results!AD32,Results!AD28),IF(Results!AB4=2,"Min. of "&MAX(Results!AC33,Results!AC29)&" m of foundation wall, at least 165mm wide",IF(Results!AB4=3,"Min. of "&MAX(Results!AC34,Results!AC29)&" lineal metres of slab edging",IF(Results!AB4=4,Results!AD35,Results!AD36)))) -> Min. of 1.1 lineal metres of slab edging | P35: End 2 | Q35: =IF(OR(Results!AB5=1,Results!AB5=5),IF(Results!AC32>Results!AC28,Results!AD32,Results!AD28),IF(Results!AB5=2,"Min. of "&MAX(Results!AC33,Results!AC29)&" m of foundation wall, at least 165mm wide",IF(Results!AB5=3,"Min. of "&MAX(Results!AC34,Results!AC29)&" lineal metres of slab edging",IF(Results!AB5=4,Results!AD35,Results!AD36)))) -> Min. of 1.1 lineal metres of slab edging
C36: =IF(Results!B16="NA","Steel in exposed situations, requires SED",Results!B16) -> 100PFC | J36: Fixing to foundation: | K36: =Results!AB38 -> 25x0.9 mm nail strap folded under plate, with 6/30x3.15 nails each side of stud (see Figure 8.12 NZS 3604), 15kN bolt, plate to slab | R36: =Results!AB52 -> 25x0.9 mm nail strap folded under plate, with 6/30x3.15 nails each side of stud (see Figure 8.12 NZS 3604), 15kN bolt, plate to slab
A37: Flitch beam | C37: =IF(OR('Basic data'!T5=4,'Basic data'!T5=6),"Flitch beam not suitable for exposed situation",IF(Results!B17="X","Not possible with a Mitek flitch beam",IF(Span>6,Results!B17&" (check length availability)",Results!B17))) -> FB15L | J37: End 1 | Q37: End 2
C38: =IF(OR('Basic data'!T5=4,'Basic data'!T5=6),"",IF(Results!B18="X","Not possible with a Pryda flitch beam",IF(Span>6,Results!B18&" (check length availability)",Results!B18))) -> 150PF6

Sheet Print
B2: BRANZ Lintels and Beams Calculator
B5: Project information
B7: Owner's name | C7: ='Input beam data'!D4 -> BRANZ
B9: Project reference | C9: ='Input beam data'!D7 -> Project reference
B10: Calculated by | C10: R Shelton
B11: Calc. date | C11: 2020-06-20
B13: Site information
B15: Site address: | C15: ='Input beam data'!D5 -> 1222 Moonshine Road
B17: Wind zone: | C17: =VLOOKUP('Basic data'!I5,'Basic data'!G7:Y14,2) -> High | E17: Site elevation: | F17: =INDEX('Basic data'!T18:T26,'Basic data'!U17,1) -> < 100m
B18: Snow load: | C18: ='Input beam data'!O9 -> 0 | D18: kPa
B20: Beam data
B22: Beam reference | C22: ='Input beam data'!B10 -> Beam reference
B24: Application: | C24: =VLOOKUP('Basic data'!T5,'Basic data'!G7:Y15,14) -> Lintel, roof only | F24: =IF('Basic data'!T5=9,"Configuration:","") ->  | G24: =IF('Basic data'!T5=9,Configuration,"") ->  | H24: =IF('Basic data'!T5=9,IF(OR(Configuration=1,Configuration=2),"(Hip roof)","(Gable roof)"),"") -> 
B25: ='Input beam data'!D15&":" -> Span: | C25: ='Input beam data'!E15 -> 3 | D25: metres | F25: =IF(OR('Basic data'!T5=1,'Basic data'!T5=2,'Basic data'!T5=3,'Basic data'!T5=4,'Basic data'!T5=7,'Basic data'!T5=8,'Basic data'!T5=9),"Roof weight:","") -> Roof weight: | G25: =IF(OR('Basic data'!T5=1,'Basic data'!T5=2,'Basic data'!T5=3,'Basic data'!T5=4,'Basic data'!T5=7,'Basic data'!T5=8,'Basic data'!T5=9),VLOOKUP('Basic data'!M5,'Basic data'!G7:L14,6),"") -> Heavy
B26: Loaded dimension: | C26: =IF(AND('Basic data'!T5=9,OR(Configuration=1,Configuration=2)),"No LD for hip roof",IF(AND('Basic data'!T5=9,Configuration=4),LDcant,LD)) -> 2 | D26: metres | F26: =IF(OR('Basic data'!T5=1,'Basic data'!T5=2,'Basic data'!T5=3,'Basic data'!T5=4,'Basic data'!T5=7,'Basic data'!T5=8,'Basic data'!T5=9),"Roof slope:","") -> Roof slope: | G26: ='Input beam data'!K17 -> 10 to 15 degrees
B27: =IF('Basic data'!T5=3,"LD of floor:",IF('Basic data'!T5=9,'Input beam data'!N19,"")) ->  | C27: =IF('Basic data'!T5=3,"LD of floor:",IF('Basic data'!T5=9,'Input beam data'!O19,"")) ->  | D27: =IF(OR('Basic data'!T5=3,'Basic data'!T5=9),"metres","") ->  | F27: =IF(OR('Basic data'!T5=2,'Basic data'!T5=3),"Weight of supported wall:","") ->  | G27: =IF(OR('Basic data'!T5=2,'Basic data'!T5=3),VLOOKUP('Basic data'!O5,'Basic data'!G7:U14,8),"") -> 
B28: =IF(OR('Basic data'!T5=1,'Basic data'!T5=2,'Basic data'!T5=3,'Basic data'!T5=4,'Basic data'!T5=7,'Basic data'!T5=8,'Basic data'!T5=9),"Roof overhang:","") -> Roof overhang: | C28: =IF(OR('Basic data'!T5=1,'Basic data'!T5=2,'Basic data'!T5=3,'Basic data'!T5=4,'Basic data'!T5=7,'Basic data'!T5=8,'Basic data'!T5=9),'Input beam data'!O17,"") -> 0.6 | D28: =IF(OR('Basic data'!T5=1,'Basic data'!T5=2,'Basic data'!T5=3,'Basic data'!T5=4,'Basic data'!T5=7,'Basic data'!T5=8,'Basic data'!T5=9),"metres","") -> metres | F28: =IF(OR('Basic data'!T5=2,'Basic data'!T5=3),"Height of supported wall:","") ->  | G28: =IF(OR('Basic data'!T5=2,'Basic data'!T5=3),VLOOKUP('Basic data'!Y5,'Basic data'!G7:Y14,19),"") ->  | H28: =IF(OR('Basic data'!T5=2,'Basic data'!T5=3),"metres","") -> 
B29: =IF(OR('Basic data'!T5=3,'Basic data'!T5=5),"Floor load:","") ->  | C29: =IF(OR('Basic data'!T5=3,'Basic data'!T5=5),VLOOKUP('Basic data'!Q5,'Basic data'!G7:Q9,11),"") ->  | D29: =IF(OR('Basic data'!T5=3,'Basic data'!T5=5),"kPa","") ->  | F29: =IF('Basic data'!T5=9,"Back span:","") ->  | G29: =IF('Basic data'!T5=9,BSpan,"") ->  | H29: =IF('Basic data'!T5=9,"metres","") -> 
B31: Calculation
C33: ULS | E33: SLS (short term loading)
B34: =IF('Basic data'!T5=9,"Total load","Distributed load") -> Distributed load | C34: =MAX(Results!B31:B35,ABS(Results!B34)) -> 4.25355243 | D34: =IF('Basic data'!T5=9,"kN","kN/m") -> kN/m | E34: =MAX(Results!B27:B30) -> 2.742960359 | F34: =IF('Basic data'!T5=9,"kN","kN/m") -> kN/m
B35: Concentrated load: | C35: =IF('Basic data'!T5=9,"NA",MAX(Results!AG30:AG34,ABS(Results!AG33))) -> 0 | D35: kN | E35: =IF('Basic data'!T5=9,"NA",IF(OR(TotalLoad=0, TotalLoad=""),MAX(Results!AG26:AG29),"-")) -> 0 | F35: kN
B36: M*: | C36: =Results!B38 -> 4.785246484 | D36: kNm
B37: V*: | C37: =Results!B39 -> 6.380328646 | D37: kN
B39: Uplift force: | C39: =Results!F34 -> 3.75791782 | D39: kN
B41: Deflection for chosen option: | C41: (long term) | E41: (short term)
C42: =Results!D27 -> 86.71569873 | D42: mm | E42: =Results!D28 -> 51.98029834 | F42: mm
C43: (=span/ | D43: =INT('Input beam data'!E15*1000/Print!C42)&")" -> 34) | E43: (=span/ | F43: =INT('Input beam data'!E15*1000/Print!E42)&")" -> 57)
B44: (Beam details on second sheet)
B46: Beam and support details
B48: Chosen option: | C48: =VLOOKUP(Results!C20,Results!C6:E18,3) -> 140x45 VSG/MSG8 (SG8)
C49: =IF(LEFT(Results!D20,1)="F",'Basic data'!A52,IF(AND(MID(Results!D20,4,1)="P",MID(Results!D20,6,3)<>"C"),'Basic data'!A53,"")) -> 
B50: Treatment: | C50: =IF(OR(MID(Results!$D$20,4,1)="U",MID(Results!$D$20,4,3)="PFC"),IF(OR('Basic data'!T5=6,'Basic data'!T5=4),'Basic data'!B47,'Basic data'!B46),IF('Basic data'!T5=6,'Basic data'!B45,'Basic data'!B44)) -> Timber beam treated to H1.2
B51: Fixing durability: | C51: ='Basic data'!$B$43 -> Refer to Tables 4.1, 4.2 and 4.3 in the current NZS 3604 to determine suitable fixing types for the building location and B2 Durability requirements
B54: End 1
B55: End support: | C55: ='Input beam data'!$M$27 -> Single prop stud (90x45)
B57: End fixing: | C57: ='Input beam data'!K30 -> 25x0.9 mm nail strap with 6/30x3.15 nails (see Figure 8.12 NZS 3604)
B59: Foundation: | C59: =Results!AA6 -> Concrete slab edging (NZS3604)
B60: Size: | C60: ='Input beam data'!L35 -> Min. of 1.1 lineal metres of slab edging | F60: =IF('Basic data'!T5=4,"Double concrete volume for double span veranda beam continuous over post","") -> 
B62: Foundation fixing: | C62: ='Input beam data'!K36 -> 25x0.9 mm nail strap folded under plate, with 6/30x3.15 nails each side of stud (see Figure 8.12 NZS 3604), 15kN bolt, plate to slab
B65: End 2
B66: End support: | C66: ='Input beam data'!$M$28 -> Single prop stud (90x45)
B68: End fixing: | C68: ='Input beam data'!K31 -> 25x0.9 mm nail strap with 6/30x3.15 nails (see Figure 8.12 NZS 3604)
B70: Foundation: | C70: =Results!AA7 -> Concrete slab edging (NZS3604)
B71: Size: | C71: ='Input beam data'!Q35 -> Min. of 1.1 lineal metres of slab edging | F71: =IF('Basic data'!T5=4,"Double concrete volume for veranda beam continuous over post","") -> 
B73: Foundation fixing: | C73: ='Input beam data'!R36 -> 25x0.9 mm nail strap folded under plate, with 6/30x3.15 nails each side of stud (see Figure 8.12 NZS 3604), 15kN bolt, plate to slab

Sheet Calc (hidden)
A1: Application 1. Roof only | H1: (dry props) | L1: Note: | V1: = critical load case
C2: Basic loads | O2: Note have ignored ceiling on the horizontal plane for now | AK2: Req. bearing area
C3: Roof | I3: Upper wall | J3: Lower wall | K3: Floor/deck | O3: Actions | U3: Size index's | AH3: Deflection limits | AJ3: Strength | AK3: (mm2)
A4: Load case | C4: G | D4: Ql | E4: Qs | F4: S | G4: W(e) | H4: W(r) | I4: G | J4: G | K4: G | L4: Ql | M4: Qs | N4: S | O4: UDL | P4: P | Q4: M* | R4: V* | S4: EI(s) | T4: EI(a) | U4: MSG8 | Y4: LVL | AB4: GL | AD4: UB | AE4: MSC | AF4: Flitch | AH4: (span/) | AI4: (mm) | AJ4: dur. fact. | AK4: para | AL4: perp
A5: 1 | B5: G+Ql | C5: =VLOOKUP('Basic data'!M$5,'Basic data'!$G$7:$Y$14,7) -> 0.85 | D5: 0 | O5: =('Input beam data'!$K$15+'Input beam data'!$O$17)*(C5/VLOOKUP('Basic data'!V$5,'Basic data'!$G$7:$Y$14,16)+D5) -> 2.287960359 | P5: =IF('Input beam data'!X$23=0,'Input beam data'!X$17,'Input beam data'!X$23) -> 0 | S5: =(0.013*O5*Span^3+0.0298*P5*Span^2*(3*MIN('Input beam data'!X$16,Span-'Input beam data'!X$16)/Span-4*(MIN('Input beam data'!X$16,Span-'Input beam data'!X$16)/Span)^3))*AH5 -> 240.9222258 | T5: =(0.013*O5*Span^4+0.0208*P5*Span^3*(3*MIN('Input beam data'!X$16,Span-'Input beam data'!X$16)/Span-4*(MIN('Input beam data'!X$16,Span-'Input beam data'!X$16)/Span)^3))/(AI5/1000) -> 200.7685215 | U5: =VLOOKUP(MAX(S5:T5),VSGMSG8!G$5:I$11,2) -> 5 | V5: =VLOOKUP(MAX(S5:T5),VSGMSG8!G$12:I$17,2) -> 4 | W5: =VLOOKUP(MAX(S5:T5),VSGMSG8!G$18:I$23,2) -> 3 | X5: =VLOOKUP(MAX(S5:T5),VSGMSG8!G$24:I$29,2) -> 3 | Y5: =VLOOKUP(MAX(S5:T5),LVL!D$5:F$14,2) -> 5 | Z5: =VLOOKUP(MAX(S5:T5),LVL!D$15:F$26,2) -> 4 | AA5: =VLOOKUP(MAX(S5:T5),LVL!D$27:F$33,2) -> 1 | AB5: =VLOOKUP(MAX(S5:T5),Glulam!C$5:E$11,2) -> 2 | AC5: =VLOOKUP(MAX(S5:T5),Glulam!C$12:E$20,2) -> 2 | AD5: =VLOOKUP(MAX(S5:T5),Steel!$F$4:$H$24,2) -> 1 | AE5: =VLOOKUP(MAX(S5:T5),Steel!$F$26:$H$35,2) -> 1 | AF5: =VLOOKUP(MAX(S5:T5),Flitch!$E$5:$F$10,2) -> 0 | AG5: =VLOOKUP(MAX(S5:T5),Flitch!E$44:F$54,2) -> 0 | AH5: 300 | AI5: 12
A6: 2 | B6: G+Qs | C6: =VLOOKUP('Basic data'!M$5,'Basic data'!$G$7:$Y$14,7) -> 0.85 | E6: =0.7*'Basic data'!$M$11 -> 0.175 | O6: =('Input beam data'!$K$15+'Input beam data'!$O$17)*(C6/VLOOKUP('Basic data'!V$5,'Basic data'!$G$7:$Y$14,16)+E6) -> 2.742960359 | P6: =IF('Input beam data'!X$23=0,'Input beam data'!X$17+0.7*'Input beam data'!X$18,'Input beam data'!X$23) -> 0 | S6: =(0.013*O6*Span^3+0.0298*P6*Span^2*(3*MIN('Input beam data'!X$16,Span-'Input beam data'!X$16)/Span-4*(MIN('Input beam data'!X$16,Span-'Input beam data'!X$16)/Span)^3))*AH6 -> 288.8337258 | T6: =(0.013*O6*Span^4+0.0208*P6*Span^3*(3*MIN('Input beam data'!X$16,Span-'Input beam data'!X$16)/Span-4*(MIN('Input beam data'!X$16,Span-'Input beam data'!X$16)/Span)^3))/(AI6/1000) -> 240.6947715 | U6: =VLOOKUP(MAX(S6:T6),VSGMSG8!E$5:I$11,4) -> 5 | V6: =VLOOKUP(MAX(S6:T6),VSGMSG8!E$12:I$17,4) -> 3 | W6: =VLOOKUP(MAX(S6:T6),VSGMSG8!E$18:I$23,4) -> 2 | X6: =VLOOKUP(MAX(S6:T6),VSGMSG8!E$24:I$29,4) -> 3 | Y6: =VLOOKUP(MAX(S6:T6),LVL!C$5:F$14,3) -> 4 | Z6: =VLOOKUP(MAX(S6:T6),LVL!C$15:F$26,3) -> 4 | AA6: =VLOOKUP(MAX(S6:T6),LVL!C$27:F$33,3) -> 1 | AB6: =VLOOKUP(MAX(S6:T6),Glulam!B$5:E$11,3) -> 2 | AC6: =VLOOKUP(MAX(S6:T6),Glulam!B$12:E$20,3) -> 1 | AD6: =VLOOKUP(MAX(S6:T6),Steel!$F$4:$H$24,2) -> 1 | AE6: =VLOOKUP(MAX(S6:T6),Steel!$F$26:$H$35,2) -> 1 | AF6: =VLOOKUP(MAX(S6:T6),Flitch!$D$5:$F$10,3) -> 0 | AG6: =VLOOKUP(MAX(S6:T6),Flitch!$D$44:$F$54,3) -> 0 | AH6: 300 | AI6: 12
A7: 3 | B7: Spare
A8: 4 | B8: G+S | C8: =VLOOKUP('Basic data'!M$5,'Basic data'!$G$7:$Y$14,7) -> 0.85 | E8: 0 | F8: =0.68*'Input beam data'!$O$9*VLOOKUP('Basic data'!$V$5,'Basic data'!$G$7:$Y$14,17) -> 0 | O8: =('Input beam data'!$K$15+'Input beam data'!$O$17)*(C8/VLOOKUP('Basic data'!V$5,'Basic data'!$G$7:$Y$14,16)+F8) -> 2.287960359 | P8: =IF('Input beam data'!X$23=0,'Input beam data'!X$17+'Input beam data'!X$21,'Input beam data'!X$23) -> 0 | S8: =(0.013*O8*Span^3+0.0298*P8*Span^2*(3*MIN('Input beam data'!X$16,Span-'Input beam data'!X$16)/Span-4*(MIN('Input beam data'!X$16,Span-'Input beam data'!X$16)/Span)^3))*AH8 -> 240.9222258 | T8: =(0.013*O8*Span^4+0.0208*P8*Span^3*(3*MIN('Input beam data'!X$16,Span-'Input beam data'!X$16)/Span-4*(MIN('Input beam data'!X$16,Span-'Input beam data'!X$16)/Span)^3))/(AI8/1000) -> 200.7685215 | U8: =VLOOKUP(MAX(S8:T8),VSGMSG8!E$5:I$11,4) -> 4 | V8: =VLOOKUP(MAX(S8:T8),VSGMSG8!E$12:I$17,4) -> 3 | W8: =VLOOKUP(MAX(S8:T8),VSGMSG8!E$18:I$23,4) -> 2 | X8: =VLOOKUP(MAX(S8:T8),VSGMSG8!E$24:I$29,4) -> 2 | Y8: =VLOOKUP(MAX(S8:T8),LVL!C$5:F$14,3) -> 4 | Z8: =VLOOKUP(MAX(S8:T8),LVL!C$15:F$26,3) -> 3 | AA8: =VLOOKUP(MAX(S8:T8),LVL!C$27:F$33,3) -> 1 | AB8: =VLOOKUP(MAX(S8:T8),Glulam!B$5:E$11,3) -> 1 | AC8: =VLOOKUP(MAX(S8:T8),Glulam!B$12:E$20,3) -> 1 | AD8: =VLOOKUP(MAX(S8:T8),Steel!$F$4:$H$24,2) -> 1 | AE8: =VLOOKUP(MAX(S8:T8),Steel!$F$26:$H$35,2) -> 1 | AF8: =VLOOKUP(MAX(S8:T8),Flitch!$D$5:$F$10,3) -> 0 | AG8: =VLOOKUP(MAX(S8:T8),Flitch!$D$44:$F$54,3) -> 0 | AH8: 300 | AI8: 12
A9: 5 | B9: 1.35G | C9: =VLOOKUP('Basic data'!M$5,'Basic data'!$G$7:$Y$14,7) -> 0.85 | O9: =('Input beam data'!$K$15+'Input beam data'!$O$17)*(1.35*C9/VLOOKUP('Basic data'!V$5,'Basic data'!$G$7:$Y$14,16)) -> 3.088746484 | P9: =IF('Input beam data'!X$23=0,1.35*'Input beam data'!X$17,'Input beam data'!X$23) -> 0 | Q9: =MAX(O9*Span^2/8+P9*MIN('Input beam data'!X$16,(Span-'Input beam data'!X$16))/2,P9*'Input beam data'!X$16*(Span-'Input beam data'!X$16)/Span+O9*Span*MIN('Input beam data'!X$16,(Span-'Input beam data'!X$16))/2*(1-MIN('Input beam data'!X$16,(Span-'Input beam data'!X$16))/Span)) -> 3.474839795 | R9: =O9*'Input beam data'!$E$15/2+P9*MAX('Input beam data'!X$16,(Span-'Input beam data'!X$16))/Span -> 4.633119726 | U9: =VLOOKUP((Q9/AJ9),VSGMSG8!$B$5:$I$11,7) -> 5 | V9: =VLOOKUP((Q9/AJ9),VSGMSG8!$B$12:$I$17,7) -> 3 | W9: =VLOOKUP((Q9/AJ9),VSGMSG8!$B$18:$I$23,7) -> 2 | X9: =VLOOKUP((Q9/AJ9),VSGMSG8!$B$24:$I$29,7) -> 2 | Y9: =VLOOKUP((Q9/AJ9),LVL!A$5:F$14,5) -> 4 | Z9: =VLOOKUP((Q9/AJ9),LVL!A$15:F$26,5) -> 3 | AA9: =VLOOKUP((Q9/AJ9),LVL!A$27:F$33,5) -> 0 | AB9: =VLOOKUP((Q9/AJ9),Glulam!$A$5:$D$20,4) -> 1 | AC9: =VLOOKUP((Q9/AJ9),Glulam!$A$12:$D$20,4) -> 1 | AD9: =VLOOKUP(Q9,Steel!$E$64:$G$84,3) -> 1 | AE9: =VLOOKUP(Q9,Steel!$E$26:$G$35,3) -> 1 | AF9: =VLOOKUP(Q9,Flitch!$B$5:$F$10,5) -> 0 | AG9: =VLOOKUP(Q9,Flitch!$B$44:$F$54,5) -> 0 | AJ9: 0.6 | AK9: =$R9*1000/'Basic data'!I$21 -> 257.3955404 | AL9: =$R9*1000/'Basic data'!J$21 -> 520.5752502
A10: 6 | B10: 1.2G+1.5Q | C10: =VLOOKUP('Basic data'!M$5,'Basic data'!$G$7:$Y$14,7) -> 0.85 | E10: ='Basic data'!M$11 -> 0.25 | J10: =1/48 -> 0.02083333333 | O10: =('Input beam data'!$K$15+'Input beam data'!$O$17)*(1.2*C10/VLOOKUP('Basic data'!V$5,'Basic data'!$G$7:$Y$14,16)+1.5*E10) -> 3.72055243 | P10: =IF('Input beam data'!X$23=0,1.2*'Input beam data'!X$17+1.5*'Input beam data'!X$18,'Input beam data'!X$23) -> 0 | Q10: =MAX(O10*Span^2/8+P10*MIN('Input beam data'!X$16,(Span-'Input beam data'!X$16))/2,P10*'Input beam data'!X$16*(Span-'Input beam data'!X$16)/Span+O10*Span*MIN('Input beam data'!X$16,(Span-'Input beam data'!X$16))/2*(1-MIN('Input beam data'!X$16,(Span-'Input beam data'!X$16))/Span)) -> 4.185621484 | R10: =O10*'Input beam data'!$E$15/2+P10*MAX('Input beam data'!X$16,(Span-'Input beam data'!X$16))/Span -> 5.580828646 | U10: =VLOOKUP((Q10/AJ10),VSGMSG8!$B$5:$I$11,7) -> 5 | V10: =VLOOKUP((Q10/AJ10),VSGMSG8!$B$12:$I$17,7) -> 3 | W10: =VLOOKUP((Q10/AJ10),VSGMSG8!$B$18:$I$23,7) -> 2 | X10: =VLOOKUP((Q10/AJ10),VSGMSG8!$B$24:$I$29,7) -> 2 | Y10: =VLOOKUP((Q10/AJ10),LVL!A$5:F$14,5) -> 4 | Z10: =VLOOKUP((Q10/AJ10),LVL!A$15:F$26,5) -> 3 | AA10: =VLOOKUP((Q10/AJ10),LVL!A$27:F$33,5) -> 0 | AB10: =VLOOKUP((Q10/AJ10),Glulam!$A$5:$D$20,4) -> 1 | AC10: =VLOOKUP((Q10/AJ10),Glulam!$A$12:$D$20,4) -> 1 | AD10: =VLOOKUP(Q10,Steel!$E$64:$G$84,3) -> 1 | AE10: =VLOOKUP(Q10,Steel!$E$26:$G$35,3) -> 1 | AF10: =VLOOKUP(Q10,Flitch!$A$5:$F$10,6) -> 0 | AG10: =VLOOKUP(Q10,Flitch!$A$44:$F$54,6) -> 0 | AJ10: 0.8 | AK10: =$R10*1000/'Basic data'!I$21 -> 310.0460359 | AL10: =$R10*1000/'Basic data'!J$21 -> 627.0593984
A11: 7 | B11: 1.2G+yQ+W | C11: =VLOOKUP('Basic data'!M$5,'Basic data'!$G$7:$Y$14,7) -> 0.85 | E11: 0 | G11: =VLOOKUP('Basic data'!I$5,'Basic data'!$G$7:$Y$14,3)*'Basic data'!E$19*'Basic data'!F$19*'Basic data'!G$19 -> 0.58 | H11: =VLOOKUP('Basic data'!I$5,'Basic data'!$G$7:$Y$14,3)*'Basic data'!E$19*'Basic data'!F$19*'Basic data'!G$19 -> 0.58 | O11: =('Input beam data'!$K$15+'Input beam data'!$O$17)*(1.2*C11/VLOOKUP('Basic data'!V$5,'Basic data'!$G$7:$Y$14,16)+H11) -> 4.25355243 | P11: =IF('Input beam data'!X$23=0,1.2*'Input beam data'!X$17+0+'Input beam data'!X$20,'Input beam data'!X$23) -> 0 | Q11: =MAX(O11*Span^2/8+P11*MIN('Input beam data'!X$16,(Span-'Input beam data'!X$16))/2,P11*'Input beam data'!X$16*(Span-'Input beam data'!X$16)/Span+O11*Span*MIN('Input beam data'!X$16,(Span-'Input beam data'!X$16))/2*(1-MIN('Input beam data'!X$16,(Span-'Input beam data'!X$16))/Span)) -> 4.785246484 | R11: =O11*'Input beam data'!$E$15/2+P11*MAX('Input beam data'!X$16,(Span-'Input beam data'!X$16))/Span -> 6.380328646 | U11: =VLOOKUP((Q11/AJ11),VSGMSG8!$B$5:$I$11,7) -> 4 | V11: =VLOOKUP((Q11/AJ11),VSGMSG8!$B$12:$I$17,7) -> 3 | W11: =VLOOKUP((Q11/AJ11),VSGMSG8!$B$18:$I$23,7) -> 2 | X11: =VLOOKUP((Q11/AJ11),VSGMSG8!$B$24:$I$29,7) -> 2 | Y11: =VLOOKUP((Q11/AJ11),LVL!A$5:F$14,5) -> 4 | Z11: =VLOOKUP((Q11/AJ11),LVL!A$15:F$26,5) -> 3 | AA11: =VLOOKUP((Q11/AJ11),LVL!A$27:F$33,5) -> 0 | AB11: =VLOOKUP((Q11/AJ11),Glulam!$A$5:$D$20,4) -> 1 | AC11: =VLOOKUP((Q11/AJ11),Glulam!$A$12:$D$20,4) -> 1 | AD11: =VLOOKUP(Q11,Steel!$E$64:$G$84,3) -> 1 | AE11: =VLOOKUP(Q11,Steel!$E$26:$G$35,3) -> 1 | AF11: =VLOOKUP(Q11,Flitch!$A$5:$F$10,6) -> 0 | AG11: =VLOOKUP(Q11,Flitch!$A$44:$F$54,6) -> 0 | AJ11: 1 | AK11: =$R11*1000/'Basic data'!I$21 -> 354.4627025 | AL11: =$R11*1000/'Basic data'!J$21 -> 716.8908591 | AN11: Face load calculation
A12: 8 | B12: .9G+W | C12: =VLOOKUP((2+'Basic data'!M$5),'Basic data'!$G$7:$Y$14,7) -> 0.4 | G12: =VLOOKUP('Basic data'!I$5,'Basic data'!$G$7:$Y$14,3)*'Basic data'!D$20*'Basic data'!F$20*'Basic data'!G$20 -> 1.856 | H12: =VLOOKUP('Basic data'!I$5,'Basic data'!$G$7:$Y$14,3)*'Basic data'!E$20*'Basic data'!F$20*'Basic data'!G$20 -> 1.1136 | O12: =LD*(0.9*C12/VLOOKUP('Basic data'!V$5,'Basic data'!$G$7:$Y$15,16)-H12)+Overhang*(0.9*C12/VLOOKUP('Basic data'!V$5,'Basic data'!$G$7:$Y$16,16)-G12)*((LD+Overhang/2)/LD) -> -2.505278547 | P12: =IF('Input beam data'!X$23=0,0.9*'Input beam data'!X$17+'Input beam data'!X$19,'Input beam data'!X$23) -> 0 | Q12: =MAX(ABS(O12*Span^2/8+P12*MIN('Input beam data'!X$16,(Span-'Input beam data'!X$16))/2),ABS(P12*'Input beam data'!X$16*(Span-'Input beam data'!X$16)/Span+O12*Span*MIN('Input beam data'!X$16,(Span-'Input beam data'!X$16))/2*(1-MIN('Input beam data'!X$16,(Span-'Input beam data'!X$16))/Span))) -> 2.818438365 | R12: =O12*'Input beam data'!$E$15/2+P12*MAX('Input beam data'!X$16,(Span-'Input beam data'!X$16))/Span -> -3.75791782 | U12: =VLOOKUP((Q12/AJ12),VSGMSG8!$C$5:$H$11,6) -> 3 | V12: =VLOOKUP((Q12/AJ12),VSGMSG8!$C$12:$H$17,6) -> 2 | W12: =VLOOKUP((Q12/AJ12),VSGMSG8!$C$18:$H$23,6) -> 1 | X12: =VLOOKUP((Q12/AJ12),VSGMSG8!$C$24:$H$29,6) -> 1 | Y12: =VLOOKUP((Q12/AJ12),LVL!B$5:F$14,4) -> 2 | Z12: =VLOOKUP((Q12/AJ12),LVL!B$15:F$26,4) -> 3 | AA12: =VLOOKUP((Q12/AJ12),LVL!B$27:F$33,4) -> 0 | AB12: =VLOOKUP((Q12/AJ12),Glulam!$A$5:$D$20,4) -> 0 | AC12: =VLOOKUP((Q12/AJ12),Glulam!$A$12:$D$20,4) -> 0 | AD12: =VLOOKUP(Q12,Steel!$D$39:$G$59,4) -> 1 | AE12: =VLOOKUP(Q12,Steel!$D$26:$G$35,4) -> 1 | AF12: =VLOOKUP(Q12,Flitch!$C$5:$F$10,4) -> 0 | AG12: =VLOOKUP(Q12,Flitch!$C$44:$F$54,4) -> 0 | AJ12: 1 | AK12: =-$R12*1000/'Basic data'!I$21 -> 208.7732122 | AL12: =-$R12*1000/'Basic data'!J$21 -> 422.2379573
A13: 9 | B13: 1.2G+yQ+S | C13: =VLOOKUP('Basic data'!M$5,'Basic data'!$G$7:$Y$14,7) -> 0.85 | E13: 0 | F13: ='Input beam data'!$O$9*VLOOKUP('Basic data'!$V$5,'Basic data'!$G$7:$Y$14,17) -> 0 | O13: =('Input beam data'!$K$15+'Input beam data'!$O$17)*(1.2*C13/VLOOKUP('Basic data'!V$5,'Basic data'!$G$7:$Y$14,16)+F13) -> 2.74555243 | P13: =IF('Input beam data'!X$23=0,1.2*'Input beam data'!X$17+0+1.2*'Input beam data'!X$21,'Input beam data'!X$23) -> 0 | Q13: =MAX(O13*Span^2/8+P13*MIN('Input beam data'!X$16,(Span-'Input beam data'!X$16))/2,P13*'Input beam data'!X$16*(Span-'Input beam data'!X$16)/Span+O13*Span*MIN('Input beam data'!X$16,(Span-'Input beam data'!X$16))/2*(1-MIN('Input beam data'!X$16,(Span-'Input beam data'!X$16))/Span)) -> 3.088746484 | R13: =O13*'Input beam data'!$E$15/2+P13*MAX('Input beam data'!X$16,(Span-'Input beam data'!X$16))/Span -> 4.118328646 | U13: =VLOOKUP((Q13/AJ13),VSGMSG8!$B$5:$I$11,7) -> 4 | V13: =VLOOKUP((Q13/AJ13),VSGMSG8!$B$12:$I$17,7) -> 2 | W13: =VLOOKUP((Q13/AJ13),VSGMSG8!$B$18:$I$23,7) -> 2 | X13: =VLOOKUP((Q13/AJ13),VSGMSG8!$B$24:$I$29,7) -> 2 | Y13: =VLOOKUP((Q13/AJ13),LVL!A$5:F$14,5) -> 3 | Z13: =VLOOKUP((Q13/AJ13),LVL!A$15:F$26,5) -> 3 | AA13: =VLOOKUP((Q13/AJ13),LVL!A$27:F$33,5) -> 0 | AB13: =VLOOKUP((Q13/AJ13),Glulam!$A$5:$D$20,4) -> 1 | AC13: =VLOOKUP((Q13/AJ13),Glulam!$A$12:$D$20,4) -> 1 | AD13: =VLOOKUP(Q13,Steel!$E$64:$G$84,3) -> 1 | AE13: =VLOOKUP(Q13,Steel!$E$26:$G$35,3) -> 1 | AF13: =VLOOKUP(Q13,Flitch!$A$5:$F$10,6) -> 0 | AG13: =VLOOKUP(Q13,Flitch!$A$44:$F$54,6) -> 0 | AJ13: 0.8 | AK13: =$R13*1000/'Basic data'!I$21 -> 228.7960359 | AL13: =$R13*1000/'Basic data'!J$21 -> 462.7335557 | AO13: MSG8 | AS13: LVL | AV13: GL | AX13: UB | AY13: MSC | AZ13: Flitch
Q14: Min: | R14: =MIN(R5:R13) -> -3.75791782 | T14: Max: | U14: =MAX(U5:U13) -> 5 | V14: =MAX(V5:V13) -> 4 | W14: 3 | X14: 3 | Y14: 5 | Z14: 4 | AA14: 1 | AB14: 2 | AC14: 2 | AD14: 1 | AE14: 1 | AF14: =MAX(AF5:AF13) -> 0 | AG14: =MAX(AG5:AG13) -> 0 | AK14: =MAX(AK5:AK13) -> 354.4627025 | AL14: =MAX(AL5:AL13) -> 716.8908591 | AN14: Max: | AO14: =MAX(U5:U13) -> 5 | AP14: =MAX(V5:V13) -> 4 | AQ14: 3 | AR14: 3 | AS14: 5 | AT14: 4 | AU14: 1 | AV14: 2 | AW14: 2 | AX14: 1 | AY14: 1 | AZ14: 0 | BA14: 0
A15: Application 2. Roof and wall | H15: (dry props) | AN15: 1st size iteration: | AO15: =MIN(AO14+1,6) -> 6 | AP15: =MIN(AP14+1,5) -> 5 | AQ15: 4 | AR15: 4 | AS15: =MIN(AS14+1,9) -> 6 | AT15: =MIN(AT14+1,11) -> 5 | AU15: =MIN(AU14+1,6) -> 2 | AV15: 3 | AW15: =MIN(AW14+1,8) -> 3 | AX15: =MIN(AX14+1,21) -> 2 | AY15: =MIN(AY14+1,10) -> 2 | AZ15: =MIN(AZ14+1,5) -> 1 | BA15: =MIN(BA14+1,10) -> 1
C16: Basic loads | AN16: 2nd iteration: | AO16: =MIN(AO15+1,6) -> 6 | AP16: 5 | AQ16: 5 | AR16: 5 | AS16: =MIN(AS15+1,9) -> 7 | AT16: =MIN(AT15+1,11) -> 6 | AU16: 3 | AV16: 4 | AW16: =MIN(AW15+1,8) -> 4 | AX16: =MIN(AX15+1,21) -> 3 | AY16: =MIN(AY15+1,10) -> 3 | AZ16: =MIN(AZ15+1,5) -> 2 | BA16: =MIN(BA15+1,10) -> 2
C17: Roof | I17: Upper wall | J17: Lower wall | K17: Floor/deck | O17: Actions | U17: Size index's | AH17: Deflection limits | AJ17: Strength | AN17: 3rd iteration: | AO17: =MIN(AO16+1,6) -> 6 | AP17: 5 | AQ17: 5 | AR17: 5 | AS17: =MIN(AS16+1,9) -> 8 | AT17: =MIN(AT16+1,11) -> 7 | AU17: 4 | AV17: 5 | AW17: =MIN(AW16+1,8) -> 5 | AX17: =MIN(AX16+1,21) -> 4 | AY17: =MIN(AY16+1,10) -> 4 | AZ17: =MIN(AZ16+1,5) -> 3 | BA17: =MIN(BA16+1,10) -> 3
A18: Load case | C18: G | D18: Ql | E18: Qs | F18: S | G18: W(e) | H18: W(r) | I18: G | J18: G | K18: G | L18: Ql | M18: Qs | N18: S | O18: UDL | P18: P | Q18: M* | R18: V* | S18: EI(s) | T18: EI(a) | U18: MSG8 | Y18: LVL | AB18: GL | AD18: UB | AE18: MSC | AF18: Flitch | AH18: (span/) | AI18: (mm) | AJ18: dur. fact. | AN18: 4th iteration: | AO18: 6 | AP18: 5 | AQ18: 5 | AR18: 5 | AS18: 9 | AT18: 11 | AU18: 6 | AV18: 6 | AW18: 8 | AX18: 21 | AY18: 10 | AZ18: 5 | BA18: 10
A19: 1 | B19: G+Ql | C19: =VLOOKUP('Basic data'!M$5,'Basic data'!$G$7:$Y$14,7) -> 0.85 | D19: 0 | I19: =VLOOKUP('Basic data'!O$5,'Basic data'!$G$7:$Y$14,9) -> 0.2 | O19: =('Input beam data'!$K$15+'Input beam data'!$O$17)*(C19/VLOOKUP('Basic data'!V$5,'Basic data'!$G$7:$Y$14,16)+D19)+I19*VLOOKUP('Basic data'!Y$5,'Basic data'!G$7:Y$14,19) -> 2.827960359 | P19: =IF('Input beam data'!X$23=0,'Input beam data'!X$17,'Input beam data'!X$23) -> 0 | S19: =(0.013*O19*Span^3+0.0298*P19*Span^2*(3*MIN('Input beam data'!X$16,Span-'Input beam data'!X$16)/Span-4*(MIN('Input beam data'!X$16,Span-'Input beam data'!X$16)/Span)^3))*AH19 -> 297.7842258 | T19: =(0.013*O19*Span^4+0.0208*P19*Span^3*(3*MIN('Input beam data'!X$16,Span-'Input beam data'!X$16)/Span-4*(MIN('Input beam data'!X$16,Span-'Input beam data'!X$16)/Span)^3))/(AI19/1000) -> 248.1535215 | U19: =VLOOKUP(MAX(S19:T19),VSGMSG8!G$5:I$11,2) -> 6 | V19: 1 | W19: =VLOOKUP(MAX(S19:T19),VSGMSG8!G$18:I$23,2) -> 3 | X19: =VLOOKUP(MAX(S19:T19),VSGMSG8!G$24:I$29,2) -> 4 | Y19: =VLOOKUP(MAX(S19:T19),LVL!D$5:F$14,2) -> 5 | Z19: =VLOOKUP(MAX(S19:T19),LVL!D$15:F$26,2) -> 4 | AA19: =VLOOKUP(MAX(S19:T19),LVL!D$27:F$33,2) -> 1 | AB19: =VLOOKUP(MAX(S19:T19),Glulam!C$5:E$11,2) -> 2 | AC19: =VLOOKUP(MAX(S19:T19),Glulam!C$12:E$20,2) -> 2 | AD19: =VLOOKUP(MAX(S19:T19),Steel!$F$4:$H$24,2) -> 1 | AE19: =VLOOKUP(MAX(S19:T19),Steel!$F$26:$H$35,2) -> 1 | AF19: =VLOOKUP(MAX(S19:T19),Flitch!$E$5:$F$10,2) -> 1 | AG19: =VLOOKUP(MAX(S19:T19),Flitch!E$44:F$54,2) -> 0 | AH19: 300 | AI19: 12
A20: 2 | B20: G+Qs | C20: =VLOOKUP('Basic data'!M$5,'Basic data'!$G$7:$Y$14,7) -> 0.85 | E20: =0.7*'Basic data'!$M$11 -> 0.175 | I20: =VLOOKUP('Basic data'!O$5,'Basic data'!$G$7:$Y$14,9) -> 0.2 | O20: =('Input beam data'!$K$15+'Input beam data'!$O$17)*(C20/VLOOKUP('Basic data'!V$5,'Basic data'!$G$7:$Y$14,16)+E20)+I20*VLOOKUP('Basic data'!Y$5,'Basic data'!G$7:Y$14,19) -> 3.282960359 | P20: =IF('Input beam data'!X$23=0,'Input beam data'!X$17+0.7*'Input beam data'!X$18,'Input beam data'!X$23) -> 0 | S20: =(0.013*O20*Span^3+0.0298*P20*Span^2*(3*MIN('Input beam data'!X$16,Span-'Input beam data'!X$16)/Span-4*(MIN('Input beam data'!X$16,Span-'Input beam data'!X$16)/Span)^3))*AH20 -> 345.6957258 | T20: =(0.013*O20*Span^4+0.0208*P20*Span^3*(3*MIN('Input beam data'!X$16,Span-'Input beam data'!X$16)/Span-4*(MIN('Input beam data'!X$16,Span-'Input beam data'!X$16)/Span)^3))/(AI20/1000) -> 288.0797715 | U20: =VLOOKUP(MAX(S20:T20),VSGMSG8!E$5:I$11,4) -> 5 | V20: 3 | W20: =VLOOKUP(MAX(S20:T20),VSGMSG8!E$18:I$23,4) -> 3 | X20: =VLOOKUP(MAX(S20:T20),VSGMSG8!E$24:I$29,4) -> 3 | Y20: =VLOOKUP(MAX(S20:T20),LVL!C$5:F$14,3) -> 5 | Z20: =VLOOKUP(MAX(S20:T20),LVL!C$15:F$26,3) -> 4 | AA20: =VLOOKUP(MAX(S20:T20),LVL!C$27:F$33,3) -> 1 | AB20: =VLOOKUP(MAX(S20:T20),Glulam!B$5:E$11,3) -> 2 | AC20: =VLOOKUP(MAX(S20:T20),Glulam!B$12:E$20,3) -> 1 | AD20: =VLOOKUP(MAX(S20:T20),Steel!$F$4:$H$24,2) -> 1 | AE20: =VLOOKUP(MAX(S20:T20),Steel!$F$26:$H$35,2) -> 1 | AF20: =VLOOKUP(MAX(S20:T20),Flitch!$D$5:$F$10,3) -> 1 | AG20: =VLOOKUP(MAX(S20:T20),Flitch!$D$44:$F$54,3) -> 0 | AH20: 300 | AI20: 12
A21: 3 | B21: Spare
A22: 4 | B22: G+S | C22: =VLOOKUP('Basic data'!M$5,'Basic data'!$G$7:$Y$14,7) -> 0.85 | E22: 0 | F22: =0.68*'Input beam data'!$O$9*VLOOKUP('Basic data'!$V$5,'Basic data'!$G$7:$Y$14,17) -> 0 | I22: =VLOOKUP('Basic data'!O$5,'Basic data'!$G$7:$Y$14,9) -> 0.2 | O22: =('Input beam data'!$K$15+'Input beam data'!$O$17)*(C22/VLOOKUP('Basic data'!V$5,'Basic data'!$G$7:$Y$14,16)+F22)+I22*VLOOKUP('Basic data'!Y$5,'Basic data'!G$7:Y$14,19) -> 2.827960359 | P22: =IF('Input beam data'!X$23=0,'Input beam data'!X$17+'Input beam data'!X$21,'Input beam data'!X$23) -> 0 | S22: =(0.013*O22*Span^3+0.0298*P22*Span^2*(3*MIN('Input beam data'!X$16,Span-'Input beam data'!X$16)/Span-4*(MIN('Input beam data'!X$16,Span-'Input beam data'!X$16)/Span)^3))*AH22 -> 297.7842258 | T22: =(0.013*O22*Span^4+0.0208*P22*Span^3*(3*MIN('Input beam data'!X$16,Span-'Input beam data'!X$16)/Span-4*(MIN('Input beam data'!X$16,Span-'Input beam data'!X$16)/Span)^3))/(AI22/1000) -> 248.1535215 | U22: =VLOOKUP(MAX(S22:T22),VSGMSG8!E$5:I$11,4) -> 5 | V22: 0 | W22: =VLOOKUP(MAX(S22:T22),VSGMSG8!E$18:I$23,4) -> 2 | X22: =VLOOKUP(MAX(S22:T22),VSGMSG8!E$24:I$29,4) -> 3 | Y22: =VLOOKUP(MAX(S22:T22),LVL!C$5:F$14,3) -> 4 | Z22: =VLOOKUP(MAX(S22:T22),LVL!C$15:F$26,3) -> 4 | AA22: =VLOOKUP(MAX(S22:T22),LVL!C$27:F$33,3) -> 1 | AB22: =VLOOKUP(MAX(S22:T22),Glulam!B$5:E$11,3) -> 2 | AC22: =VLOOKUP(MAX(S22:T22),Glulam!B$12:E$20,3) -> 1 | AD22: =VLOOKUP(MAX(S22:T22),Steel!$F$4:$H$24,2) -> 1 | AE22: =VLOOKUP(MAX(S22:T22),Steel!$F$26:$H$35,2) -> 1 | AF22: =VLOOKUP(MAX(S22:T22),Flitch!$D$5:$F$10,3) -> 0 | AG22: =VLOOKUP(MAX(S22:T22),Flitch!$D$44:$F$54,3) -> 0 | AH22: 300 | AI22: 12
A23: 5 | B23: 1.35G | C23: =VLOOKUP('Basic data'!M$5,'Basic data'!$G$7:$Y$14,7) -> 0.85 | I23: =VLOOKUP('Basic data'!O$5,'Basic data'!$G$7:$Y$14,9) -> 0.2 | O23: =('Input beam data'!$K$15+'Input beam data'!$O$17)*(1.35*C23/VLOOKUP('Basic data'!V$5,'Basic data'!$G$7:$Y$14,16))+1.35*I23*VLOOKUP('Basic data'!Y$5,'Basic data'!G$7:Y$14,19) -> 3.817746484 | P23: =IF('Input beam data'!X$23=0,1.35*'Input beam data'!X$17,'Input beam data'!X$23) -> 0 | Q23: =MAX(O23*Span^2/8+P23*MIN('Input beam data'!X$16,(Span-'Input beam data'!X$16))/2,P23*'Input beam data'!X$16*(Span-'Input beam data'!X$16)/Span+O23*Span*MIN('Input beam data'!X$16,(Span-'Input beam data'!X$16))/2*(1-MIN('Input beam data'!X$16,(Span-'Input beam data'!X$16))/Span)) -> 4.294964795 | R23: =O23*'Input beam data'!$E$15/2+P23*MAX('Input beam data'!X$16,(Span-'Input beam data'!X$16))/Span -> 5.726619726 | U23: =VLOOKUP((Q23/AJ23),VSGMSG8!$B$5:$I$11,7) -> 6 | V23: =VLOOKUP((Q23/AJ23),VSGMSG8!$B$12:$I$17,7) -> 3 | W23: =VLOOKUP((Q23/AJ23),VSGMSG8!$B$18:$I$23,7) -> 3 | X23: =VLOOKUP((Q23/AJ23),VSGMSG8!$B$24:$I$29,7) -> 3 | Y23: =VLOOKUP((Q23/AJ23),LVL!A$5:F$14,5) -> 4 | Z23: =VLOOKUP((Q23/AJ23),LVL!A$15:F$26,5) -> 3 | AA23: =VLOOKUP((Q23/AJ23),LVL!A$27:F$33,5) -> 0 | AB23: =VLOOKUP((Q23/AJ23),Glulam!$A$5:$D$20,4) -> 2 | AC23: =VLOOKUP((Q23/AJ23),Glulam!$A$12:$D$20,4) -> 2 | AD23: =VLOOKUP(Q23,Steel!$E$64:$G$84,3) -> 1 | AE23: =VLOOKUP(Q23,Steel!$E$26:$G$35,3) -> 1 | AF23: =VLOOKUP(Q23,Flitch!$B$5:$F$10,5) -> 0 | AG23: =VLOOKUP(Q23,Flitch!$B$44:$F$54,5) -> 0 | AJ23: 0.6 | AK23: =$R23*1000/'Basic data'!I$21 -> 318.1455404 | AL23: =$R23*1000/'Basic data'!J$21 -> 643.4404187
A24: 6 | B24: 1.2G+1.5Q | C24: =VLOOKUP('Basic data'!M$5,'Basic data'!$G$7:$Y$14,7) -> 0.85 | E24: ='Basic data'!M$11 -> 0.25 | I24: =VLOOKUP('Basic data'!O$5,'Basic data'!$G$7:$Y$14,9) -> 0.2 | O24: =('Input beam data'!$K$15+'Input beam data'!$O$17)*(1.2*C24/VLOOKUP('Basic data'!V$5,'Basic data'!$G$7:$Y$14,16)+1.5*E24)+1.2*I24*VLOOKUP('Basic data'!Y$5,'Basic data'!G$7:Y$14,19) -> 4.36855243 | P24: =IF('Input beam data'!X$23=0,1.2*'Input beam data'!X$17+1.5*'Input beam data'!X$18,'Input beam data'!X$23) -> 0 | Q24: =MAX(O24*Span^2/8+P24*MIN('Input beam data'!X$16,(Span-'Input beam data'!X$16))/2,P24*'Input beam data'!X$16*(Span-'Input beam data'!X$16)/Span+O24*Span*MIN('Input beam data'!X$16,(Span-'Input beam data'!X$16))/2*(1-MIN('Input beam data'!X$16,(Span-'Input beam data'!X$16))/Span)) -> 4.914621484 | R24: =O24*'Input beam data'!$E$15/2+P24*MAX('Input beam data'!X$16,(Span-'Input beam data'!X$16))/Span -> 6.552828646 | U24: =VLOOKUP((Q24/AJ24),VSGMSG8!$B$5:$I$11,7) -> 5 | V24: 4 | W24: =VLOOKUP((Q24/AJ24),VSGMSG8!$B$18:$I$23,7) -> 2 | X24: =VLOOKUP((Q24/AJ24),VSGMSG8!$B$24:$I$29,7) -> 3 | Y24: =VLOOKUP((Q24/AJ24),LVL!A$5:F$14,5) -> 4 | Z24: =VLOOKUP((Q24/AJ24),LVL!A$15:F$26,5) -> 3 | AA24: =VLOOKUP((Q24/AJ24),LVL!A$27:F$33,5) -> 0 | AB24: =VLOOKUP((Q24/AJ24),Glulam!$A$5:$D$20,4) -> 2 | AC24: =VLOOKUP((Q24/AJ24),Glulam!$A$12:$D$20,4) -> 2 | AD24: =VLOOKUP(Q24,Steel!$E$64:$G$84,3) -> 1 | AE24: =VLOOKUP(Q24,Steel!$E$26:$G$35,3) -> 1 | AF24: =VLOOKUP(Q24,Flitch!$A$5:$F$10,6) -> 0 | AG24: =VLOOKUP(Q24,Flitch!$A$44:$F$54,6) -> 0 | AJ24: 0.8 | AK24: =$R24*1000/'Basic data'!I$21 -> 364.0460359 | AL24: =$R24*1000/'Basic data'!J$21 -> 736.2728815
A25: 7 | B25: 1.2G+yQ+W | C25: =VLOOKUP('Basic data'!M$5,'Basic data'!$G$7:$Y$14,7) -> 0.85 | E25: 0 | G25: =VLOOKUP('Basic data'!I$5,'Basic data'!$G$7:$Y$14,3)*'Basic data'!D$19*'Basic data'!F$19*'Basic data'!G$19 -> 0.232 | H25: =VLOOKUP('Basic data'!I$5,'Basic data'!$G$7:$Y$14,3)*'Basic data'!E$19*'Basic data'!F$19*'Basic data'!G$19 -> 0.58 | I25: =VLOOKUP('Basic data'!O$5,'Basic data'!$G$7:$Y$14,9) -> 0.2 | O25: =('Input beam data'!$K$15+'Input beam data'!$O$17)*(1.2*C25/VLOOKUP('Basic data'!V$5,'Basic data'!$G$7:$Y$14,16)+H25)+1.2*I25*VLOOKUP('Basic data'!Y$5,'Basic data'!G$7:Y$14,19) -> 4.90155243 | P25: =IF('Input beam data'!X$23=0,1.2*'Input beam data'!X$17+0+'Input beam data'!X$20,'Input beam data'!X$23) -> 0 | Q25: =MAX(O25*Span^2/8+P25*MIN('Input beam data'!X$16,(Span-'Input beam data'!X$16))/2,P25*'Input beam data'!X$16*(Span-'Input beam data'!X$16)/Span+O25*Span*MIN('Input beam data'!X$16,(Span-'Input beam data'!X$16))/2*(1-MIN('Input beam data'!X$16,(Span-'Input beam data'!X$16))/Span)) -> 5.514246484 | R25: =O25*'Input beam data'!$E$15/2+P25*MAX('Input beam data'!X$16,(Span-'Input beam data'!X$16))/Span -> 7.352328646 | U25: =VLOOKUP((Q25/AJ25),VSGMSG8!$B$5:$I$11,7) -> 5 | V25: =VLOOKUP((Q25/AJ25),VSGMSG8!$B$12:$I$17,7) -> 3 | W25: =VLOOKUP((Q25/AJ25),VSGMSG8!$B$18:$I$23,7) -> 2 | X25: =VLOOKUP((Q25/AJ25),VSGMSG8!$B$24:$I$29,7) -> 2 | Y25: =VLOOKUP((Q25/AJ25),LVL!A$5:F$14,5) -> 4 | Z25: =VLOOKUP((Q25/AJ25),LVL!A$15:F$26,5) -> 3 | AA25: =VLOOKUP((Q25/AJ25),LVL!A$27:F$33,5) -> 0 | AB25: =VLOOKUP((Q25/AJ25),Glulam!$A$5:$D$20,4) -> 1 | AC25: =VLOOKUP((Q25/AJ25),Glulam!$A$12:$D$20,4) -> 1 | AD25: =VLOOKUP(Q25,Steel!$E$64:$G$84,3) -> 1 | AE25: =VLOOKUP(Q25,Steel!$E$26:$G$35,3) -> 1 | AF25: =VLOOKUP(Q25,Flitch!$A$5:$F$10,6) -> 0 | AG25: =VLOOKUP(Q25,Flitch!$A$44:$F$54,6) -> 0 | AJ25: 1 | AK25: =$R25*1000/'Basic data'!I$21 -> 408.4627025 | AL25: =$R25*1000/'Basic data'!J$21 -> 826.1043422
A26: 8 | B26: .9G+W | C26: =VLOOKUP((2+'Basic data'!M$5),'Basic data'!$G$7:$Y$14,7) -> 0.4 | G26: =VLOOKUP('Basic data'!I$5,'Basic data'!$G$7:$Y$14,3)*'Basic data'!D$20*'Basic data'!F$20*'Basic data'!G$20 -> 1.856 | H26: =VLOOKUP('Basic data'!I$5,'Basic data'!$G$7:$Y$14,3)*'Basic data'!E$20*'Basic data'!F$20*'Basic data'!G$20 -> 1.1136 | I26: =VLOOKUP((2+'Basic data'!O$5),'Basic data'!$G$7:$Y$14,9) -> 0.1 | O26: =LD*(0.9*C26/VLOOKUP('Basic data'!V$5,'Basic data'!$G$7:$Y$14,16)-H26)+Overhang*(0.9*C26/VLOOKUP('Basic data'!V$5,'Basic data'!$G$7:$Y$14,16)-G26)*((LD+Overhang/2)/LD)+0.9*I26*VLOOKUP('Basic data'!Y$5,'Basic data'!G$7:Y$14,19) -> -2.262278547 | P26: =IF('Input beam data'!X$23=0,0.9*'Input beam data'!X$17+'Input beam data'!X$19,'Input beam data'!X$23) -> 0 | Q26: =MAX(ABS(O26*Span^2/8+P26*MIN('Input beam data'!X$16,(Span-'Input beam data'!X$16))/2),ABS(P26*'Input beam data'!X$16*(Span-'Input beam data'!X$16)/Span+O26*Span*MIN('Input beam data'!X$16,(Span-'Input beam data'!X$16))/2*(1-MIN('Input beam data'!X$16,(Span-'Input beam data'!X$16))/Span))) -> 2.545063365 | R26: =O26*'Input beam data'!$E$15/2+P26*MAX('Input beam data'!X$16,(Span-'Input beam data'!X$16))/Span -> -3.39341782 | U26: =VLOOKUP((Q26/AJ26),VSGMSG8!$C$5:$H$11,6) -> 3 | V26: =VLOOKUP((Q26/AJ26),VSGMSG8!$C$12:$H$17,6) -> 1 | W26: =VLOOKUP((Q26/AJ26),VSGMSG8!$C$18:$H$23,6) -> 1 | X26: =VLOOKUP((Q26/AJ26),VSGMSG8!$C$24:$H$29,6) -> 1 | Y26: =VLOOKUP((Q26/AJ26),LVL!B$5:F$14,4) -> 2 | Z26: =VLOOKUP((Q26/AJ26),LVL!B$15:F$26,4) -> 3 | AA26: =VLOOKUP((Q26/AJ26),LVL!B$27:F$33,4) -> 0 | AB26: =VLOOKUP((Q26/AJ26),Glulam!$A$5:$D$20,4) -> 0 | AC26: =VLOOKUP((Q26/AJ26),Glulam!$A$12:$D$20,4) -> 0 | AD26: =VLOOKUP(Q26,Steel!$D$39:$G$59,4) -> 1 | AE26: =VLOOKUP(Q26,Steel!$D$26:$G$35,4) -> 1 | AF26: =VLOOKUP(Q26,Flitch!$C$5:$F$10,4) -> 0 | AG26: =VLOOKUP(Q26,Flitch!$C$44:$F$54,4) -> 0 | AJ26: 1 | AK26: =-$R26*1000/'Basic data'!I$21 -> 188.5232122 | AL26: =-$R26*1000/'Basic data'!J$21 -> 381.2829012
A27: 9 | B27: 1.2G+yQ+S | C27: =VLOOKUP('Basic data'!M$5,'Basic data'!$G$7:$Y$14,7) -> 0.85 | E27: 0 | F27: ='Input beam data'!$O$9*VLOOKUP('Basic data'!$V$5,'Basic data'!$G$7:$Y$14,17) -> 0 | I27: =VLOOKUP('Basic data'!O$5,'Basic data'!$G$7:$Y$14,9) -> 0.2 | O27: =('Input beam data'!$K$15+'Input beam data'!$O$17)*(1.2*C27/VLOOKUP('Basic data'!V$5,'Basic data'!$G$7:$Y$14,16)+F27)+1.2*I27*VLOOKUP('Basic data'!Y$5,'Basic data'!G$7:Y$14,19) -> 3.39355243 | P27: =IF('Input beam data'!X$23=0,1.2*'Input beam data'!X$17+0+1.2*'Input beam data'!X$21,'Input beam data'!X$23) -> 0 | Q27: =MAX(O27*Span^2/8+P27*MIN('Input beam data'!X$16,(Span-'Input beam data'!X$16))/2,P27*'Input beam data'!X$16*(Span-'Input beam data'!X$16)/Span+O27*Span*MIN('Input beam data'!X$16,(Span-'Input beam data'!X$16))/2*(1-MIN('Input beam data'!X$16,(Span-'Input beam data'!X$16))/Span)) -> 3.817746484 | R27: =O27*'Input beam data'!$E$15/2+P27*MAX('Input beam data'!X$16,(Span-'Input beam data'!X$16))/Span -> 5.090328646 | U27: =VLOOKUP((Q27/AJ27),VSGMSG8!$B$5:$I$11,7) -> 4 | V27: =VLOOKUP((Q27/AJ27),VSGMSG8!$B$12:$I$17,7) -> 3 | W27: =VLOOKUP((Q27/AJ27),VSGMSG8!$B$18:$I$23,7) -> 2 | X27: =VLOOKUP((Q27/AJ27),VSGMSG8!$B$24:$I$29,7) -> 2 | Y27: =VLOOKUP((Q27/AJ27),LVL!A$5:F$14,5) -> 4 | Z27: =VLOOKUP((Q27/AJ27),LVL!A$15:F$26,5) -> 3 | AA27: =VLOOKUP((Q27/AJ27),LVL!A$27:F$33,5) -> 0 | AB27: =VLOOKUP((Q27/AJ27),Glulam!$A$5:$D$20,4) -> 1 | AC27: =VLOOKUP((Q27/AJ27),Glulam!$A$12:$D$20,4) -> 1 | AD27: =VLOOKUP(Q27,Steel!$E$64:$G$84,3) -> 1 | AE27: =VLOOKUP(Q27,Steel!$E$26:$G$35,3) -> 1 | AF27: =VLOOKUP(Q27,Flitch!$A$5:$F$10,6) -> 0 | AG27: =VLOOKUP(Q27,Flitch!$A$44:$F$54,6) -> 0 | AJ27: 0.8 | AK27: =$R27*1000/'Basic data'!I$21 -> 282.7960359 | AL27: =$R27*1000/'Basic data'!J$21 -> 571.9470388
Q28: Min: | R28: =MIN(R19:R27) -> -3.39341782 | T28: Max: | U28: =MAX(U19:U27) -> 6 | V28: 4 | W28: 3 | X28: 4 | Y28: 5 | Z28: 4 | AA28: 1 | AB28: 2 | AC28: 2 | AD28: 1 | AE28: 1 | AF28: =MAX(AF19:AF27) -> 1 | AG28: =MAX(AG19:AG27) -> 0 | AK28: =MAX(AK19:AK27) -> 408.4627025 | AL28: =MAX(AL19:AL27) -> 826.1043422
A29: Application 3. Roof wall and floor | I29: (dry props)
C30: Basic loads | L30: Note: #DIV/0 only because some parameters are not relevant to the application currently selected
C31: Roof | I31: Upper wall | J31: Lower wall | K31: Floor/deck | O31: Actions | U31: Size index's | AH31: Deflection limits | AJ31: Strength
A32: Load case | C32: G | D32: Ql | E32: Qs | F32: S | G32: W(e) | H32: W(r) | I32: G | J32: G | K32: G | L32: Ql | M32: Qs | N32: S | O32: UDL | P32: P | Q32: M* | R32: V* | S32: EI(s) | T32: EI(a) | U32: MSG8 | Y32: LVL | AB32: GL | AD32: UB | AE32: MSC | AF32: Flitch | AH32: (span/) | AI32: (mm) | AJ32: dur. fact.
A33: 1 | B33: G+Ql | C33: =VLOOKUP('Basic data'!M$5,'Basic data'!$G$7:$Y$14,7) -> 0.85 | D33: 0 | I33: =VLOOKUP('Basic data'!O$5,'Basic data'!$G$7:$Y$14,9) -> 0.2 | K33: ='Basic data'!S$7 -> 0.4 | L33: =0.4*(MAX(MIN(1,0.3+3/('Input beam data'!$E$15*'Input beam data'!$K$21)^0.5),0.5))*VLOOKUP('Basic data'!Q$5,'Basic data'!G$7:Y$14,11) -> 0.6 | O33: =('Input beam data'!$K$15+'Input beam data'!$O$17)*(C33/VLOOKUP('Basic data'!V$5,'Basic data'!$G$7:$Y$14,16)+D33)+I33*VLOOKUP('Basic data'!Y$5,'Basic data'!G$7:Y$14,19)+'Input beam data'!$K$21*(Calc!K33+Calc!L33) -> 5.827960359 | P33: =IF('Input beam data'!X$23=0,'Input beam data'!X$17,'Input beam data'!X$23) -> 0 | S33: =(0.013*O33*Span^3+0.0298*P33*Span^2*(3*MIN('Input beam data'!X$16,Span-'Input beam data'!X$16)/Span-4*(MIN('Input beam data'!X$16,Span-'Input beam data'!X$16)/Span)^3))*AH33 -> 613.6842258 | T33: =(0.013*O33*Span^4+0.0208*P33*Span^3*(3*MIN('Input beam data'!X$16,Span-'Input beam data'!X$16)/Span-4*(MIN('Input beam data'!X$16,Span-'Input beam data'!X$16)/Span)^3))/(AI33/1000) -> 511.4035215 | U33: =VLOOKUP(MAX(S33:T33),VSGMSG8!G$5:I$11,2) -> 6 | V33: =VLOOKUP(MAX(S33:T33),VSGMSG8!G$12:I$17,2) -> 5 | W33: =VLOOKUP(MAX(S33:T33),VSGMSG8!G$18:I$23,2) -> 5 | X33: =VLOOKUP(MAX(S33:T33),VSGMSG8!G$24:I$29,2) -> 5 | Y33: =VLOOKUP(MAX(S33:T33),LVL!D$5:F$14,2) -> 6 | Z33: =VLOOKUP(MAX(S33:T33),LVL!D$15:F$26,2) -> 6 | AA33: =VLOOKUP(MAX(S33:T33),LVL!D$27:F$33,2) -> 2 | AB33: =VLOOKUP(MAX(S33:T33),Glulam!C$5:E$11,2) -> 4 | AC33: =VLOOKUP(MAX(S33:T33),Glulam!C$12:E$20,2) -> 3 | AD33: =VLOOKUP(MAX(S33:T33),Steel!$F$4:$H$24,2) -> 1 | AE33: =VLOOKUP(MAX(S33:T33),Steel!$F$26:$H$35,2) -> 2 | AF33: =VLOOKUP(MAX(S33:T33),Flitch!$E$5:$F$10,2) -> 1 | AG33: =VLOOKUP(MAX(S33:T33),Flitch!E$44:F$54,2) -> 1 | AH33: 300 | AI33: 12
A34: 2 | B34: G+Qs | C34: =VLOOKUP('Basic data'!M$5,'Basic data'!$G$7:$Y$14,7) -> 0.85 | E34: =0.7*'Basic data'!$M$11 -> 0.175 | I34: =VLOOKUP('Basic data'!O$5,'Basic data'!$G$7:$Y$14,9) -> 0.2 | K34: ='Basic data'!S$7 -> 0.4 | M34: =0.7*(MAX(MIN(1,0.3+3/('Input beam data'!$E$15*'Input beam data'!$K$21)^0.5),0.5))*VLOOKUP('Basic data'!Q$5,'Basic data'!G$7:Y$14,11) -> 1.05 | O34: =('Input beam data'!$K$15+'Input beam data'!$O$17)*(C34/VLOOKUP('Basic data'!V$5,'Basic data'!$G$7:$Y$14,16)+E34)+I34*VLOOKUP('Basic data'!Y$5,'Basic data'!G$7:Y$14,19)+'Input beam data'!$K$21*(Calc!K34+Calc!M34) -> 7.632960359 | P34: =IF('Input beam data'!X$23=0,'Input beam data'!X$17+0.7*'Input beam data'!X$18,'Input beam data'!X$23) -> 0 | S34: =(0.013*O34*Span^3+0.0298*P34*Span^2*(3*MIN('Input beam data'!X$16,Span-'Input beam data'!X$16)/Span-4*(MIN('Input beam data'!X$16,Span-'Input beam data'!X$16)/Span)^3))*AH34 -> 803.7507258 | T34: =(0.013*O34*Span^4+0.0208*P34*Span^3*(3*MIN('Input beam data'!X$16,Span-'Input beam data'!X$16)/Span-4*(MIN('Input beam data'!X$16,Span-'Input beam data'!X$16)/Span)^3))/(AI34/1000) -> 669.7922715 | U34: =VLOOKUP(MAX(S34:T34),VSGMSG8!E$5:I$11,4) -> 6 | V34: =VLOOKUP(MAX(S34:T34),VSGMSG8!E$12:I$17,4) -> 5 | W34: =VLOOKUP(MAX(S34:T34),VSGMSG8!E$18:I$23,4) -> 4 | X34: =VLOOKUP(MAX(S34:T34),VSGMSG8!E$24:I$29,4) -> 4 | Y34: =VLOOKUP(MAX(S34:T34),LVL!C$5:F$14,3) -> 6 | Z34: =VLOOKUP(MAX(S34:T34),LVL!C$15:F$26,3) -> 6 | AA34: =VLOOKUP(MAX(S34:T34),LVL!C$27:F$33,3) -> 2 | AB34: =VLOOKUP(MAX(S34:T34),Glulam!B$5:E$11,3) -> 3 | AC34: =VLOOKUP(MAX(S34:T34),Glulam!B$12:E$20,3) -> 3 | AD34: =VLOOKUP(MAX(S34:T34),Steel!$F$4:$H$24,2) -> 1 | AE34: =VLOOKUP(MAX(S34:T34),Steel!$F$26:$H$35,2) -> 2 | AF34: =VLOOKUP(MAX(S34:T34),Flitch!$D$5:$F$10,3) -> 1 | AG34: =VLOOKUP(MAX(S34:T34),Flitch!$D$44:$F$54,3) -> 1 | AH34: 300 | AI34: 12
A35: 3 | B35: Spare
A36: 4 | B36: G+S | C36: =VLOOKUP('Basic data'!M$5,'Basic data'!$G$7:$Y$14,7) -> 0.85 | E36: 0 | F36: =0.68*'Input beam data'!$O$9*VLOOKUP('Basic data'!$V$5,'Basic data'!$G$7:$Y$14,17) -> 0 | I36: =VLOOKUP('Basic data'!O$5,'Basic data'!$G$7:$Y$14,9) -> 0.2 | K36: ='Basic data'!S$7 -> 0.4 | M36: =0.7*(MAX(MIN(1,0.3+3/('Input beam data'!$E$15*'Input beam data'!$K$21)^0.5),0.5))*VLOOKUP('Basic data'!Q$5,'Basic data'!G$7:Y$14,11) -> 1.05 | O36: =('Input beam data'!$K$15+'Input beam data'!$O$17)*(C36/VLOOKUP('Basic data'!V$5,'Basic data'!$G$7:$Y$14,16)+F36)+I36*VLOOKUP('Basic data'!Y$5,'Basic data'!G$7:Y$14,19)+'Input beam data'!$K$21*(Calc!K36+Calc!M36) -> 7.177960359 | P36: =IF('Input beam data'!X$23=0,'Input beam data'!X$17+'Input beam data'!X$21,'Input beam data'!X$23) -> 0 | S36: =(0.013*O36*Span^3+0.0298*P36*Span^2*(3*MIN('Input beam data'!X$16,Span-'Input beam data'!X$16)/Span-4*(MIN('Input beam data'!X$16,Span-'Input beam data'!X$16)/Span)^3))*AH36 -> 755.8392258 | T36: =(0.013*O36*Span^4+0.0208*P36*Span^3*(3*MIN('Input beam data'!X$16,Span-'Input beam data'!X$16)/Span-4*(MIN('Input beam data'!X$16,Span-'Input beam data'!X$16)/Span)^3))/(AI36/1000) -> 629.8660215 | U36: =VLOOKUP(MAX(S36:T36),VSGMSG8!E$5:I$11,4) -> 6 | V36: =VLOOKUP(MAX(S36:T36),VSGMSG8!E$12:I$17,4) -> 4 | W36: =VLOOKUP(MAX(S36:T36),VSGMSG8!E$18:I$23,4) -> 4 | X36: =VLOOKUP(MAX(S36:T36),VSGMSG8!E$24:I$29,4) -> 4 | Y36: =VLOOKUP(MAX(S36:T36),LVL!C$5:F$14,3) -> 6 | Z36: =VLOOKUP(MAX(S36:T36),LVL!C$15:F$26,3) -> 5 | AA36: =VLOOKUP(MAX(S36:T36),LVL!C$27:F$33,3) -> 2 | AB36: =VLOOKUP(MAX(S36:T36),Glulam!B$5:E$11,3) -> 3 | AC36: =VLOOKUP(MAX(S36:T36),Glulam!B$12:E$20,3) -> 3 | AD36: =VLOOKUP(MAX(S36:T36),Steel!$F$4:$H$24,2) -> 1 | AE36: =VLOOKUP(MAX(S36:T36),Steel!$F$26:$H$35,2) -> 2 | AF36: =VLOOKUP(MAX(S36:T36),Flitch!$D$5:$F$10,3) -> 1 | AG36: =VLOOKUP(MAX(S36:T36),Flitch!$D$44:$F$54,3) -> 1 | AH36: 300 | AI36: 12
A37: 5 | B37: 1.35G | C37: =VLOOKUP('Basic data'!M$5,'Basic data'!$G$7:$Y$14,7) -> 0.85 | I37: =VLOOKUP('Basic data'!O$5,'Basic data'!$G$7:$Y$14,9) -> 0.2 | K37: ='Basic data'!S$7 -> 0.4 | M37: 0 | O37: =('Input beam data'!$K$15+'Input beam data'!$O$17)*(1.35*C37/VLOOKUP('Basic data'!V$5,'Basic data'!$G$7:$Y$14,16))+1.35*I37*VLOOKUP('Basic data'!Y$5,'Basic data'!G$7:Y$14,19)+1.35*'Input beam data'!$K$21*Calc!K37 -> 5.437746484 | P37: =IF('Input beam data'!X$23=0,1.35*'Input beam data'!X$17,'Input beam data'!X$23) -> 0 | Q37: =MAX(O37*Span^2/8+P37*MIN('Input beam data'!X$16,(Span-'Input beam data'!X$16))/2,P37*'Input beam data'!X$16*(Span-'Input beam data'!X$16)/Span+O37*Span*MIN('Input beam data'!X$16,(Span-'Input beam data'!X$16))/2*(1-MIN('Input beam data'!X$16,(Span-'Input beam data'!X$16))/Span)) -> 6.117464795 | R37: =O37*'Input beam data'!$E$15/2+P37*MAX('Input beam data'!X$16,(Span-'Input beam data'!X$16))/Span -> 8.156619726 | U37: =VLOOKUP((Q37/AJ37),VSGMSG8!$B$5:$I$11,7) -> 6 | V37: =VLOOKUP((Q37/AJ37),VSGMSG8!$B$12:$I$17,7) -> 4 | W37: =VLOOKUP((Q37/AJ37),VSGMSG8!$B$18:$I$23,7) -> 3 | X37: =VLOOKUP((Q37/AJ37),VSGMSG8!$B$24:$I$29,7) -> 4 | Y37: =VLOOKUP((Q37/AJ37),LVL!A$5:F$14,5) -> 5 | Z37: =VLOOKUP((Q37/AJ37),LVL!A$15:F$26,5) -> 4 | AA37: =VLOOKUP((Q37/AJ37),LVL!A$27:F$33,5) -> 1 | AB37: =VLOOKUP((Q37/AJ37),Glulam!$A$5:$D$20,4) -> 3 | AC37: =VLOOKUP((Q37/AJ37),Glulam!$A$12:$D$20,4) -> 3 | AD37: =VLOOKUP(Q37,Steel!$E$64:$G$84,3) -> 1 | AE37: =VLOOKUP(Q37,Steel!$E$26:$G$35,3) -> 2 | AF37: =VLOOKUP(Q37,Flitch!$B$5:$F$10,5) -> 1 | AG37: =VLOOKUP(Q37,Flitch!$B$44:$F$54,5) -> 1 | AJ37: 0.6 | AK37: =$R37*1000/'Basic data'!I$21 -> 453.1455404 | AL37: =$R37*1000/'Basic data'!J$21 -> 916.4741266
A38: 6 | B38: 1.2G+1.5Q | C38: =VLOOKUP('Basic data'!M$5,'Basic data'!$G$7:$Y$14,7) -> 0.85 | E38: ='Basic data'!M$11 -> 0.25 | I38: =VLOOKUP('Basic data'!O$5,'Basic data'!$G$7:$Y$14,9) -> 0.2 | K38: ='Basic data'!S$7 -> 0.4 | M38: =(MAX(MIN(1,0.3+3/('Input beam data'!$E$15*'Input beam data'!$K$21)^0.5),0.5))*VLOOKUP('Basic data'!Q$5,'Basic data'!G$7:Y$14,11) -> 1.5 | O38: =('Input beam data'!$K$15+'Input beam data'!$O$17)*(1.2*C38/VLOOKUP('Basic data'!V$5,'Basic data'!$G$7:$Y$14,16)+1.5*E38)+1.2*I38*VLOOKUP('Basic data'!Y$5,'Basic data'!G$7:Y$14,19)+'Input beam data'!$K$21*(1.2*Calc!K38+1.5*Calc!M38) -> 12.55855243 | P38: =IF('Input beam data'!X$23=0,1.2*'Input beam data'!X$17+1.5*'Input beam data'!X$18,'Input beam data'!X$23) -> 0 | Q38: =MAX(O38*Span^2/8+P38*MIN('Input beam data'!X$16,(Span-'Input beam data'!X$16))/2,P38*'Input beam data'!X$16*(Span-'Input beam data'!X$16)/Span+O38*Span*MIN('Input beam data'!X$16,(Span-'Input beam data'!X$16))/2*(1-MIN('Input beam data'!X$16,(Span-'Input beam data'!X$16))/Span)) -> 14.12837148 | R38: =O38*'Input beam data'!$E$15/2+P38*MAX('Input beam data'!X$16,(Span-'Input beam data'!X$16))/Span -> 18.83782865 | U38: =VLOOKUP((Q38/AJ38),VSGMSG8!$B$5:$I$11,7) -> 6 | V38: =VLOOKUP((Q38/AJ38),VSGMSG8!$B$12:$I$17,7) -> 5 | W38: =VLOOKUP((Q38/AJ38),VSGMSG8!$B$18:$I$23,7) -> 5 | X38: =VLOOKUP((Q38/AJ38),VSGMSG8!$B$24:$I$29,7) -> 5 | Y38: =VLOOKUP((Q38/AJ38),LVL!A$5:F$14,5) -> 6 | Z38: =VLOOKUP((Q38/AJ38),LVL!A$15:F$26,5) -> 5 | AA38: =VLOOKUP((Q38/AJ38),LVL!A$27:F$33,5) -> 2 | AB38: =VLOOKUP((Q38/AJ38),Glulam!$A$5:$D$20,4) -> 4 | AC38: =VLOOKUP((Q38/AJ38),Glulam!$A$12:$D$20,4) -> 4 | AD38: =VLOOKUP(Q38,Steel!$E$64:$G$84,3) -> 2 | AE38: =VLOOKUP(Q38,Steel!$E$26:$G$35,3) -> 3 | AF38: =VLOOKUP(Q38,Flitch!$A$5:$F$10,6) -> 1 | AG38: =VLOOKUP(Q38,Flitch!$A$44:$F$54,6) -> 2 | AJ38: 0.8 | AK38: =$R38*1000/'Basic data'!I$21 -> 1046.546036 | AL38: =$R38*1000/'Basic data'!J$21 -> 2116.60996
A39: 7 | B39: 1.2G+yQ+W | C39: =VLOOKUP('Basic data'!M$5,'Basic data'!$G$7:$Y$14,7) -> 0.85 | E39: 0 | G39: =VLOOKUP('Basic data'!I$5,'Basic data'!$G$7:$Y$14,3)*'Basic data'!D$19*'Basic data'!F$19*'Basic data'!G$19 -> 0.232 | H39: =VLOOKUP('Basic data'!I$5,'Basic data'!$G$7:$Y$14,3)*'Basic data'!E$19*'Basic data'!F$19*'Basic data'!G$19 -> 0.58 | I39: =VLOOKUP('Basic data'!O$5,'Basic data'!$G$7:$Y$14,9) -> 0.2 | K39: ='Basic data'!S$7 -> 0.4 | M39: =0.4*(MAX(MIN(1,0.3+3/('Input beam data'!$E$15*'Input beam data'!$K$21)^0.5),0.5))*VLOOKUP('Basic data'!Q$5,'Basic data'!G$7:Y$14,11) -> 0.6 | O39: =('Input beam data'!$K$15+'Input beam data'!$O$17)*(1.2*C39/VLOOKUP('Basic data'!V$5,'Basic data'!$G$7:$Y$14,16)+H39)+1.2*I39*VLOOKUP('Basic data'!Y$5,'Basic data'!G$7:Y$14,19)+'Input beam data'!$K$21*(1.2*Calc!K39+Calc!M39) -> 8.14155243 | P39: =IF('Input beam data'!X$23=0,1.2*'Input beam data'!X$17+0+'Input beam data'!X$20,'Input beam data'!X$23) -> 0 | Q39: =MAX(O39*Span^2/8+P39*MIN('Input beam data'!X$16,(Span-'Input beam data'!X$16))/2,P39*'Input beam data'!X$16*(Span-'Input beam data'!X$16)/Span+O39*Span*MIN('Input beam data'!X$16,(Span-'Input beam data'!X$16))/2*(1-MIN('Input beam data'!X$16,(Span-'Input beam data'!X$16))/Span)) -> 9.159246484 | R39: =O39*'Input beam data'!$E$15/2+P39*MAX('Input beam data'!X$16,(Span-'Input beam data'!X$16))/Span -> 12.21232865 | U39: =VLOOKUP((Q39/AJ39),VSGMSG8!$B$5:$I$11,7) -> 6 | V39: =VLOOKUP((Q39/AJ39),VSGMSG8!$B$12:$I$17,7) -> 4 | W39: =VLOOKUP((Q39/AJ39),VSGMSG8!$B$18:$I$23,7) -> 3 | X39: =VLOOKUP((Q39/AJ39),VSGMSG8!$B$24:$I$29,7) -> 3 | Y39: =VLOOKUP((Q39/AJ39),LVL!A$5:F$14,5) -> 5 | Z39: =VLOOKUP((Q39/AJ39),LVL!A$15:F$26,5) -> 3 | AA39: =VLOOKUP((Q39/AJ39),LVL!A$27:F$33,5) -> 0 | AB39: =VLOOKUP((Q39/AJ39),Glulam!$A$5:$D$20,4) -> 2 | AC39: =VLOOKUP((Q39/AJ39),Glulam!$A$12:$D$20,4) -> 2 | AD39: =VLOOKUP(Q39,Steel!$E$64:$G$84,3) -> 1 | AE39: =VLOOKUP(Q39,Steel!$E$26:$G$35,3) -> 2 | AF39: =VLOOKUP(Q39,Flitch!$A$5:$F$10,6) -> 1 | AG39: =VLOOKUP(Q39,Flitch!$A$44:$F$54,6) -> 1 | AJ39: 1 | AK39: =$R39*1000/'Basic data'!I$21 -> 678.4627025 | AL39: =$R39*1000/'Basic data'!J$21 -> 1372.171758
A40: 8 | B40: .9G+W | C40: =VLOOKUP((2+'Basic data'!M$5),'Basic data'!$G$7:$Y$14,7) -> 0.4 | G40: =VLOOKUP('Basic data'!I$5,'Basic data'!$G$7:$Y$14,3)*'Basic data'!D$20*'Basic data'!F$20*'Basic data'!G$20 -> 1.856 | H40: =VLOOKUP('Basic data'!I$5,'Basic data'!$G$7:$Y$14,3)*'Basic data'!E$20*'Basic data'!F$20*'Basic data'!G$20 -> 1.1136 | I40: =VLOOKUP((2+'Basic data'!O$5),'Basic data'!$G$7:$Y$14,9) -> 0.1 | K40: ='Basic data'!S$7 -> 0.4 | M40: 0 | O40: =LD*(0.9*C40/VLOOKUP('Basic data'!V$5,'Basic data'!$G$7:$Y$14,16)-H40)+Overhang*(0.9*C40/VLOOKUP('Basic data'!V$5,'Basic data'!$G$7:$Y$14,16)-G40)*((LD+Overhang/2)/LD)+0.9*I40*VLOOKUP('Basic data'!Y$5,'Basic data'!G$7:Y$14,19)+'Input beam data'!$K$21*(1.2*Calc!K40) -> -0.8222785469 | P40: =IF('Input beam data'!X$23=0,0.9*'Input beam data'!X$17+'Input beam data'!X$19,'Input beam data'!X$23) -> 0 | Q40: =MAX(ABS(O40*Span^2/8+P40*MIN('Input beam data'!X$16,(Span-'Input beam data'!X$16))/2),ABS(P40*'Input beam data'!X$16*(Span-'Input beam data'!X$16)/Span+O40*Span*MIN('Input beam data'!X$16,(Span-'Input beam data'!X$16))/2*(1-MIN('Input beam data'!X$16,(Span-'Input beam data'!X$16))/Span))) -> 0.9250633653 | R40: =O40*'Input beam data'!$E$15/2+P40*MAX('Input beam data'!X$16,(Span-'Input beam data'!X$16))/Span -> -1.23341782 | U40: =VLOOKUP((Q40/AJ40),VSGMSG8!$C$5:$H$11,6) -> 2 | V40: =VLOOKUP((Q40/AJ40),VSGMSG8!$C$12:$H$17,6) -> 0 | W40: =VLOOKUP((Q40/AJ40),VSGMSG8!$C$18:$H$23,6) -> 0 | X40: =VLOOKUP((Q40/AJ40),VSGMSG8!$C$24:$H$29,6) -> 0 | Y40: =VLOOKUP((Q40/AJ40),LVL!B$5:F$14,4) -> 1 | Z40: =VLOOKUP((Q40/AJ40),LVL!B$15:F$26,4) -> 3 | AA40: =VLOOKUP((Q40/AJ40),LVL!B$27:F$33,4) -> 0 | AB40: =VLOOKUP((Q40/AJ40),Glulam!$A$5:$D$20,4) -> 0 | AC40: =VLOOKUP((Q40/AJ40),Glulam!$A$12:$D$20,4) -> 0 | AD40: =VLOOKUP(Q40,Steel!$D$39:$G$59,4) -> 1 | AE40: =VLOOKUP(Q40,Steel!$D$26:$G$35,4) -> 1 | AF40: =VLOOKUP(Q40,Flitch!$C$5:$F$10,4) -> 0 | AG40: =VLOOKUP(Q40,Flitch!$C$44:$F$54,4) -> 0 | AJ40: 1 | AK40: =-$R40*1000/'Basic data'!I$21 -> 68.52321224 | AL40: =-$R40*1000/'Basic data'!J$21 -> 138.5862719
A41: 9 | B41: 1.2G+yQ+S | C41: =VLOOKUP('Basic data'!M$5,'Basic data'!$G$7:$Y$14,7) -> 0.85 | E41: 0 | F41: ='Input beam data'!$O$9*VLOOKUP('Basic data'!$V$5,'Basic data'!$G$7:$Y$14,17) -> 0 | I41: =VLOOKUP('Basic data'!O$5,'Basic data'!$G$7:$Y$14,9) -> 0.2 | K41: ='Basic data'!S$7 -> 0.4 | M41: =0.4*(MAX(MIN(1,0.3+3/('Input beam data'!$E$15*'Input beam data'!$K$21)^0.5),0.5))*VLOOKUP('Basic data'!Q$5,'Basic data'!G$7:Y$14,11) -> 0.6 | O41: =('Input beam data'!$K$15+'Input beam data'!$O$17)*(1.2*C41/VLOOKUP('Basic data'!V$5,'Basic data'!$G$7:$Y$14,16)+F41)+1.2*I41*VLOOKUP('Basic data'!Y$5,'Basic data'!G$7:Y$14,19)+'Input beam data'!$K$21*(1.2*Calc!K41+Calc!M41) -> 6.63355243 | P41: =IF('Input beam data'!X$23=0,1.2*'Input beam data'!X$17+0+1.2*'Input beam data'!X$21,'Input beam data'!X$23) -> 0 | Q41: =MAX(O41*Span^2/8+P41*MIN('Input beam data'!X$16,(Span-'Input beam data'!X$16))/2,P41*'Input beam data'!X$16*(Span-'Input beam data'!X$16)/Span+O41*Span*MIN('Input beam data'!X$16,(Span-'Input beam data'!X$16))/2*(1-MIN('Input beam data'!X$16,(Span-'Input beam data'!X$16))/Span)) -> 7.462746484 | R41: =O41*'Input beam data'!$E$15/2+P41*MAX('Input beam data'!X$16,(Span-'Input beam data'!X$16))/Span -> 9.950328646 | U41: =VLOOKUP((Q41/AJ41),VSGMSG8!$B$5:$I$11,7) -> 6 | V41: =VLOOKUP((Q41/AJ41),VSGMSG8!$B$12:$I$17,7) -> 4 | W41: =VLOOKUP((Q41/AJ41),VSGMSG8!$B$18:$I$23,7) -> 3 | X41: =VLOOKUP((Q41/AJ41),VSGMSG8!$B$24:$I$29,7) -> 3 | Y41: =VLOOKUP((Q41/AJ41),LVL!A$5:F$14,5) -> 5 | Z41: =VLOOKUP((Q41/AJ41),LVL!A$15:F$26,5) -> 3 | AA41: =VLOOKUP((Q41/AJ41),LVL!A$27:F$33,5) -> 0 | AB41: =VLOOKUP((Q41/AJ41),Glulam!$A$5:$D$20,4) -> 3 | AC41: =VLOOKUP((Q41/AJ41),Glulam!$A$12:$D$20,4) -> 3 | AD41: =VLOOKUP(Q41,Steel!$E$64:$G$84,3) -> 1 | AE41: =VLOOKUP(Q41,Steel!$E$26:$G$35,3) -> 2 | AF41: =VLOOKUP(Q41,Flitch!$A$5:$F$10,6) -> 1 | AG41: =VLOOKUP(Q41,Flitch!$A$44:$F$54,6) -> 1 | AJ41: 0.8 | AK41: =$R41*1000/'Basic data'!I$21 -> 552.7960359 | AL41: =$R41*1000/'Basic data'!J$21 -> 1118.014455
Q42: Min: | R42: =MIN(R33:R41) -> -1.23341782 | T42: Max: | U42: =MAX(U33:U41) -> 6 | V42: 5 | W42: 5 | X42: 5 | Y42: 6 | Z42: 6 | AA42: 2 | AB42: 4 | AC42: 4 | AD42: 2 | AE42: 3 | AF42: =MAX(AF33:AF41) -> 1 | AG42: =MAX(AG33:AG41) -> 2 | AK42: =MAX(AK33:AK41) -> 1046.546036 | AL42: =MAX(AL33:AL41) -> 2116.60996
A43: Application 4. Veranda beam | I43: (dry props)
C44: Basic loads
C45: Roof | I45: Upper wall | J45: Lower wall | K45: Floor/deck | O45: Actions | U45: Size index's | AH45: Deflection limits | AJ45: Strength
A46: Load case | C46: G | D46: Ql | E46: Qs | F46: S | G46: W(e) | H46: W(r) | I46: G | J46: G | K46: G | L46: Ql | M46: Qs | N46: S | O46: UDL | Q46: M* | R46: V* | S46: EI(s) | T46: EI(a) | U46: MSG8 | Y46: LVL | AB46: GL | AD46: UB | AE46: MSC | AF46: Flitch | AH46: (span/) | AI46: (mm) | AJ46: dur. fact.
A47: 1 | B47: G+Ql | C47: =VLOOKUP('Basic data'!M$5,'Basic data'!$G$7:$Y$14,7) -> 0.85 | D47: 0 | O47: =('Input beam data'!$K$15+'Input beam data'!$O$17)*(C47/VLOOKUP('Basic data'!V$5,'Basic data'!$G$7:$Y$14,16)+D47) -> 2.287960359 | S47: =(0.013*O47*Span^3+0.0298*P47*Span^2*(3*MIN('Input beam data'!X$16,Span-'Input beam data'!X$16)/Span-4*(MIN('Input beam data'!X$16,Span-'Input beam data'!X$16)/Span)^3))*AH47 -> 240.9222258 | T47: =(0.013*O47*Span^4+0.0208*P47*Span^3*(3*MIN('Input beam data'!X$16,Span-'Input beam data'!X$16)/Span-4*(MIN('Input beam data'!X$16,Span-'Input beam data'!X$16)/Span)^3))/(AI47/1000) -> 24.09222258 | U47: =VLOOKUP(MAX(S47:T47),VSGMSG8!G$5:I$11,2) -> 5 | V47: =VLOOKUP(MAX(S47:T47),VSGMSG8!G$12:I$17,2) -> 4 | W47: =VLOOKUP(MAX(S47:T47),VSGMSG8!G$18:I$23,2) -> 3 | X47: =VLOOKUP(MAX(S47:T47),VSGMSG8!G$24:I$29,2) -> 3 | Y47: =VLOOKUP(MAX(S47:T47),LVL!D$5:F$14,2) -> 5 | Z47: =VLOOKUP(MAX(S47:T47),LVL!D$15:F$26,2) -> 4 | AA47: =VLOOKUP(MAX(S47:T47),LVL!D$27:F$33,2) -> 1 | AB47: =VLOOKUP(MAX(S47:T47),Glulam!C$5:E$11,2) -> 2 | AC47: =VLOOKUP(MAX(S47:T47),Glulam!C$12:E$20,2) -> 2 | AD47: =VLOOKUP(MAX(S47:T47),Steel!$F$4:$H$24,2) -> 1 | AE47: =VLOOKUP(MAX(S47:T47),Steel!$F$26:$H$35,2) -> 1 | AF47: =VLOOKUP(MAX(S47:T47),Flitch!$E$5:$F$10,2) -> 0 | AG47: =VLOOKUP(MAX(S47:T47),Flitch!E$44:F$54,2) -> 0 | AH47: 300 | AI47: 100
A48: 2 | B48: G+Qs | C48: =VLOOKUP('Basic data'!M$5,'Basic data'!$G$7:$Y$14,7) -> 0.85 | E48: =0.7*'Basic data'!$M$11 -> 0.175 | O48: =('Input beam data'!$K$15+'Input beam data'!$O$17)*(C48/VLOOKUP('Basic data'!V$5,'Basic data'!$G$7:$Y$14,16)+E48) -> 2.742960359 | S48: =(0.013*O48*Span^3+0.0298*P48*Span^2*(3*MIN('Input beam data'!X$16,Span-'Input beam data'!X$16)/Span-4*(MIN('Input beam data'!X$16,Span-'Input beam data'!X$16)/Span)^3))*AH48 -> 288.8337258 | T48: =(0.013*O48*Span^4+0.0208*P48*Span^3*(3*MIN('Input beam data'!X$16,Span-'Input beam data'!X$16)/Span-4*(MIN('Input beam data'!X$16,Span-'Input beam data'!X$16)/Span)^3))/(AI48/1000) -> 28.88337258 | U48: =VLOOKUP(MAX(S48:T48),VSGMSG8!E$5:I$11,4) -> 5 | V48: =VLOOKUP(MAX(S48:T48),VSGMSG8!E$12:I$17,4) -> 3 | W48: =VLOOKUP(MAX(S48:T48),VSGMSG8!E$18:I$23,4) -> 2 | X48: =VLOOKUP(MAX(S48:T48),VSGMSG8!E$24:I$29,4) -> 3 | Y48: =VLOOKUP(MAX(S48:T48),LVL!C$5:F$14,3) -> 4 | Z48: =VLOOKUP(MAX(S48:T48),LVL!C$15:F$26,3) -> 4 | AA48: =VLOOKUP(MAX(S48:T48),LVL!C$27:F$33,3) -> 1 | AB48: =VLOOKUP(MAX(S48:T48),Glulam!B$5:E$11,3) -> 2 | AC48: =VLOOKUP(MAX(S48:T48),Glulam!B$12:E$20,3) -> 1 | AD48: =VLOOKUP(MAX(S48:T48),Steel!$F$4:$H$24,2) -> 1 | AE48: =VLOOKUP(MAX(S48:T48),Steel!$F$26:$H$35,2) -> 1 | AF48: =VLOOKUP(MAX(S48:T48),Flitch!$D$5:$F$10,3) -> 0 | AG48: =VLOOKUP(MAX(S48:T48),Flitch!$D$44:$F$54,3) -> 0 | AH48: 300 | AI48: 100
A49: 3 | B49: Spare
A50: 4 | B50: G+S | C50: =VLOOKUP('Basic data'!M$5,'Basic data'!$G$7:$Y$14,7) -> 0.85 | E50: 0 | F50: =0.68*'Input beam data'!$O$9*VLOOKUP('Basic data'!$V$5,'Basic data'!$G$7:$Y$14,17) -> 0 | O50: =('Input beam data'!$K$15+'Input beam data'!$O$17)*(C50/VLOOKUP('Basic data'!V$5,'Basic data'!$G$7:$Y$14,16)+F50) -> 2.287960359 | S50: =(0.013*O50*Span^3+0.0298*P50*Span^2*(3*MIN('Input beam data'!X$16,Span-'Input beam data'!X$16)/Span-4*(MIN('Input beam data'!X$16,Span-'Input beam data'!X$16)/Span)^3))*AH50 -> 240.9222258 | T50: =(0.013*O50*Span^4+0.0208*P50*Span^3*(3*MIN('Input beam data'!X$16,Span-'Input beam data'!X$16)/Span-4*(MIN('Input beam data'!X$16,Span-'Input beam data'!X$16)/Span)^3))/(AI50/1000) -> 24.09222258 | U50: =VLOOKUP(MAX(S50:T50),VSGMSG8!E$5:I$11,4) -> 4 | V50: =VLOOKUP(MAX(S50:T50),VSGMSG8!E$12:I$17,4) -> 3 | W50: =VLOOKUP(MAX(S50:T50),VSGMSG8!E$18:I$23,4) -> 2 | X50: =VLOOKUP(MAX(S50:T50),VSGMSG8!E$24:I$29,4) -> 2 | Y50: =VLOOKUP(MAX(S50:T50),LVL!C$5:F$14,3) -> 4 | Z50: =VLOOKUP(MAX(S50:T50),LVL!C$15:F$26,3) -> 3 | AA50: =VLOOKUP(MAX(S50:T50),LVL!C$27:F$33,3) -> 1 | AB50: =VLOOKUP(MAX(S50:T50),Glulam!B$5:E$11,3) -> 1 | AC50: =VLOOKUP(MAX(S50:T50),Glulam!B$12:E$20,3) -> 1 | AD50: =VLOOKUP(MAX(S50:T50),Steel!$F$4:$H$24,2) -> 1 | AE50: =VLOOKUP(MAX(S50:T50),Steel!$F$26:$H$35,2) -> 1 | AF50: =VLOOKUP(MAX(S50:T50),Flitch!$D$5:$F$10,3) -> 0 | AG50: =VLOOKUP(MAX(S50:T50),Flitch!$D$44:$F$54,3) -> 0 | AH50: 300 | AI50: 100
A51: 5 | B51: 1.35G | C51: =VLOOKUP('Basic data'!M$5,'Basic data'!$G$7:$Y$14,7) -> 0.85 | O51: =('Input beam data'!$K$15+'Input beam data'!$O$17)*(1.35*C51/VLOOKUP('Basic data'!V$5,'Basic data'!$G$7:$Y$14,16)) -> 3.088746484 | Q51: =MAX(O51*Span^2/8+P51*MIN('Input beam data'!X$16,(Span-'Input beam data'!X$16))/2,P51*'Input beam data'!X$16*(Span-'Input beam data'!X$16)/Span+O51*Span*MIN('Input beam data'!X$16,(Span-'Input beam data'!X$16))/2*(1-MIN('Input beam data'!X$16,(Span-'Input beam data'!X$16))/Span)) -> 3.474839795 | R51: =O51*'Input beam data'!$E$15/2+P51*MAX('Input beam data'!X$16,(Span-'Input beam data'!X$16))/Span -> 4.633119726 | U51: =VLOOKUP((Q51/AJ51),VSGMSG8!$B$5:$I$11,7) -> 5 | V51: =VLOOKUP((Q51/AJ51),VSGMSG8!$B$12:$I$17,7) -> 3 | W51: =VLOOKUP((Q51/AJ51),VSGMSG8!$B$18:$I$23,7) -> 2 | X51: =VLOOKUP((Q51/AJ51),VSGMSG8!$B$24:$I$29,7) -> 2 | Y51: =VLOOKUP((Q51/AJ51),LVL!A$5:F$14,5) -> 4 | Z51: =VLOOKUP((Q51/AJ51),LVL!A$15:F$26,5) -> 3 | AA51: =VLOOKUP((Q51/AJ51),LVL!A$27:F$33,5) -> 0 | AB51: =VLOOKUP((Q51/AJ51),Glulam!$A$5:$D$20,4) -> 1 | AC51: =VLOOKUP((Q51/AJ51),Glulam!$A$12:$D$20,4) -> 1 | AD51: =VLOOKUP(Q51,Steel!$C$4:$G$24,5) -> 1 | AE51: =VLOOKUP(Q51,Steel!$C$26:$G$35,5) -> 1 | AF51: =VLOOKUP(Q51,Flitch!$B$5:$F$10,5) -> 0 | AG51: =VLOOKUP(Q51,Flitch!$B$44:$F$54,5) -> 0 | AJ51: 0.6 | AK51: =$R51*1000/'Basic data'!I$21 -> 257.3955404 | AL51: =$R51*1000/'Basic data'!J$21 -> 520.5752502
A52: 6 | B52: 1.2G+1.5Q | C52: =VLOOKUP('Basic data'!M$5,'Basic data'!$G$7:$Y$14,7) -> 0.85 | E52: ='Basic data'!M$11 -> 0.25 | O52: =('Input beam data'!$K$15+'Input beam data'!$O$17)*(1.2*C52/VLOOKUP('Basic data'!V$5,'Basic data'!$G$7:$Y$14,16)+1.5*E52) -> 3.72055243 | Q52: =MAX(O52*Span^2/8+P52*MIN('Input beam data'!X$16,(Span-'Input beam data'!X$16))/2,P52*'Input beam data'!X$16*(Span-'Input beam data'!X$16)/Span+O52*Span*MIN('Input beam data'!X$16,(Span-'Input beam data'!X$16))/2*(1-MIN('Input beam data'!X$16,(Span-'Input beam data'!X$16))/Span)) -> 4.185621484 | R52: =O52*'Input beam data'!$E$15/2+P52*MAX('Input beam data'!X$16,(Span-'Input beam data'!X$16))/Span -> 5.580828646 | U52: =VLOOKUP((Q52/AJ52),VSGMSG8!$B$5:$I$11,7) -> 5 | V52: =VLOOKUP((Q52/AJ52),VSGMSG8!$B$12:$I$17,7) -> 3 | W52: =VLOOKUP((Q52/AJ52),VSGMSG8!$B$18:$I$23,7) -> 2 | X52: =VLOOKUP((Q52/AJ52),VSGMSG8!$B$24:$I$29,7) -> 2 | Y52: =VLOOKUP((Q52/AJ52),LVL!A$5:F$14,5) -> 4 | Z52: =VLOOKUP((Q52/AJ52),LVL!A$15:F$26,5) -> 3 | AA52: =VLOOKUP((Q52/AJ52),LVL!A$27:F$33,5) -> 0 | AB52: =VLOOKUP((Q52/AJ52),Glulam!$A$5:$D$20,4) -> 1 | AC52: =VLOOKUP((Q52/AJ52),Glulam!$A$12:$D$20,4) -> 1 | AD52: =VLOOKUP(Q52,Steel!$C$4:$G$24,5) -> 1 | AE52: =VLOOKUP(Q52,Steel!$C$26:$G$35,5) -> 1 | AF52: =VLOOKUP(Q52,Flitch!$A$5:$F$10,6) -> 0 | AG52: =VLOOKUP(Q52,Flitch!$A$44:$F$54,6) -> 0 | AJ52: 0.8 | AK52: =$R52*1000/'Basic data'!I$21 -> 310.0460359 | AL52: =$R52*1000/'Basic data'!J$21 -> 627.0593984
A53: 7 | B53: 1.2G+yQ+W | C53: =VLOOKUP('Basic data'!M$5,'Basic data'!$G$7:$Y$14,7) -> 0.85 | E53: 0 | H53: =VLOOKUP('Basic data'!I$5,'Basic data'!$G$7:$Y$14,3)*'Basic data'!D$23*'Basic data'!F$23*'Basic data'!G$23 -> 0.232 | O53: =('Input beam data'!$K$15+'Input beam data'!$O$17)*(1.2*C53/VLOOKUP('Basic data'!V$5,'Basic data'!$G$7:$Y$14,16)+H53) -> 3.34875243 | Q53: =MAX(O53*Span^2/8+P53*MIN('Input beam data'!X$16,(Span-'Input beam data'!X$16))/2,P53*'Input beam data'!X$16*(Span-'Input beam data'!X$16)/Span+O53*Span*MIN('Input beam data'!X$16,(Span-'Input beam data'!X$16))/2*(1-MIN('Input beam data'!X$16,(Span-'Input beam data'!X$16))/Span)) -> 3.767346484 | R53: =O53*'Input beam data'!$E$15/2+P53*MAX('Input beam data'!X$16,(Span-'Input beam data'!X$16))/Span -> 5.023128646 | U53: =VLOOKUP((Q53/AJ53),VSGMSG8!$B$5:$I$11,7) -> 4 | V53: =VLOOKUP((Q53/AJ53),VSGMSG8!$B$12:$I$17,7) -> 2 | W53: =VLOOKUP((Q53/AJ53),VSGMSG8!$B$18:$I$23,7) -> 2 | X53: =VLOOKUP((Q53/AJ53),VSGMSG8!$B$24:$I$29,7) -> 2 | Y53: =VLOOKUP((Q53/AJ53),LVL!A$5:F$14,5) -> 3 | Z53: =VLOOKUP((Q53/AJ53),LVL!A$15:F$26,5) -> 3 | AA53: =VLOOKUP((Q53/AJ53),LVL!A$27:F$33,5) -> 0 | AB53: =VLOOKUP((Q53/AJ53),Glulam!$A$5:$D$20,4) -> 1 | AC53: =VLOOKUP((Q53/AJ53),Glulam!$A$12:$D$20,4) -> 1 | AD53: =VLOOKUP(Q53,Steel!$C$4:$G$24,5) -> 1 | AE53: =VLOOKUP(Q53,Steel!$C$26:$G$35,5) -> 1 | AF53: =VLOOKUP(Q53,Flitch!$A$5:$F$10,6) -> 0 | AG53: =VLOOKUP(Q53,Flitch!$A$44:$F$54,6) -> 0 | AJ53: 1 | AK53: =$R53*1000/'Basic data'!I$21 -> 279.0627025 | AL53: =$R53*1000/'Basic data'!J$21 -> 564.396477
A54: 8 | B54: .9G+W | C54: =VLOOKUP((5+'Basic data'!M$5),'Basic data'!$G$7:$Y$14,7) -> 0.4 | H54: =VLOOKUP('Basic data'!I$5,'Basic data'!$G$7:$Y$14,3)*'Basic data'!D$24*'Basic data'!F$24*'Basic data'!G$24 -> 1.856 | O54: =('Input beam data'!$K$15+'Input beam data'!$O$17)*(0.9*C54/VLOOKUP('Basic data'!V$5,'Basic data'!$G$7:$Y$14,16)-H54) -> -3.856581495 | Q54: =MAX(ABS(O54*Span^2/8+P54*MIN('Input beam data'!X$16,(Span-'Input beam data'!X$16))/2),ABS(P54*'Input beam data'!X$16*(Span-'Input beam data'!X$16)/Span+O54*Span*MIN('Input beam data'!X$16,(Span-'Input beam data'!X$16))/2*(1-MIN('Input beam data'!X$16,(Span-'Input beam data'!X$16))/Span))) -> 4.338654182 | R54: =O54*'Input beam data'!$E$15/2+P54*MAX('Input beam data'!X$16,(Span-'Input beam data'!X$16))/Span -> -5.784872243 | U54: =VLOOKUP((Q54/AJ54),VSGMSG8!$C$5:$H$11,6) -> 5 | V54: =VLOOKUP((Q54/AJ54),VSGMSG8!$C$12:$H$17,6) -> 2 | W54: =VLOOKUP((Q54/AJ54),VSGMSG8!$C$18:$H$23,6) -> 2 | X54: =VLOOKUP((Q54/AJ54),VSGMSG8!$C$24:$H$29,6) -> 2 | Y54: =VLOOKUP((Q54/AJ54),LVL!B$5:F$14,4) -> 3 | Z54: =VLOOKUP((Q54/AJ54),LVL!B$15:F$26,4) -> 3 | AA54: =VLOOKUP((Q54/AJ54),LVL!B$27:F$33,4) -> 0 | AB54: =VLOOKUP((Q54/AJ54),Glulam!$A$5:$D$20,4) -> 1 | AC54: =VLOOKUP((Q54/AJ54),Glulam!$A$12:$D$20,4) -> 1 | AD54: =VLOOKUP(Q54,Steel!$C$4:$G$24,5) -> 1 | AE54: =VLOOKUP(Q54,Steel!$C$26:$G$35,5) -> 1 | AF54: =VLOOKUP(Q54,Flitch!$C$5:$F$10,4) -> 0 | AG54: =VLOOKUP(Q54,Flitch!$C$44:$F$54,4) -> 0 | AJ54: 1 | AK54: =-$R54*1000/'Basic data'!I$21 -> 321.3817913 | AL54: =-$R54*1000/'Basic data'!J$21 -> 649.9856452
A55: 9 | B55: 1.2G+yQ+S | C55: =VLOOKUP('Basic data'!M$5,'Basic data'!$G$7:$Y$14,7) -> 0.85 | E55: 0 | F55: ='Input beam data'!$O$9*VLOOKUP('Basic data'!$V$5,'Basic data'!$G$7:$Y$14,17) -> 0 | O55: =('Input beam data'!$K$15+'Input beam data'!$O$17)*(1.2*C55/VLOOKUP('Basic data'!V$5,'Basic data'!$G$7:$Y$14,16)+F55) -> 2.74555243 | Q55: =MAX(O55*Span^2/8+P55*MIN('Input beam data'!X$16,(Span-'Input beam data'!X$16))/2,P55*'Input beam data'!X$16*(Span-'Input beam data'!X$16)/Span+O55*Span*MIN('Input beam data'!X$16,(Span-'Input beam data'!X$16))/2*(1-MIN('Input beam data'!X$16,(Span-'Input beam data'!X$16))/Span)) -> 3.088746484 | R55: =O55*'Input beam data'!$E$15/2+P55*MAX('Input beam data'!X$16,(Span-'Input beam data'!X$16))/Span -> 4.118328646 | U55: =VLOOKUP((Q55/AJ55),VSGMSG8!$B$5:$I$11,7) -> 4 | V55: =VLOOKUP((Q55/AJ55),VSGMSG8!$B$12:$I$17,7) -> 2 | W55: =VLOOKUP((Q55/AJ55),VSGMSG8!$B$18:$I$23,7) -> 2 | X55: =VLOOKUP((Q55/AJ55),VSGMSG8!$B$24:$I$29,7) -> 2 | Y55: =VLOOKUP((Q55/AJ55),LVL!A$5:F$14,5) -> 3 | Z55: =VLOOKUP((Q55/AJ55),LVL!A$15:F$26,5) -> 3 | AA55: =VLOOKUP((Q55/AJ55),LVL!A$27:F$33,5) -> 0 | AB55: =VLOOKUP((Q55/AJ55),Glulam!$A$5:$D$20,4) -> 1 | AC55: =VLOOKUP((Q55/AJ55),Glulam!$A$12:$D$20,4) -> 1 | AD55: =VLOOKUP(Q55,Steel!$C$4:$G$24,5) -> 1 | AE55: =VLOOKUP(Q55,Steel!$C$26:$G$35,5) -> 1 | AF55: =VLOOKUP(Q55,Flitch!$A$5:$F$10,6) -> 0 | AG55: =VLOOKUP(Q55,Flitch!$A$44:$F$54,6) -> 0 | AJ55: 0.8 | AK55: =$R55*1000/'Basic data'!I$21 -> 228.7960359 | AL55: =$R55*1000/'Basic data'!J$21 -> 462.7335557
Q56: Min: | R56: =MIN(R47:R55) -> -5.784872243 | T56: Max: | U56: =MAX(U47:U55) -> 5 | V56: 4 | W56: 3 | X56: 3 | Y56: 5 | Z56: 4 | AA56: 1 | AB56: 2 | AC56: 2 | AD56: 1 | AE56: 1 | AF56: =MAX(AF47:AF55) -> 0 | AG56: =MAX(AG47:AG55) -> 0 | AK56: =MAX(AK47:AK55) -> 321.3817913 | AL56: =MAX(AL47:AL55) -> 649.9856452
A57: Application 5. Floor beam | H57: (dry props)
C58: Basic loads
C59: Roof | I59: Upper wall | J59: Lower wall | K59: Floor/deck | O59: Actions | U59: Size index's | AH59: Deflection limits | AJ59: Strength
A60: Load case | C60: G | D60: Ql | E60: Qs | F60: S | G60: W(e) | H60: W(r) | I60: G | J60: G | K60: G | L60: Ql | M60: Qs | N60: S | O60: UDL | P60: P | Q60: M* | R60: V* | S60: EI(s) | T60: EI(a) | U60: MSG8 | Y60: LVL | AB60: GL | AD60: UB | AE60: MSC | AF60: Flitch | AH60: (span/) | AI60: (mm) | AJ60: dur. fact.
A61: 1 | B61: G+Ql | K61: ='Basic data'!S$7 -> 0.4 | L61: =0.4*(MAX(MIN(1,0.3+3/('Input beam data'!$E$15*'Input beam data'!$K$15)^0.5),0.5))*VLOOKUP('Basic data'!Q$5,'Basic data'!G$7:Y$14,11) -> 0.6 | O61: ='Input beam data'!$K$15*(K61+L61) -> 2 | P61: =IF('Input beam data'!X$23=0,'Input beam data'!X$17+0.4*'Input beam data'!X$18,'Input beam data'!X$23) -> 0 | S61: =(0.013*O61*Span^3+0.0298*P61*Span^2*(3*MIN('Input beam data'!X$16,Span-'Input beam data'!X$16)/Span-4*(MIN('Input beam data'!X$16,Span-'Input beam data'!X$16)/Span)^3))*AH61 -> 210.6 | T61: =(0.013*O61*Span^4+0.0208*P61*Span^3*(3*MIN('Input beam data'!X$16,Span-'Input beam data'!X$16)/Span-4*(MIN('Input beam data'!X$16,Span-'Input beam data'!X$16)/Span)^3))/(AI61/1000) -> 21.06 | U61: =VLOOKUP(MAX(S61:T61),VSGMSG8!G$5:I$11,2) -> 5 | V61: =VLOOKUP(MAX(S61:T61),VSGMSG8!G$12:I$17,2) -> 3 | W61: =VLOOKUP(MAX(S61:T61),VSGMSG8!G$18:I$23,2) -> 3 | X61: =VLOOKUP(MAX(S61:T61),VSGMSG8!G$24:I$29,2) -> 3 | Y61: =VLOOKUP(MAX(S61:T61),LVL!D$5:F$14,2) -> 4 | Z61: =VLOOKUP(MAX(S61:T61),LVL!D$15:F$26,2) -> 4 | AA61: =VLOOKUP(MAX(S61:T61),LVL!D$27:F$33,2) -> 1 | AB61: =VLOOKUP(MAX(S61:T61),Glulam!C$5:E$11,2) -> 2 | AC61: =VLOOKUP(MAX(S61:T61),Glulam!C$12:E$20,2) -> 1 | AD61: =VLOOKUP(MAX(S61:T61),Steel!$F$4:$H$24,2) -> 1 | AE61: =VLOOKUP(MAX(S61:T61),Steel!$F$26:$H$35,2) -> 1 | AF61: =VLOOKUP(MAX(S61:T61),Flitch!$E$5:$F$10,2) -> 0 | AG61: =VLOOKUP(MAX(S61:T61),Flitch!E$44:F$54,2) -> 0 | AH61: 300 | AI61: 100
A62: 2 | B62: G+Qs | K62: ='Basic data'!S$7 -> 0.4 | M62: =0.7*(MAX(MIN(1,0.3+3/('Input beam data'!$E$15*'Input beam data'!$K$15)^0.5),0.5))*VLOOKUP('Basic data'!Q$5,'Basic data'!G$7:Y$14,11) -> 1.05 | O62: ='Input beam data'!$K$15*(K62+M62) -> 2.9 | P62: =IF('Input beam data'!X$23=0,'Input beam data'!X$17+0.7*'Input beam data'!X$18,'Input beam data'!X$23) -> 0 | S62: =(0.013*O62*Span^3+0.0298*P62*Span^2*(3*MIN('Input beam data'!X$16,Span-'Input beam data'!X$16)/Span-4*(MIN('Input beam data'!X$16,Span-'Input beam data'!X$16)/Span)^3))*AH62 -> 305.37 | T62: =(0.013*O62*Span^4+0.0208*P62*Span^3*(3*MIN('Input beam data'!X$16,Span-'Input beam data'!X$16)/Span-4*(MIN('Input beam data'!X$16,Span-'Input beam data'!X$16)/Span)^3))/(AI62/1000) -> 30.537 | U62: =VLOOKUP(MAX(S62:T62),VSGMSG8!E$5:I$11,4) -> 5 | V62: =VLOOKUP(T63,VSGMSG8!E$12:I$17,4) -> 4 | W62: =VLOOKUP(MAX(S62:T62),VSGMSG8!E$18:I$23,4) -> 2 | X62: =VLOOKUP(MAX(S62:T62),VSGMSG8!E$24:I$29,4) -> 3 | Y62: =VLOOKUP(MAX(S62:T62),LVL!C$5:F$14,3) -> 4 | Z62: =VLOOKUP(MAX(S62:T62),LVL!C$15:F$26,3) -> 4 | AA62: =VLOOKUP(MAX(S62:T62),LVL!C$27:F$33,3) -> 1 | AB62: =VLOOKUP(MAX(S62:T62),Glulam!B$5:E$11,3) -> 2 | AC62: =VLOOKUP(MAX(S62:T62),Glulam!B$12:E$20,3) -> 1 | AD62: =VLOOKUP(MAX(S62:T62),Steel!$F$4:$H$24,2) -> 1 | AE62: =VLOOKUP(MAX(S62:T62),Steel!$F$26:$H$35,2) -> 1 | AF62: =VLOOKUP(MAX(S62:T62),Flitch!$D$5:$F$10,3) -> 0 | AG62: =VLOOKUP(MAX(S62:T62),Flitch!$D$44:$F$54,3) -> 0 | AH62: 300 | AI62: 100
A63: 3 | B63: Vibration | T63: =1*Span^3/(48*(AI63/1000)) -> 562.5 | U63: =VLOOKUP(T63,VSGMSG8!E$5:I$11,4) -> 6 | V63: =VLOOKUP(MAX(S63:T63),VSGMSG8!E$12:I$17,4) -> 4 | W63: =VLOOKUP(T63,VSGMSG8!E$18:I$23,4) -> 3 | X63: =VLOOKUP(T63,VSGMSG8!E$24:I$29,4) -> 4 | Y63: =VLOOKUP(T63,LVL!C$5:F$14,3) -> 6 | Z63: =VLOOKUP(T63,LVL!C$15:F$26,3) -> 5 | AA63: =VLOOKUP(T63,LVL!C$27:F$33,3) -> 1 | AB63: =VLOOKUP(T63,Glulam!B$5:E$11,3) -> 3 | AC63: =VLOOKUP(T63,Glulam!B$12:E$20,3) -> 2 | AD63: =VLOOKUP(T63,Steel!$F$4:$H$24,2) -> 1 | AE63: =VLOOKUP(T63,Steel!$F$26:$H$35,2) -> 2 | AF63: =VLOOKUP(MAX(S63:T63),Flitch!$D$5:$F$10,3) -> 1 | AG63: =VLOOKUP(T63,Flitch!$D$44:$F$54,3) -> 1 | AI63: 1
A64: 4 | B64: G+S | AH64: 300 | AI64: 100
A65: 5 | B65: 1.35G | K65: ='Basic data'!S$7 -> 0.4 | M65: 0 | O65: =1.35*'Input beam data'!$K$15*K65 -> 1.08 | P65: =IF('Input beam data'!X$23=0,1.35*'Input beam data'!X$17,'Input beam data'!X$23) -> 0 | Q65: =MAX(O65*Span^2/8+P65*MIN('Input beam data'!X$16,(Span-'Input beam data'!X$16))/2,P65*'Input beam data'!X$16*(Span-'Input beam data'!X$16)/Span+O65*Span*MIN('Input beam data'!X$16,(Span-'Input beam data'!X$16))/2*(1-MIN('Input beam data'!X$16,(Span-'Input beam data'!X$16))/Span)) -> 1.215 | R65: =O65*'Input beam data'!$E$15/2+P65*MAX('Input beam data'!X$16,(Span-'Input beam data'!X$16))/Span -> 1.62 | U65: =VLOOKUP((Q65/AJ65),VSGMSG8!$B$5:$I$11,7) -> 3 | V65: =VLOOKUP((Q65/AJ65),VSGMSG8!$B$12:$I$17,7) -> 1 | W65: =VLOOKUP((Q65/AJ65),VSGMSG8!$B$18:$I$23,7) -> 1 | X65: =VLOOKUP((Q65/AJ65),VSGMSG8!$B$24:$I$29,7) -> 1 | Y65: =VLOOKUP((Q65/AJ65),LVL!A$5:F$14,5) -> 1 | Z65: =VLOOKUP((Q65/AJ65),LVL!A$15:F$26,5) -> 3 | AA65: =VLOOKUP((Q65/AJ65),LVL!A$27:F$33,5) -> 0 | AB65: =VLOOKUP((Q65/AJ65),Glulam!$A$5:$D$20,4) -> 0 | AC65: =VLOOKUP((Q65/AJ65),Glulam!$A$12:$D$20,4) -> 0 | AD65: =VLOOKUP(Q65,Steel!$C$4:$G$24,5) -> 1 | AE65: =VLOOKUP(Q65,Steel!$C$26:$G$35,5) -> 1 | AF65: =VLOOKUP(Q65,Flitch!$B$5:$F$10,5) -> 0 | AG65: =VLOOKUP(Q65,Flitch!$B$44:$F$54,5) -> 0 | AJ65: 0.6 | AK65: 30 | AL65: 60.6741573
A66: 6 | B66: 1.2G+1.5Q | K66: ='Basic data'!S$7 -> 0.4 | M66: =(MAX(MIN(1,0.3+3/('Input beam data'!$E$15*'Input beam data'!$K$15)^0.5),0.5))*VLOOKUP('Basic data'!Q$5,'Basic data'!G$7:Y$14,11) -> 1.5 | O66: ='Input beam data'!$K$15*(1.2*K66+1.5*M66) -> 5.46 | P66: =IF('Input beam data'!X$23=0,1.2*'Input beam data'!X$17+1.5*'Input beam data'!X$18,'Input beam data'!X$23) -> 0 | Q66: =MAX(O66*Span^2/8+P66*MIN('Input beam data'!X$16,(Span-'Input beam data'!X$16))/2,P66*'Input beam data'!X$16*(Span-'Input beam data'!X$16)/Span+O66*Span*MIN('Input beam data'!X$16,(Span-'Input beam data'!X$16))/2*(1-MIN('Input beam data'!X$16,(Span-'Input beam data'!X$16))/Span)) -> 6.1425 | R66: =O66*'Input beam data'!$E$15/2+P66*MAX('Input beam data'!X$16,(Span-'Input beam data'!X$16))/Span -> 8.19 | U66: =VLOOKUP((Q66/AJ66),VSGMSG8!$B$5:$I$11,7) -> 6 | V66: =VLOOKUP((Q66/AJ66),VSGMSG8!$B$12:$I$17,7) -> 4 | W66: =VLOOKUP((Q66/AJ66),VSGMSG8!$B$18:$I$23,7) -> 3 | X66: =VLOOKUP((Q66/AJ66),VSGMSG8!$B$24:$I$29,7) -> 3 | Y66: =VLOOKUP((Q66/AJ66),LVL!A$5:F$14,5) -> 4 | Z66: =VLOOKUP((Q66/AJ66),LVL!A$15:F$26,5) -> 3 | AA66: =VLOOKUP((Q66/AJ66),LVL!A$27:F$33,5) -> 0 | AB66: =VLOOKUP((Q66/AJ66),Glulam!$A$5:$D$20,4) -> 2 | AC66: =VLOOKUP((Q66/AJ66),Glulam!$A$12:$D$20,4) -> 2 | AD66: =VLOOKUP(Q66,Steel!$C$4:$G$24,5) -> 1 | AE66: =VLOOKUP(Q66,Steel!$C$26:$G$35,5) -> 1 | AF66: =VLOOKUP(Q66,Flitch!$A$5:$F$10,6) -> 0 | AG66: =VLOOKUP(Q66,Flitch!$A$44:$F$54,6) -> 0 | AJ66: 0.8 | AK66: 193.3333333 | AL66: 391.011236
A67: 7 | B67: 1.2G+yQ+W | AJ67: 1 | AK67: 0 | AL67: 0
A68: 8 | B68: .9G+W | AJ68: 1 | AK68: 0 | AL68: 0
A69: 9 | B69: 1.2G+yQ+S | AJ69: 0.8 | AK69: 0 | AL69: 0
Q70: Min: | R70: =MIN(R61:R69) -> 1.62 | T70: Max: | U70: =MAX(U61:U69) -> 6 | V70: 4 | W70: 3 | X70: 4 | Y70: 6 | Z70: 5 | AA70: 1 | AB70: 3 | AC70: 2 | AD70: 1 | AE70: 2 | AF70: =MAX(AF61:AF69) -> 1 | AG70: =MAX(AG61:AG69) -> 1 | AK70: =MAX(AK61:AK69) -> 193.3333333 | AL70: =MAX(AL61:AL69) -> 391.011236
A71: Application 6. Deck bearer | H71: (green props)
C72: Basic loads
C73: Roof | I73: Upper wall | J73: Lower wall | K73: Floor/deck | O73: Actions | U73: Size index's | AH73: Deflection limits | AJ73: Strength
A74: Load case | C74: G | D74: Ql | E74: Qs | F74: S | G74: W(e) | H74: W(r) | I74: G | J74: G | K74: G | L74: Ql | M74: Qs | N74: S | O74: UDL | P74: P | Q74: M* | R74: V* | S74: EI(s) | T74: EI(a) | U74: MSG8 | Y74: LVL | AB74: GL | AD74: UB | AE74: MSC | AF74: Flitch | AH74: (span/) | AI74: (mm) | AJ74: dur. fact.
A75: 1 | B75: G+Ql | K75: ='Basic data'!S$7 -> 0.4 | L75: =0.4*(MAX(MIN(1,0.3+3/('Input beam data'!$E$15*'Input beam data'!$K$15)^0.5),0.5))*2 -> 0.8 | O75: ='Input beam data'!$K$15*(Calc!K75+Calc!L75) -> 2.4 | P75: =IF('Input beam data'!X$23=0,'Input beam data'!X$17+0.4*'Input beam data'!X$18,'Input beam data'!X$23) -> 0 | S75: =(0.013*O75*Span^3+0.0298*P75*Span^2*(3*MIN('Input beam data'!X$16,Span-'Input beam data'!X$16)/Span-4*(MIN('Input beam data'!X$16,Span-'Input beam data'!X$16)/Span)^3))*AH75 -> 252.72 | T75: =(0.013*O75*Span^4+0.0208*P75*Span^3*(3*MIN('Input beam data'!X$16,Span-'Input beam data'!X$16)/Span-4*(MIN('Input beam data'!X$16,Span-'Input beam data'!X$16)/Span)^3))/(AI75/1000) -> 25.272 | U75: =VLOOKUP(MAX(S75:T75),VSGMSG8!F$5:I$11,3) -> 6 | V75: =VLOOKUP(MAX(S75:T75),VSGMSG8!F$12:I$17,3) -> 4 | W75: =VLOOKUP(MAX(S75:T75),VSGMSG8!F$18:I$23,3) -> 3 | X75: =VLOOKUP(MAX(S75:T75),VSGMSG8!F$24:I$29,3) -> 4 | AD75: =VLOOKUP(MAX(S75:T75),Steel!$F$4:$H$24,2) -> 1 | AE75: =VLOOKUP(MAX(S75:T75),Steel!$F$26:$H$35,2) -> 1 | AH75: 300 | AI75: 100
A76: 2 | B76: G+Qs | K76: ='Basic data'!S$7 -> 0.4 | M76: =0.7*(MAX(MIN(1,0.3+3/('Input beam data'!$E$15*'Input beam data'!$K$15)^0.5),0.5))*2 -> 1.4 | O76: ='Input beam data'!$K$15*(Calc!K76+Calc!M76) -> 3.6 | P76: =IF('Input beam data'!X$23=0,'Input beam data'!X$17+0.7*'Input beam data'!X$18,'Input beam data'!X$23) -> 0 | S76: =(0.013*O76*Span^3+0.0298*P76*Span^2*(3*MIN('Input beam data'!X$16,Span-'Input beam data'!X$16)/Span-4*(MIN('Input beam data'!X$16,Span-'Input beam data'!X$16)/Span)^3))*AH76 -> 379.08 | T76: =(0.013*O76*Span^4+0.0208*P76*Span^3*(3*MIN('Input beam data'!X$16,Span-'Input beam data'!X$16)/Span-4*(MIN('Input beam data'!X$16,Span-'Input beam data'!X$16)/Span)^3))/(AI76/1000) -> 37.908 | U76: =VLOOKUP(MAX(S76:T76),VSGMSG8!D$5:I$11,5) -> 5 | V76: =VLOOKUP(MAX(S76:T76),VSGMSG8!D$12:I$17,5) -> 4 | W76: =VLOOKUP(MAX(S76:T76),VSGMSG8!D$18:I$23,5) -> 3 | X76: =VLOOKUP(MAX(S76:T76),VSGMSG8!D$24:I$29,5) -> 3 | AD76: =VLOOKUP(MAX(S76:T76),Steel!$F$4:$H$24,2) -> 1 | AE76: =VLOOKUP(MAX(S76:T76),Steel!$F$26:$H$35,2) -> 1 | AH76: 300 | AI76: 100
A77: 3 | B77: Spare
A78: 4 | B78: G+S | K78: ='Basic data'!S$7 -> 0.4 | N78: =0.68*'Input beam data'!O9 -> 0 | O78: ='Input beam data'!$K$15*(K78+N78) -> 0.8 | P78: =IF('Input beam data'!X$23=0,'Input beam data'!X$17+'Input beam data'!X$21,'Input beam data'!X$23) -> 0 | S78: =(0.013*O78*Span^3+0.0298*P78*Span^2*(3*MIN('Input beam data'!X$16,Span-'Input beam data'!X$16)/Span-4*(MIN('Input beam data'!X$16,Span-'Input beam data'!X$16)/Span)^3))*AH78 -> 84.24 | T78: =(0.013*O78*Span^4+0.0208*P78*Span^3*(3*MIN('Input beam data'!X$16,Span-'Input beam data'!X$16)/Span-4*(MIN('Input beam data'!X$16,Span-'Input beam data'!X$16)/Span)^3))/(AI78/1000) -> 8.424 | U78: =VLOOKUP(MAX(S78:T78),VSGMSG8!D$5:I$11,5) -> 3 | V78: =VLOOKUP(MAX(S78:T78),VSGMSG8!D$12:I$17,5) -> 2 | W78: =VLOOKUP(MAX(S78:T78),VSGMSG8!D$18:I$23,5) -> 1 | X78: =VLOOKUP(MAX(S78:T78),VSGMSG8!D$24:I$29,5) -> 1 | AD78: =VLOOKUP(MAX(S78:T78),Steel!$F$4:$H$24,2) -> 1 | AE78: =VLOOKUP(MAX(S78:T78),Steel!$F$26:$H$35,2) -> 1 | AH78: 300 | AI78: 100
A79: 5 | B79: 1.35G | K79: ='Basic data'!S$7 -> 0.4 | M79: 0 | O79: ='Input beam data'!$K$15*(1.35*K79) -> 1.08 | P79: =IF('Input beam data'!X$23=0,1.35*'Input beam data'!X$17,'Input beam data'!X$23) -> 0 | Q79: =MAX(O79*Span^2/8+P79*MIN('Input beam data'!X$16,(Span-'Input beam data'!X$16))/2,P79*'Input beam data'!X$16*(Span-'Input beam data'!X$16)/Span+O79*Span*MIN('Input beam data'!X$16,(Span-'Input beam data'!X$16))/2*(1-MIN('Input beam data'!X$16,(Span-'Input beam data'!X$16))/Span)) -> 1.215 | R79: =O79*'Input beam data'!$E$15/2+P79*MAX('Input beam data'!X$16,(Span-'Input beam data'!X$16))/Span -> 1.62 | U79: =VLOOKUP((Q79/AJ79),VSGMSG8!$A$5:$I$11,8) -> 3 | V79: =VLOOKUP((Q79/AJ79),VSGMSG8!$A$12:$I$17,8) -> 1 | W79: =VLOOKUP((Q79/AJ79),VSGMSG8!$A$18:$I$23,8) -> 1 | X79: =VLOOKUP((Q79/AJ79),VSGMSG8!$A$24:$I$29,8) -> 1 | AD79: =VLOOKUP(Q79,Steel!$C$4:$G$24,5) -> 1 | AE79: =VLOOKUP(Q79,Steel!$C$26:$G$35,5) -> 1 | AJ79: 0.6 | AK79: 45 | AL79: 101.8867925
A80: 6 | B80: 1.2G+1.5Q | K80: ='Basic data'!S$7 -> 0.4 | M80: =(MAX(MIN(1,0.3+3/('Input beam data'!$E$15*'Input beam data'!$K$15)^0.5),0.5))*2 -> 2 | O80: ='Input beam data'!$K$15*(1.2*K80+1.5*M80) -> 6.96 | P80: =IF('Input beam data'!X$23=0,1.2*'Input beam data'!X$17+1.5*'Input beam data'!X$18,'Input beam data'!X$23) -> 0 | Q80: =MAX(O80*Span^2/8+P80*MIN('Input beam data'!X$16,(Span-'Input beam data'!X$16))/2,P80*'Input beam data'!X$16*(Span-'Input beam data'!X$16)/Span+O80*Span*MIN('Input beam data'!X$16,(Span-'Input beam data'!X$16))/2*(1-MIN('Input beam data'!X$16,(Span-'Input beam data'!X$16))/Span)) -> 7.83 | R80: =O80*'Input beam data'!$E$15/2+P80*MAX('Input beam data'!X$16,(Span-'Input beam data'!X$16))/Span -> 10.44 | U80: =VLOOKUP((Q80/AJ80),VSGMSG8!$A$5:$I$11,8) -> 6 | V80: =VLOOKUP((Q80/AJ80),VSGMSG8!$A$12:$I$17,8) -> 5 | W80: =VLOOKUP((Q80/AJ80),VSGMSG8!$A$18:$I$23,8) -> 4 | X80: =VLOOKUP((Q80/AJ80),VSGMSG8!$A$24:$I$29,8) -> 4 | AD80: =VLOOKUP(Q80,Steel!$C$4:$G$24,5) -> 1 | AE80: =VLOOKUP(Q80,Steel!$C$26:$G$35,5) -> 1 | AJ80: 0.8 | AK80: 290 | AL80: 656.6037736
A81: 7 | B81: 1.2G+yQ+W | AJ81: 1 | AK81: 0 | AL81: 0
A82: 8 | B82: .9G+W | AJ82: 1 | AK82: 0 | AL82: 0
A83: 9 | B83: 1.2G+yQ+S | K83: ='Basic data'!S$7 -> 0.4 | M83: =0.7*(MAX(MIN(1,0.3+3/('Input beam data'!$E$15*'Input beam data'!$K$15)^0.5),0.5))*2 -> 1.4 | N83: ='Input beam data'!O9 -> 0 | O83: ='Input beam data'!$K$15*(1.2*K83+M83+N83) -> 3.76 | P83: =IF('Input beam data'!X$23=0,1.2*'Input beam data'!X$17+0+1.2*'Input beam data'!X$21,'Input beam data'!X$23) -> 0 | Q83: =MAX(O83*Span^2/8+P83*MIN('Input beam data'!X$16,(Span-'Input beam data'!X$16))/2,P83*'Input beam data'!X$16*(Span-'Input beam data'!X$16)/Span+O83*Span*MIN('Input beam data'!X$16,(Span-'Input beam data'!X$16))/2*(1-MIN('Input beam data'!X$16,(Span-'Input beam data'!X$16))/Span)) -> 4.23 | R83: =O83*'Input beam data'!$E$15/2+P83*MAX('Input beam data'!X$16,(Span-'Input beam data'!X$16))/Span -> 5.64 | U83: =VLOOKUP((Q83/AJ83),VSGMSG8!$A$5:$I$11,8) -> 5 | V83: =VLOOKUP((Q83/AJ83),VSGMSG8!$A$12:$I$17,8) -> 3 | W83: =VLOOKUP((Q83/AJ83),VSGMSG8!$A$18:$I$23,8) -> 2 | X83: =VLOOKUP((Q83/AJ83),VSGMSG8!$A$24:$I$29,8) -> 3 | AD83: =VLOOKUP(Q83,Steel!$C$4:$G$24,5) -> 1 | AE83: =VLOOKUP(Q83,Steel!$C$26:$G$35,5) -> 1 | AJ83: 0.8 | AK83: 156.6666667 | AL83: 354.7169811
Q84: Min: | R84: =MIN(R75:R83) -> 1.62 | T84: Max: | U84: =MAX(U75:U83) -> 6 | V84: =MAX(V75:V83) -> 5 | W84: =MAX(W75:W83) -> 4 | X84: =MAX(X75:X83) -> 4 | AD84: =MAX(AD75:AD83) -> 1 | AE84: =MAX(AE75:AE83) -> 1 | AK84: =MAX(AK75:AK83) -> 290 | AL84: =MAX(AL75:AL83) -> 656.6037736
A85: Application 7. Roof beam | H85: (dry props)
C86: Basic loads | O86: Note have ignored ceiling being on the horizontal plane for now
C87: Roof | I87: Upper wall | J87: Lower wall | K87: Floor/deck | O87: Actions | U87: Size index's | AH87: Deflection limits | AJ87: Strength
A88: Load case | C88: G | D88: Ql | E88: Qs | F88: S | G88: W(e) | H88: W(r) | I88: G | J88: G | K88: G | L88: Ql | M88: Qs | N88: S | O88: UDL | P88: P | Q88: M* | R88: V* | S88: EI(s) | T88: EI(a) | U88: MSG8 | Y88: LVL | AB88: GL | AD88: UB | AE88: MSC | AF88: Flitch | AH88: (span/) | AI88: (mm) | AJ88: dur. fact.
A89: 1 | B89: G+Ql | C89: =VLOOKUP('Basic data'!M$5,'Basic data'!$G$7:$Y$14,7) -> 0.85 | D89: 0 | O89: =('Input beam data'!$K$15)*(C89/VLOOKUP('Basic data'!V$5,'Basic data'!$G$7:$Y$14,16)+D89) -> 1.759969507 | P89: =IF('Input beam data'!X$23=0,'Input beam data'!X$17,'Input beam data'!X$23) -> 0 | S89: =(0.013*O89*Span^3+0.0298*P89*Span^2*(3*MIN('Input beam data'!X$16,Span-'Input beam data'!X$16)/Span-4*(MIN('Input beam data'!X$16,Span-'Input beam data'!X$16)/Span)^3))*AH89 -> 185.3247891 | T89: =(0.013*O89*Span^4+0.0208*P89*Span^3*(3*MIN('Input beam data'!X$16,Span-'Input beam data'!X$16)/Span-4*(MIN('Input beam data'!X$16,Span-'Input beam data'!X$16)/Span)^3))/(AI89/1000) -> 18.53247891 | U89: =VLOOKUP(MAX(S89:T89),VSGMSG8!G$5:I$11,2) -> 5 | V89: =VLOOKUP(MAX(S89:T89),VSGMSG8!G$12:I$17,2) -> 3 | W89: =VLOOKUP(MAX(S89:T89),VSGMSG8!G$18:I$23,2) -> 3 | X89: =VLOOKUP(MAX(S89:T89),VSGMSG8!G$24:I$29,2) -> 3 | Y89: =VLOOKUP(MAX(S89:T89),LVL!D$5:F$14,2) -> 4 | Z89: =VLOOKUP(MAX(S89:T89),LVL!D$15:F$26,2) -> 4 | AA89: =VLOOKUP(MAX(S89:T89),LVL!D$27:F$33,2) -> 1 | AB89: =VLOOKUP(MAX(S89:T89),Glulam!C$5:E$11,2) -> 2 | AC89: =VLOOKUP(MAX(S89:T89),Glulam!C$12:E$20,2) -> 1 | AD89: =VLOOKUP(MAX(S89:T89),Steel!$F$4:$H$24,2) -> 1 | AE89: =VLOOKUP(MAX(S89:T89),Steel!$F$26:$H$35,2) -> 1 | AF89: =VLOOKUP(MAX(S89:T89),Flitch!$E$5:$F$10,2) -> 0 | AG89: =VLOOKUP(MAX(S89:T89),Flitch!E$44:F$54,2) -> 0 | AH89: 300 | AI89: 100
A90: 2 | B90: G+Qs | C90: =VLOOKUP('Basic data'!M$5,'Basic data'!$G$7:$Y$14,7) -> 0.85 | E90: =0.7*'Basic data'!$M$11 -> 0.175 | O90: =('Input beam data'!$K$15)*(C90/VLOOKUP('Basic data'!V$5,'Basic data'!$G$7:$Y$14,16)+E90) -> 2.109969507 | P90: =IF('Input beam data'!X$23=0,'Input beam data'!X$17+0.7*'Input beam data'!X$18,'Input beam data'!X$23) -> 0 | S90: =(0.013*O90*Span^3+0.0298*P90*Span^2*(3*MIN('Input beam data'!X$16,Span-'Input beam data'!X$16)/Span-4*(MIN('Input beam data'!X$16,Span-'Input beam data'!X$16)/Span)^3))*AH90 -> 222.1797891 | T90: =(0.013*O90*Span^4+0.0208*P90*Span^3*(3*MIN('Input beam data'!X$16,Span-'Input beam data'!X$16)/Span-4*(MIN('Input beam data'!X$16,Span-'Input beam data'!X$16)/Span)^3))/(AI90/1000) -> 22.21797891 | U90: =VLOOKUP(MAX(S90:T90),VSGMSG8!E$5:I$11,4) -> 4 | V90: =VLOOKUP(MAX(S90:T90),VSGMSG8!E$12:I$17,4) -> 3 | W90: =VLOOKUP(MAX(S90:T90),VSGMSG8!E$18:I$23,4) -> 2 | X90: =VLOOKUP(MAX(S90:T90),VSGMSG8!E$24:I$29,4) -> 2 | Y90: =VLOOKUP(MAX(S90:T90),LVL!C$5:F$14,3) -> 4 | Z90: =VLOOKUP(MAX(S90:T90),LVL!C$15:F$26,3) -> 3 | AA90: =VLOOKUP(MAX(S90:T90),LVL!C$27:F$33,3) -> 0 | AB90: =VLOOKUP(MAX(S90:T90),Glulam!B$5:E$11,3) -> 1 | AC90: =VLOOKUP(MAX(S90:T90),Glulam!B$12:E$20,3) -> 1 | AD90: =VLOOKUP(MAX(S90:T90),Steel!$F$4:$H$24,2) -> 1 | AE90: =VLOOKUP(MAX(S90:T90),Steel!$F$26:$H$35,2) -> 1 | AF90: =VLOOKUP(MAX(S90:T90),Flitch!$D$5:$F$10,3) -> 0 | AG90: =VLOOKUP(MAX(S90:T90),Flitch!$D$44:$F$54,3) -> 0 | AH90: 300 | AI90: 100
A91: 3 | B91: Spare
A92: 4 | B92: G+S | C92: =VLOOKUP('Basic data'!M$5,'Basic data'!$G$7:$Y$14,7) -> 0.85 | E92: 0 | F92: =0.68*'Input beam data'!$O$9*VLOOKUP('Basic data'!$V$5,'Basic data'!$G$7:$Y$14,17) -> 0 | O92: =('Input beam data'!$K$15)*(C92/VLOOKUP('Basic data'!V$5,'Basic data'!$G$7:$Y$14,16)+F92) -> 1.759969507 | P92: =IF('Input beam data'!X$23=0,'Input beam data'!X$17+'Input beam data'!X$21,'Input beam data'!X$23) -> 0 | S92: =(0.013*O92*Span^3+0.0298*P92*Span^2*(3*MIN('Input beam data'!X$16,Span-'Input beam data'!X$16)/Span-4*(MIN('Input beam data'!X$16,Span-'Input beam data'!X$16)/Span)^3))*AH92 -> 154.4373242 | T92: =(0.013*O92*Span^4+0.0208*P92*Span^3*(3*MIN('Input beam data'!X$16,Span-'Input beam data'!X$16)/Span-4*(MIN('Input beam data'!X$16,Span-'Input beam data'!X$16)/Span)^3))/(AI92/1000) -> 18.53247891 | U92: =VLOOKUP(MAX(S92:T92),VSGMSG8!E$5:I$11,4) -> 4 | V92: =VLOOKUP(MAX(S92:T92),VSGMSG8!E$12:I$17,4) -> 2 | W92: =VLOOKUP(MAX(S92:T92),VSGMSG8!E$18:I$23,4) -> 2 | X92: =VLOOKUP(MAX(S92:T92),VSGMSG8!E$24:I$29,4) -> 2 | Y92: =VLOOKUP(MAX(S92:T92),LVL!C$5:F$14,3) -> 3 | Z92: =VLOOKUP(MAX(S92:T92),LVL!C$15:F$26,3) -> 3 | AA92: =VLOOKUP(MAX(S92:T92),LVL!C$27:F$33,3) -> 0 | AB92: =VLOOKUP(MAX(S92:T92),Glulam!B$5:E$11,3) -> 1 | AC92: =VLOOKUP(MAX(S92:T92),Glulam!B$12:E$20,3) -> 1 | AD92: =VLOOKUP(MAX(S92:T92),Steel!$F$4:$H$24,2) -> 1 | AE92: =VLOOKUP(MAX(S92:T92),Steel!$F$26:$H$35,2) -> 1 | AF92: =VLOOKUP(MAX(S92:T92),Flitch!$D$5:$F$10,3) -> 0 | AG92: =VLOOKUP(MAX(S92:T92),Flitch!$D$44:$F$54,3) -> 0 | AH92: 250 | AI92: 100
A93: 5 | B93: 1.35G | C93: =VLOOKUP('Basic data'!M$5,'Basic data'!$G$7:$Y$14,7) -> 0.85 | O93: =('Input beam data'!$K$15)*(1.35*C93/VLOOKUP('Basic data'!V$5,'Basic data'!$G$7:$Y$14,16)) -> 2.375958834 | P93: =IF('Input beam data'!X$23=0,1.35*'Input beam data'!X$17,'Input beam data'!X$23) -> 0 | Q93: =MAX(O93*Span^2/8+P93*MIN('Input beam data'!X$16,(Span-'Input beam data'!X$16))/2,P93*'Input beam data'!X$16*(Span-'Input beam data'!X$16)/Span+O93*Span*MIN('Input beam data'!X$16,(Span-'Input beam data'!X$16))/2*(1-MIN('Input beam data'!X$16,(Span-'Input beam data'!X$16))/Span)) -> 2.672953688 | R93: =O93*'Input beam data'!$E$15/2+P93*MAX('Input beam data'!X$16,(Span-'Input beam data'!X$16))/Span -> 3.563938251 | U93: =VLOOKUP((Q93/AJ93),VSGMSG8!$B$5:$I$11,7) -> 4 | V93: =VLOOKUP((Q93/AJ93),VSGMSG8!$B$12:$I$17,7) -> 2 | W93: =VLOOKUP((Q93/AJ93),VSGMSG8!$B$18:$I$23,7) -> 2 | X93: =VLOOKUP((Q93/AJ93),VSGMSG8!$B$24:$I$29,7) -> 2 | Y93: =VLOOKUP((Q93/AJ93),LVL!A$5:F$14,5) -> 3 | Z93: =VLOOKUP((Q93/AJ93),LVL!A$15:F$26,5) -> 3 | AA93: =VLOOKUP((Q93/AJ93),LVL!A$27:F$33,5) -> 0 | AB93: =VLOOKUP((Q93/AJ93),Glulam!$A$5:$D$20,4) -> 1 | AC93: =VLOOKUP((Q93/AJ93),Glulam!$A$12:$D$20,4) -> 1 | AD93: =VLOOKUP(Q93,Steel!$C$4:$G$24,5) -> 1 | AE93: =VLOOKUP(Q93,Steel!$C$26:$G$35,5) -> 1 | AF93: =VLOOKUP(Q93,Flitch!$B$5:$F$10,5) -> 0 | AG93: =VLOOKUP(Q93,Flitch!$B$44:$F$54,5) -> 0 | AJ93: 0.6 | AK93: 30.46279836 | AL93: 61.61015398
A94: 6 | B94: 1.2G+1.5Q | C94: =VLOOKUP('Basic data'!M$5,'Basic data'!$G$7:$Y$14,7) -> 0.85 | E94: ='Basic data'!M$11 -> 0.25 | O94: =('Input beam data'!$K$15)*(1.2*C94/VLOOKUP('Basic data'!V$5,'Basic data'!$G$7:$Y$14,16)+1.5*E94) -> 2.861963408 | P94: =IF('Input beam data'!X$23=0,1.2*'Input beam data'!X$17+1.5*'Input beam data'!X$18,'Input beam data'!X$23) -> 0 | Q94: =MAX(O94*Span^2/8+P94*MIN('Input beam data'!X$16,(Span-'Input beam data'!X$16))/2,P94*'Input beam data'!X$16*(Span-'Input beam data'!X$16)/Span+O94*Span*MIN('Input beam data'!X$16,(Span-'Input beam data'!X$16))/2*(1-MIN('Input beam data'!X$16,(Span-'Input beam data'!X$16))/Span)) -> 3.219708834 | R94: =O94*'Input beam data'!$E$15/2+P94*MAX('Input beam data'!X$16,(Span-'Input beam data'!X$16))/Span -> 4.292945112 | U94: =VLOOKUP((Q94/AJ94),VSGMSG8!$B$5:$I$11,7) -> 4 | V94: =VLOOKUP((Q94/AJ94),VSGMSG8!$B$12:$I$17,7) -> 2 | W94: =VLOOKUP((Q94/AJ94),VSGMSG8!$B$18:$I$23,7) -> 2 | X94: =VLOOKUP((Q94/AJ94),VSGMSG8!$B$24:$I$29,7) -> 2 | Y94: =VLOOKUP((Q94/AJ94),LVL!A$5:F$14,5) -> 3 | Z94: =VLOOKUP((Q94/AJ94),LVL!A$15:F$26,5) -> 3 | AA94: =VLOOKUP((Q94/AJ94),LVL!A$27:F$33,5) -> 0 | AB94: =VLOOKUP((Q94/AJ94),Glulam!$A$5:$D$20,4) -> 1 | AC94: =VLOOKUP((Q94/AJ94),Glulam!$A$12:$D$20,4) -> 1 | AD94: =VLOOKUP(Q94,Steel!$C$4:$G$24,5) -> 1 | AE94: =VLOOKUP(Q94,Steel!$C$26:$G$35,5) -> 1 | AF94: =VLOOKUP(Q94,Flitch!$A$5:$F$10,6) -> 0 | AG94: =VLOOKUP(Q94,Flitch!$A$44:$F$54,6) -> 0 | AJ94: 0.8 | AK94: 47.91137632 | AL94: 96.89941278
A95: 7 | B95: 1.2G+yQ+W | C95: =VLOOKUP('Basic data'!M$5,'Basic data'!$G$7:$Y$14,7) -> 0.85 | E95: 0 | H95: =VLOOKUP('Basic data'!I$5,'Basic data'!$G$7:$Y$14,3)*'Basic data'!E$19*'Basic data'!F$19*'Basic data'!G$19 -> 0.58 | O95: =('Input beam data'!$K$15)*(1.2*C95/VLOOKUP('Basic data'!V$5,'Basic data'!$G$7:$Y$14,16)+H95) -> 3.271963408 | P95: =IF('Input beam data'!X$23=0,1.2*'Input beam data'!X$17+0+'Input beam data'!X$20,'Input beam data'!X$23) -> 0 | Q95: =MAX(O95*Span^2/8+P95*MIN('Input beam data'!X$16,(Span-'Input beam data'!X$16))/2,P95*'Input beam data'!X$16*(Span-'Input beam data'!X$16)/Span+O95*Span*MIN('Input beam data'!X$16,(Span-'Input beam data'!X$16))/2*(1-MIN('Input beam data'!X$16,(Span-'Input beam data'!X$16))/Span)) -> 3.680958834 | R95: =O95*'Input beam data'!$E$15/2+P95*MAX('Input beam data'!X$16,(Span-'Input beam data'!X$16))/Span -> 4.907945112 | U95: =VLOOKUP((Q95/AJ95),VSGMSG8!$B$5:$I$11,7) -> 4 | V95: =VLOOKUP((Q95/AJ95),VSGMSG8!$B$12:$I$17,7) -> 2 | W95: =VLOOKUP((Q95/AJ95),VSGMSG8!$B$18:$I$23,7) -> 1 | X95: =VLOOKUP((Q95/AJ95),VSGMSG8!$B$24:$I$29,7) -> 2 | Y95: =VLOOKUP((Q95/AJ95),LVL!A$5:F$14,5) -> 3 | Z95: =VLOOKUP((Q95/AJ95),LVL!A$15:F$26,5) -> 3 | AA95: =VLOOKUP((Q95/AJ95),LVL!A$27:F$33,5) -> 0 | AB95: =VLOOKUP((Q95/AJ95),Glulam!$A$5:$D$20,4) -> 1 | AC95: =VLOOKUP((Q95/AJ95),Glulam!$A$12:$D$20,4) -> 1 | AD95: =VLOOKUP(Q95,Steel!$C$4:$G$24,5) -> 1 | AE95: =VLOOKUP(Q95,Steel!$C$26:$G$35,5) -> 1 | AF95: =VLOOKUP(Q95,Flitch!$A$5:$F$10,6) -> 0 | AG95: =VLOOKUP(Q95,Flitch!$A$44:$F$54,6) -> 0 | AJ95: 1 | AK95: 77.63359854 | AL95: 157.0117723
A96: 8 | B96: .9G+W | C96: =VLOOKUP((2+'Basic data'!M$5),'Basic data'!$G$7:$Y$14,7) -> 0.4 | H96: =VLOOKUP('Basic data'!I$5,'Basic data'!$G$7:$Y$14,3)*'Basic data'!E$20*'Basic data'!F$20*'Basic data'!G$20 -> 1.1136 | O96: =('Input beam data'!$K$15)*(0.9*C96/VLOOKUP('Basic data'!V$5,'Basic data'!$G$7:$Y$14,16)-H96) -> -1.48180115 | P96: =IF('Input beam data'!X$23=0,0.9*'Input beam data'!X$17+'Input beam data'!X$19,'Input beam data'!X$23) -> 0 | Q96: =MAX(ABS(O96*Span^2/8+P96*MIN('Input beam data'!X$16,(Span-'Input beam data'!X$16))/2),ABS(P96*'Input beam data'!X$16*(Span-'Input beam data'!X$16)/Span+O96*Span*MIN('Input beam data'!X$16,(Span-'Input beam data'!X$16))/2*(1-MIN('Input beam data'!X$16,(Span-'Input beam data'!X$16))/Span))) -> 1.667026294 | R96: =O96*'Input beam data'!$E$15/2+P96*MAX('Input beam data'!X$16,(Span-'Input beam data'!X$16))/Span -> -2.222701725 | U96: =VLOOKUP((Q96/AJ96),VSGMSG8!$C$5:$H$11,6) -> 3 | V96: =VLOOKUP((Q96/AJ96),VSGMSG8!$C$12:$H$17,6) -> 1 | W96: =VLOOKUP((Q96/AJ96),VSGMSG8!$C$18:$H$23,6) -> 1 | X96: =VLOOKUP((Q96/AJ96),VSGMSG8!$C$24:$H$29,6) -> 1 | Y96: =VLOOKUP((Q96/AJ96),LVL!B$5:F$14,4) -> 1 | Z96: =VLOOKUP((Q96/AJ96),LVL!B$15:F$26,4) -> 3 | AA96: =VLOOKUP((Q96/AJ96),LVL!B$27:F$33,4) -> 0 | AB96: =VLOOKUP((Q96/AJ96),Glulam!$A$5:$D$20,4) -> 0 | AC96: =VLOOKUP((Q96/AJ96),Glulam!$A$12:$D$20,4) -> 0 | AD96: =VLOOKUP(Q96,Steel!$C$4:$G$24,5) -> 1 | AE96: =VLOOKUP(Q96,Steel!$C$26:$G$35,5) -> 1 | AF96: =VLOOKUP(Q96,Flitch!$C$5:$F$10,4) -> 0 | AG96: =VLOOKUP(Q96,Flitch!$C$44:$F$54,4) -> 0 | AJ96: 1 | AK96: 86.91240055 | AL96: 175.7778887 | AP96: bmnbmn
A97: 9 | B97: 1.2G+yQ+S | C97: =VLOOKUP('Basic data'!M$5,'Basic data'!$G$7:$Y$14,7) -> 0.85 | E97: 0 | F97: ='Input beam data'!$O$9*VLOOKUP('Basic data'!$V$5,'Basic data'!$G$7:$Y$14,17) -> 0 | O97: =('Input beam data'!$K$15)*(1.2*C97/VLOOKUP('Basic data'!V$5,'Basic data'!$G$7:$Y$14,16)+F97) -> 2.111963408 | P97: =IF('Input beam data'!X$23=0,1.2*'Input beam data'!X$17+0+1.2*'Input beam data'!X$21,'Input beam data'!X$23) -> 0 | Q97: =MAX(O97*Span^2/8+P97*MIN('Input beam data'!X$16,(Span-'Input beam data'!X$16))/2,P97*'Input beam data'!X$16*(Span-'Input beam data'!X$16)/Span+O97*Span*MIN('Input beam data'!X$16,(Span-'Input beam data'!X$16))/2*(1-MIN('Input beam data'!X$16,(Span-'Input beam data'!X$16))/Span)) -> 2.375958834 | R97: =O97*'Input beam data'!$E$15/2+P97*MAX('Input beam data'!X$16,(Span-'Input beam data'!X$16))/Span -> 3.167945112 | U97: =VLOOKUP((Q97/AJ97),VSGMSG8!$B$5:$I$11,7) -> 3 | V97: =VLOOKUP((Q97/AJ97),VSGMSG8!$B$12:$I$17,7) -> 2 | W97: =VLOOKUP((Q97/AJ97),VSGMSG8!$B$18:$I$23,7) -> 1 | X97: =VLOOKUP((Q97/AJ97),VSGMSG8!$B$24:$I$29,7) -> 1 | Y97: =VLOOKUP((Q97/AJ97),LVL!A$5:F$14,5) -> 2 | Z97: =VLOOKUP((Q97/AJ97),LVL!A$15:F$26,5) -> 3 | AA97: =VLOOKUP((Q97/AJ97),LVL!A$27:F$33,5) -> 0 | AB97: =VLOOKUP((Q97/AJ97),Glulam!$A$5:$D$20,4) -> 0 | AC97: =VLOOKUP((Q97/AJ97),Glulam!$A$12:$D$20,4) -> 0 | AD97: =VLOOKUP(Q97,Steel!$C$4:$G$24,5) -> 1 | AE97: =VLOOKUP(Q97,Steel!$C$26:$G$35,5) -> 1 | AF97: =VLOOKUP(Q97,Flitch!$A$5:$F$10,6) -> 0 | AG97: =VLOOKUP(Q97,Flitch!$A$44:$F$54,6) -> 0 | AJ97: 0.8 | AK97: 27.07804298 | AL97: 54.76458132
Q98: Min: | R98: =MIN(R89:R97) -> -2.222701725 | T98: Max: | U98: =MAX(U89:U97) -> 5 | V98: 3 | W98: 3 | X98: 3 | Y98: 4 | Z98: 4 | AA98: 1 | AB98: 2 | AC98: 1 | AD98: 1 | AE98: 1 | AF98: =MAX(AF89:AF97) -> 0 | AG98: =MAX(AG89:AG97) -> 0 | AK98: =MAX(AK89:AK97) -> 86.91240055 | AL98: =MAX(AL89:AL97) -> 175.7778887
A99: Application 8. Garage door lintel | I99: (dry props)
C100: Basic loads
C101: Roof | I101: Upper wall | J101: Lower wall | K101: Floor/deck | O101: Actions | U101: Size index's | AH101: Deflection limits | AJ101: Strength
A102: Load case | C102: G | D102: Ql | E102: Qs | F102: S | G102: W(e) | H102: W(r) | I102: G | J102: G | K102: G | L102: Ql | M102: Qs | N102: S | O102: UDL | P102: P | Q102: M* | R102: V* | S102: EI(s) | T102: EI(a) | U102: MSG8 | Y102: LVL | AB102: GL | AD102: UB | AE102: MSC | AF102: Flitch | AH102: (span/) | AI102: (mm) | AJ102: dur. fact.
A103: 1 | B103: G+Ql | C103: =VLOOKUP('Basic data'!M$5,'Basic data'!$G$7:$Y$14,7) -> 0.85 | D103: 0 | O103: =('Input beam data'!$K$15+'Input beam data'!$O$17)*(C103/VLOOKUP('Basic data'!V$5,'Basic data'!$G$7:$Y$14,16)+D103) -> 2.287960359 | P103: =IF('Input beam data'!X$23=0,'Input beam data'!X$17,'Input beam data'!X$23) -> 0 | S103: =(0.013*O103*Span^3+0.0298*P103*Span^2*(3*MIN('Input beam data'!X$16,Span-'Input beam data'!X$16)/Span-4*(MIN('Input beam data'!X$16,Span-'Input beam data'!X$16)/Span)^3))*AH103 -> 240.9222258 | T103: =(0.013*O103*Span^4+0.0208*P103*Span^3*(3*MIN('Input beam data'!X$16,Span-'Input beam data'!X$16)/Span-4*(MIN('Input beam data'!X$16,Span-'Input beam data'!X$16)/Span)^3))/(AI103/1000) -> 24.09222258 | U103: =VLOOKUP(MAX(S103:T103),VSGMSG8!G$5:I$11,2) -> 5 | V103: =VLOOKUP(MAX(S103:T103),VSGMSG8!G$12:I$17,2) -> 4 | W103: =VLOOKUP(MAX(S103:T103),VSGMSG8!G$18:I$23,2) -> 3 | X103: =VLOOKUP(MAX(S103:T103),VSGMSG8!G$24:I$29,2) -> 3 | Y103: =VLOOKUP(MAX(S103:T103),LVL!D$5:F$14,2) -> 5 | Z103: =VLOOKUP(MAX(S103:T103),LVL!D$15:F$26,2) -> 4 | AA103: =VLOOKUP(MAX(S103:T103),LVL!D$27:F$33,2) -> 1 | AB103: =VLOOKUP(MAX(S103:T103),Glulam!C$5:E$11,2) -> 2 | AC103: =VLOOKUP(MAX(S103:T103),Glulam!C$12:E$20,2) -> 2 | AD103: =VLOOKUP(MAX(S103:T103),Steel!$F$4:$H$24,2) -> 1 | AE103: =VLOOKUP(MAX(S103:T103),Steel!$F$26:$H$35,2) -> 1 | AF103: =VLOOKUP(MAX(S103:T103),Flitch!$E$5:$F$10,2) -> 0 | AG103: =VLOOKUP(MAX(S103:T103),Flitch!E$44:F$54,2) -> 0 | AH103: 300 | AI103: 100
A104: 2 | B104: G+Qs | C104: =VLOOKUP('Basic data'!M$5,'Basic data'!$G$7:$Y$14,7) -> 0.85 | E104: =0.7*'Basic data'!$M$11 -> 0.175 | O104: =('Input beam data'!$K$15+'Input beam data'!$O$17)*(C104/VLOOKUP('Basic data'!V$5,'Basic data'!$G$7:$Y$14,16)+E104) -> 2.742960359 | P104: =IF('Input beam data'!X$23=0,'Input beam data'!X$17+0.7*'Input beam data'!X$18,'Input beam data'!X$23) -> 0 | S104: =(0.013*O104*Span^3+0.0298*P104*Span^2*(3*MIN('Input beam data'!X$16,Span-'Input beam data'!X$16)/Span-4*(MIN('Input beam data'!X$16,Span-'Input beam data'!X$16)/Span)^3))*AH104 -> 288.8337258 | T104: =(0.013*O104*Span^4+0.0208*P104*Span^3*(3*MIN('Input beam data'!X$16,Span-'Input beam data'!X$16)/Span-4*(MIN('Input beam data'!X$16,Span-'Input beam data'!X$16)/Span)^3))/(AI104/1000) -> 28.88337258 | U104: =VLOOKUP(MAX(S104:T104),VSGMSG8!E$5:I$11,4) -> 5 | V104: =VLOOKUP(MAX(S104:T104),VSGMSG8!E$12:I$17,4) -> 3 | W104: =VLOOKUP(MAX(S104:T104),VSGMSG8!E$18:I$23,4) -> 2 | X104: =VLOOKUP(MAX(S104:T104),VSGMSG8!E$24:I$29,4) -> 3 | Y104: =VLOOKUP(MAX(S104:T104),LVL!C$5:F$14,3) -> 4 | Z104: =VLOOKUP(MAX(S104:T104),LVL!C$15:F$26,3) -> 4 | AA104: =VLOOKUP(MAX(S104:T104),LVL!C$27:F$33,3) -> 1 | AB104: =VLOOKUP(MAX(S104:T104),Glulam!B$5:E$11,3) -> 2 | AC104: =VLOOKUP(MAX(S104:T104),Glulam!B$12:E$20,3) -> 1 | AD104: =VLOOKUP(MAX(S104:T104),Steel!$F$4:$H$24,2) -> 1 | AE104: =VLOOKUP(MAX(S104:T104),Steel!$F$26:$H$35,2) -> 1 | AF104: =VLOOKUP(MAX(S104:T104),Flitch!$D$5:$F$10,3) -> 0 | AG104: =VLOOKUP(MAX(S104:T104),Flitch!$D$44:$F$54,3) -> 0 | AH104: 300 | AI104: 100
A105: 3 | B105: Spare
A106: 4 | B106: G+S | C106: =VLOOKUP('Basic data'!M$5,'Basic data'!$G$7:$Y$14,7) -> 0.85 | E106: 0 | F106: =0.68*'Input beam data'!$O$9*VLOOKUP('Basic data'!$V$5,'Basic data'!$G$7:$Y$14,17) -> 0 | O106: =('Input beam data'!$K$15+'Input beam data'!$O$17)*(C106/VLOOKUP('Basic data'!V$5,'Basic data'!$G$7:$Y$14,16)+F106) -> 2.287960359 | P106: =IF('Input beam data'!X$23=0,'Input beam data'!X$17+'Input beam data'!X$21,'Input beam data'!X$23) -> 0 | S106: =(0.013*O106*Span^3+0.0298*P106*Span^2*(3*MIN('Input beam data'!X$16,Span-'Input beam data'!X$16)/Span-4*(MIN('Input beam data'!X$16,Span-'Input beam data'!X$16)/Span)^3))*AH106 -> 80.30740859 | T106: =(0.013*O106*Span^4+0.0208*P106*Span^3*(3*MIN('Input beam data'!X$16,Span-'Input beam data'!X$16)/Span-4*(MIN('Input beam data'!X$16,Span-'Input beam data'!X$16)/Span)^3))/(AI106/1000) -> 96.36889031 | U106: =VLOOKUP(MAX(S106:T106),VSGMSG8!E$5:I$11,4) -> 3 | V106: =VLOOKUP(MAX(S106:T106),VSGMSG8!E$12:I$17,4) -> 2 | W106: =VLOOKUP(MAX(S106:T106),VSGMSG8!E$18:I$23,4) -> 1 | X106: =VLOOKUP(MAX(S106:T106),VSGMSG8!E$24:I$29,4) -> 1 | Y106: =VLOOKUP(MAX(S106:T106),LVL!C$5:F$14,3) -> 2 | Z106: =VLOOKUP(MAX(S106:T106),LVL!C$15:F$26,3) -> 3 | AA106: =VLOOKUP(MAX(S106:T106),LVL!C$27:F$33,3) -> 0 | AB106: =VLOOKUP(MAX(S106:T106),Glulam!B$5:E$11,3) -> 0 | AC106: =VLOOKUP(MAX(S106:T106),Glulam!B$12:E$20,3) -> 0 | AD106: =VLOOKUP(MAX(S106:T106),Steel!$F$4:$H$24,2) -> 1 | AE106: =VLOOKUP(MAX(S106:T106),Steel!$F$26:$H$35,2) -> 1 | AF106: =VLOOKUP(MAX(S106:T106),Flitch!$D$5:$F$10,3) -> 0 | AG106: =VLOOKUP(MAX(S106:T106),Flitch!$D$44:$F$54,3) -> 0 | AH106: 100 | AI106: 25
A107: 5 | B107: 1.35G | C107: =VLOOKUP('Basic data'!M$5,'Basic data'!$G$7:$Y$14,7) -> 0.85 | O107: =('Input beam data'!$K$15+'Input beam data'!$O$17)*(1.35*C107/VLOOKUP('Basic data'!V$5,'Basic data'!$G$7:$Y$14,16)) -> 3.088746484 | P107: =IF('Input beam data'!X$23=0,1.35*'Input beam data'!X$17,'Input beam data'!X$23) -> 0 | Q107: =MAX(O107*Span^2/8+P107*MIN('Input beam data'!X$16,(Span-'Input beam data'!X$16))/2,P107*'Input beam data'!X$16*(Span-'Input beam data'!X$16)/Span+O107*Span*MIN('Input beam data'!X$16,(Span-'Input beam data'!X$16))/2*(1-MIN('Input beam data'!X$16,(Span-'Input beam data'!X$16))/Span)) -> 3.474839795 | R107: =O107*'Input beam data'!$E$15/2+P107*MAX('Input beam data'!X$16,(Span-'Input beam data'!X$16))/Span -> 4.633119726 | U107: =VLOOKUP((Q107/AJ107),VSGMSG8!$B$5:$I$11,7) -> 5 | V107: =VLOOKUP((Q107/AJ107),VSGMSG8!$B$12:$I$17,7) -> 3 | W107: =VLOOKUP((Q107/AJ107),VSGMSG8!$B$18:$I$23,7) -> 2 | X107: =VLOOKUP((Q107/AJ107),VSGMSG8!$B$24:$I$29,7) -> 2 | Y107: =VLOOKUP((Q107/AJ107),LVL!A$5:F$14,5) -> 4 | Z107: =VLOOKUP((Q107/AJ107),LVL!A$15:F$26,5) -> 3 | AA107: =VLOOKUP((Q107/AJ107),LVL!A$27:F$33,5) -> 0 | AB107: =VLOOKUP((Q107/AJ107),Glulam!$A$5:$D$20,4) -> 1 | AC107: =VLOOKUP((Q107/AJ107),Glulam!$A$12:$D$20,4) -> 1 | AD107: =VLOOKUP(Q107,Steel!$E$64:$G$84,3) -> 1 | AE107: =VLOOKUP(Q107,Steel!$E$26:$G$35,3) -> 1 | AF107: =VLOOKUP(Q107,Flitch!$B$5:$F$10,5) -> 0 | AG107: =VLOOKUP(Q107,Flitch!$B$44:$F$54,5) -> 0 | AJ107: 0.6 | AK107: 53.30989712 | AL107: 107.8177695
A108: 6 | B108: 1.2G+1.5Q | C108: =VLOOKUP('Basic data'!M$5,'Basic data'!$G$7:$Y$14,7) -> 0.85 | E108: ='Basic data'!M$11 -> 0.25 | O108: =('Input beam data'!$K$15+'Input beam data'!$O$17)*(1.2*C108/VLOOKUP('Basic data'!V$5,'Basic data'!$G$7:$Y$14,16)+1.5*E108) -> 3.72055243 | P108: =IF('Input beam data'!X$23=0,1.2*'Input beam data'!X$17+1.5*'Input beam data'!X$18,'Input beam data'!X$23) -> 0 | Q108: =MAX(O108*Span^2/8+P108*MIN('Input beam data'!X$16,(Span-'Input beam data'!X$16))/2,P108*'Input beam data'!X$16*(Span-'Input beam data'!X$16)/Span+O108*Span*MIN('Input beam data'!X$16,(Span-'Input beam data'!X$16))/2*(1-MIN('Input beam data'!X$16,(Span-'Input beam data'!X$16))/Span)) -> 4.185621484 | R108: =O108*'Input beam data'!$E$15/2+P108*MAX('Input beam data'!X$16,(Span-'Input beam data'!X$16))/Span -> 5.580828646 | U108: =VLOOKUP((Q108/AJ108),VSGMSG8!$B$5:$I$11,7) -> 5 | V108: =VLOOKUP((Q108/AJ108),VSGMSG8!$B$12:$I$17,7) -> 3 | W108: =VLOOKUP((Q108/AJ108),VSGMSG8!$B$18:$I$23,7) -> 2 | X108: =VLOOKUP((Q108/AJ108),VSGMSG8!$B$24:$I$29,7) -> 2 | Y108: =VLOOKUP((Q108/AJ108),LVL!A$5:F$14,5) -> 4 | Z108: =VLOOKUP((Q108/AJ108),LVL!A$15:F$26,5) -> 3 | AA108: =VLOOKUP((Q108/AJ108),LVL!A$27:F$33,5) -> 0 | AB108: =VLOOKUP((Q108/AJ108),Glulam!$A$5:$D$20,4) -> 1 | AC108: =VLOOKUP((Q108/AJ108),Glulam!$A$12:$D$20,4) -> 1 | AD108: =VLOOKUP(Q108,Steel!$E$64:$G$84,3) -> 1 | AE108: =VLOOKUP(Q108,Steel!$E$26:$G$35,3) -> 1 | AF108: =VLOOKUP(Q108,Flitch!$A$5:$F$10,6) -> 0 | AG108: =VLOOKUP(Q108,Flitch!$A$44:$F$54,6) -> 0 | AJ108: 0.8 | AK108: 83.84490855 | AL108: 169.5739724
A109: 7 | B109: 1.2G+yQ+W | C109: =VLOOKUP('Basic data'!M$5,'Basic data'!$G$7:$Y$14,7) -> 0.85 | E109: 0 | G109: =VLOOKUP('Basic data'!I$5,'Basic data'!$G$7:$Y$14,3)*'Basic data'!D$19*'Basic data'!F$19*'Basic data'!G$19 -> 0.232 | H109: =VLOOKUP('Basic data'!I$5,'Basic data'!$G$7:$Y$14,3)*'Basic data'!E$19*'Basic data'!F$19*'Basic data'!G$19 -> 0.58 | O109: =('Input beam data'!$K$15+'Input beam data'!$O$17)*(1.2*C109/VLOOKUP('Basic data'!V$5,'Basic data'!$G$7:$Y$14,16)+H109) -> 4.25355243 | P109: =IF('Input beam data'!X$23=0,1.2*'Input beam data'!X$17+0+'Input beam data'!X$20,'Input beam data'!X$23) -> 0 | Q109: =MAX(O109*Span^2/8+P109*MIN('Input beam data'!X$16,(Span-'Input beam data'!X$16))/2,P109*'Input beam data'!X$16*(Span-'Input beam data'!X$16)/Span+O109*Span*MIN('Input beam data'!X$16,(Span-'Input beam data'!X$16))/2*(1-MIN('Input beam data'!X$16,(Span-'Input beam data'!X$16))/Span)) -> 4.785246484 | R109: =O109*'Input beam data'!$E$15/2+P109*MAX('Input beam data'!X$16,(Span-'Input beam data'!X$16))/Span -> 6.380328646 | U109: =VLOOKUP((Q109/AJ109),VSGMSG8!$B$5:$I$11,7) -> 4 | V109: =VLOOKUP((Q109/AJ109),VSGMSG8!$B$12:$I$17,7) -> 3 | W109: =VLOOKUP((Q109/AJ109),VSGMSG8!$B$18:$I$23,7) -> 2 | X109: =VLOOKUP((Q109/AJ109),VSGMSG8!$B$24:$I$29,7) -> 2 | Y109: =VLOOKUP((Q109/AJ109),LVL!A$5:F$14,5) -> 4 | Z109: =VLOOKUP((Q109/AJ109),LVL!A$15:F$26,5) -> 3 | AA109: =VLOOKUP((Q109/AJ109),LVL!A$27:F$33,5) -> 0 | AB109: =VLOOKUP((Q109/AJ109),Glulam!$A$5:$D$20,4) -> 1 | AC109: =VLOOKUP((Q109/AJ109),Glulam!$A$12:$D$20,4) -> 1 | AD109: =VLOOKUP(Q109,Steel!$E$64:$G$84,3) -> 1 | AE109: =VLOOKUP(Q109,Steel!$E$26:$G$35,3) -> 1 | AF109: =VLOOKUP(Q109,Flitch!$A$5:$F$10,6) -> 0 | AG109: =VLOOKUP(Q109,Flitch!$A$44:$F$54,6) -> 0 | AJ109: 1 | AK109: 135.8587974 | AL109: 274.7706016
A110: 8 | B110: .9G+W | C110: =VLOOKUP((5+'Basic data'!M$5),'Basic data'!$G$7:$Y$14,7) -> 0.4 | G110: =VLOOKUP('Basic data'!I$5,'Basic data'!$G$7:$Y$14,3)*'Basic data'!D$20*'Basic data'!F$20*'Basic data'!G$20 -> 1.856 | H110: =VLOOKUP('Basic data'!I$5,'Basic data'!$G$7:$Y$14,3)*'Basic data'!E$20*'Basic data'!F$20*'Basic data'!G$20 -> 1.1136 | O110: =LD*(0.9*C110/VLOOKUP('Basic data'!V$5,'Basic data'!$G$7:$Y$14,16)-H110)+Overhang*(0.9*C110/VLOOKUP('Basic data'!V$5,'Basic data'!$G$7:$Y$14,16)-G110)*((LD+Overhang/2)/LD) -> -2.505278547 | P110: =IF('Input beam data'!X$23=0,0.9*'Input beam data'!X$17+'Input beam data'!X$19,'Input beam data'!X$23) -> 0 | Q110: =MAX(ABS(O110*Span^2/8+P110*MIN('Input beam data'!X$16,(Span-'Input beam data'!X$16))/2),ABS(P110*'Input beam data'!X$16*(Span-'Input beam data'!X$16)/Span+O110*Span*MIN('Input beam data'!X$16,(Span-'Input beam data'!X$16))/2*(1-MIN('Input beam data'!X$16,(Span-'Input beam data'!X$16))/Span))) -> 2.818438365 | R110: =O110*'Input beam data'!$E$15/2+P110*MAX('Input beam data'!X$16,(Span-'Input beam data'!X$16))/Span -> -3.75791782 | U110: =VLOOKUP((Q110/AJ110),VSGMSG8!$C$5:$H$11,6) -> 3 | V110: =VLOOKUP((Q110/AJ110),VSGMSG8!$C$12:$H$17,6) -> 2 | W110: =VLOOKUP((Q110/AJ110),VSGMSG8!$C$18:$H$23,6) -> 1 | X110: =VLOOKUP((Q110/AJ110),VSGMSG8!$C$24:$H$29,6) -> 1 | Y110: =VLOOKUP((Q110/AJ110),LVL!B$5:F$14,4) -> 2 | Z110: =VLOOKUP((Q110/AJ110),LVL!B$15:F$26,4) -> 3 | AA110: =VLOOKUP((Q110/AJ110),LVL!B$27:F$33,4) -> 0 | AB110: =VLOOKUP((Q110/AJ110),Glulam!$A$5:$D$20,4) -> 0 | AC110: =VLOOKUP((Q110/AJ110),Glulam!$A$12:$D$20,4) -> 0 | AD110: =VLOOKUP(Q110,Steel!$D$39:$G$59,4) -> 1 | AE110: =VLOOKUP(Q110,Steel!$D$26:$G$35,4) -> 1 | AF110: =VLOOKUP(Q110,Flitch!$C$5:$F$10,4) -> 0 | AG110: =VLOOKUP(Q110,Flitch!$C$44:$F$54,4) -> 0 | AJ110: 1 | AK110: 253.5870735 | AL110: 512.8727329
A111: 9 | B111: 1.2G+yQ+S | C111: =VLOOKUP('Basic data'!M$5,'Basic data'!$G$7:$Y$14,7) -> 0.85 | E111: 0 | F111: ='Input beam data'!$O$9*VLOOKUP('Basic data'!$V$5,'Basic data'!$G$7:$Y$14,17) -> 0 | O111: =('Input beam data'!$K$15+'Input beam data'!$O$17)*(1.2*C111/VLOOKUP('Basic data'!V$5,'Basic data'!$G$7:$Y$14,16)+F111) -> 2.74555243 | P111: =IF('Input beam data'!X$23=0,1.2*'Input beam data'!X$17+0+1.2*'Input beam data'!X$21,'Input beam data'!X$23) -> 0 | Q111: =MAX(O111*Span^2/8+P111*MIN('Input beam data'!X$16,(Span-'Input beam data'!X$16))/2,P111*'Input beam data'!X$16*(Span-'Input beam data'!X$16)/Span+O111*Span*MIN('Input beam data'!X$16,(Span-'Input beam data'!X$16))/2*(1-MIN('Input beam data'!X$16,(Span-'Input beam data'!X$16))/Span)) -> 3.088746484 | R111: =O111*'Input beam data'!$E$15/2+P111*MAX('Input beam data'!X$16,(Span-'Input beam data'!X$16))/Span -> 4.118328646 | U111: =VLOOKUP((Q111/AJ111),VSGMSG8!$B$5:$I$11,7) -> 4 | V111: =VLOOKUP((Q111/AJ111),VSGMSG8!$B$12:$I$17,7) -> 2 | W111: =VLOOKUP((Q111/AJ111),VSGMSG8!$B$18:$I$23,7) -> 2 | X111: =VLOOKUP((Q111/AJ111),VSGMSG8!$B$24:$I$29,7) -> 2 | Y111: =VLOOKUP((Q111/AJ111),LVL!A$5:F$14,5) -> 3 | Z111: =VLOOKUP((Q111/AJ111),LVL!A$15:F$26,5) -> 3 | AA111: =VLOOKUP((Q111/AJ111),LVL!A$27:F$33,5) -> 0 | AB111: =VLOOKUP((Q111/AJ111),Glulam!$A$5:$D$20,4) -> 1 | AC111: =VLOOKUP((Q111/AJ111),Glulam!$A$12:$D$20,4) -> 1 | AD111: =VLOOKUP(Q111,Steel!$E$64:$G$84,3) -> 1 | AE111: =VLOOKUP(Q111,Steel!$E$26:$G$35,3) -> 1 | AF111: =VLOOKUP(Q111,Flitch!$A$5:$F$10,6) -> 0 | AG111: =VLOOKUP(Q111,Flitch!$A$44:$F$54,6) -> 0 | AJ111: 0.8 | AK111: 47.38657522 | AL111: 95.8380173
Q112: Min: | R112: =MIN(R103:R111) -> -3.75791782 | T112: Max: | U112: =MAX(U103:U111) -> 5 | V112: 4 | W112: 3 | X112: 3 | Y112: 5 | Z112: 4 | AA112: 1 | AB112: 2 | AC112: 2 | AD112: 1 | AE112: 1 | AF112: =MAX(AF103:AF111) -> 0 | AG112: =MAX(AG103:AG111) -> 0 | AK112: =MAX(AK103:AK111) -> 253.5870735 | AL112: =MAX(AL103:AL111) -> 512.8727329
A113: Application 9. Cantilever lintels | G113: (dry props) | O113: Configuration | P113: 3
C114: Basic loads | F114: (kPa) | I114: Loads on plan | O114: Cantilever lintel (1) | AM114: Supported lintel | AQ114: Cantilever lintel 2
C115: Roof | I115: (kPa) | O115: Actions | U115: Size index's | AH115: Deflection limits | AJ115: Strength | AM115: Actions | AQ115: Actions
A116: Load case | C116: G | D116: Ql | E116: Qs | F116: S | G116: W(e) | H116: W(r) | I116: G | J116: Totals | O116: Dist load | P116: P | Q116: M* | R116: V* | S116: EI(s) | T116: EI(a) | U116: MSG8 | Y116: LVL | AB116: GL | AD116: UB | AE116: MSC | AF116: Flitch | AH116: (span/) | AI116: (mm) | AJ116: dur. fact. | AM116: Dist load | AN116: M* | AO116: EI(s) | AP116: EI(a) | AQ116: Dist load | AR116: P | AS116: M* | AT116: V* | AU116: EI(s) | AV116: EI(a)
A117: 1 | B117: G+Ql | C117: =VLOOKUP('Basic data'!M$5,'Basic data'!$G$7:$Y$14,7) -> 0.85 | D117: 0 | I117: =C117/VLOOKUP('Basic data'!V$5,'Basic data'!$G$7:$Y$14,16) -> 0.8799847533 | J117: =SUM(D117:I117) -> 0.8799847533 | O117: =IF(OR($P$113=1,$P$113=2),J117*Span^2/4+J117*Overhang*Span,IF(P113=3,J117*(LD+Overhang)*Span,0.5*Span)) -> 6.863881076 | P117: =IF($P$113=1,AM117/3+O117*LD^2/6,IF($P$113=2,O117*LD^2/6*(Span_2^3)/(Span^3+Span_2^3),AM117/2)) -> 0 | Q117: =IF(OR(P$113=1,P$113=2),0.333*O117*Span+P117*Span,0.5*O117*Span+P117*Span) -> 10.29582161 | T117: =1/(AI117/1000)*IF(OR(P113=1,P113=2),(O117*Span^3/15+P117*Span^3/3+Q117*Span*BSpan/3),O117*Span^3/8+P117*Span^3/3+Q117*Span*BSpan/3) -> 1930.466553 | U117: =VLOOKUP(MAX(S117:T117),VSGMSG8!G$5:I$11,2) -> 6 | V117: =VLOOKUP(MAX(S117:T117),VSGMSG8!G$12:I$17,2) -> 5 | W117: =VLOOKUP(MAX(S117:T117),VSGMSG8!G$18:I$23,2) -> 5 | X117: =VLOOKUP(MAX(S117:T117),VSGMSG8!G$24:I$29,2) -> 5 | Y117: =VLOOKUP(MAX(S117:T117),LVL!D$5:F$14,2) -> 9 | Z117: =VLOOKUP(MAX(S117:T117),LVL!D$15:F$26,2) -> 8 | AA117: =VLOOKUP(MAX(S117:T117),LVL!D$27:F$33,2) -> 4 | AB117: =VLOOKUP(MAX(S117:T117),Glulam!C$5:E$11,2) -> 6 | AC117: =VLOOKUP(MAX(S117:T117),Glulam!C$12:E$20,2) -> 6 | AD117: =VLOOKUP(MAX(S117:T117),Steel!$F$4:$H$24,2) -> 3 | AE117: =VLOOKUP(MAX(S117:T117),Steel!$F$26:$H$35,2) -> 4 | AF117: =VLOOKUP(MAX(S117:T117),Flitch!$E$5:$F$10,2) -> 3 | AG117: =VLOOKUP(MAX(S117:T117),Flitch!E$44:F$54,2) -> 5 | AH117: 300 | AI117: 12 | AM117: =IF($P$113=1,J117*Span_2^2/4+J117*Overhang*Span_2,IF($P$113=2,0,IF($P$113=3,0.5*Span_2,J117*(LDcant+Overhang)*Span_2))) -> 0 | AQ117: =IF($P$113=2,J117*Span_2^2/4+J117*Overhang*Span_2,0) -> 0 | AR117: =IF($P$113=2,O117*LD^2/6*(Span^3)/(Span^3+Span_2^3),0) -> 0 | AV117: =1/(AI117/1000)*(O117*Span^3/15+P117*Span^3/3+Q117*Span*BSpan/3) -> 1029.582161
A118: 2 | B118: G+Qs | C118: =VLOOKUP('Basic data'!M$5,'Basic data'!$G$7:$Y$14,7) -> 0.85 | E118: =0.7*'Basic data'!$M$11 -> 0.175 | I118: =C118/VLOOKUP('Basic data'!V$5,'Basic data'!$G$7:$Y$14,16) -> 0.8799847533 | J118: =SUM(D118:I118) -> 1.054984753 | O118: =IF(OR($P$113=1,$P$113=2),J118*Span^2/4+J118*Overhang*Span,IF(P113=3,J118*(LD+Overhang)*Span,0.5*Span)) -> 8.228881076 | P118: =IF($P$113=1,AM118/3+O118*LD^2/6,IF($P$113=2,O118*LD^2/6*(Span_2^3)/(Span^3+Span_2^3),AM118/2)) -> 0 | Q118: =IF(OR(P$113=1,P$113=2),0.333*O118*Span+P118*Span,0.5*O118*Span+P118*Span) -> 12.34332161 | T118: =1/(AI118/1000)*IF(OR(P113=1,P113=2),(O118*Span^3/15+P118*Span^3/3+Q118*Span*BSpan/3),O118*Span^3/8+P118*Span^3/3+Q118*Span*BSpan/3) -> 2314.372803 | U118: =VLOOKUP(MAX(S118:T118),VSGMSG8!E$5:I$11,4) -> 6 | V118: =VLOOKUP(MAX(S118:T118),VSGMSG8!E$12:I$17,4) -> 5 | W118: =VLOOKUP(MAX(S118:T118),VSGMSG8!E$18:I$23,4) -> 5 | X118: =VLOOKUP(MAX(S118:T118),VSGMSG8!E$24:I$29,4) -> 5 | Y118: =VLOOKUP(MAX(S118:T118),LVL!C$5:F$14,3) -> 8 | Z118: =VLOOKUP(MAX(S118:T118),LVL!C$15:F$26,3) -> 7 | AA118: =VLOOKUP(MAX(S118:T118),LVL!C$27:F$33,3) -> 4 | AB118: =VLOOKUP(MAX(S118:T118),Glulam!B$5:E$11,3) -> 6 | AC118: =VLOOKUP(MAX(S118:T118),Glulam!B$12:E$20,3) -> 5 | AD118: =VLOOKUP(MAX(S118:T118),Steel!$F$4:$H$24,2) -> 4 | AE118: =VLOOKUP(MAX(S118:T118),Steel!$F$26:$H$35,2) -> 4 | AF118: =VLOOKUP(MAX(S118:T118),Flitch!$D$5:$F$10,3) -> 4 | AG118: =VLOOKUP(MAX(S118:T118),Flitch!$D$44:$F$54,3) -> 6 | AH118: 300 | AI118: 12 | AM118: =IF($P$113=1,J118*Span_2^2/4+J118*Overhang*Span_2,IF($P$113=2,0,IF($P$113=3,0.5*Span_2,J118*(LDcant+Overhang)*Span_2))) -> 0 | AQ118: =IF($P$113=2,J118*Span_2^2/4+J118*Overhang*Span_2,0) -> 0 | AR118: =IF($P$113=2,O118*LD^2/6*(Span^3)/(Span^3+Span_2^3),0) -> 0 | AV118: =1/(AI118/1000)*(O118*Span^3/15+P118*Span^3/3+Q118*Span*BSpan/3) -> 1234.332161
A119: 3 | B119: Spare
A120: 4 | B120: G+S | C120: =VLOOKUP('Basic data'!M$5,'Basic data'!$G$7:$Y$14,7) -> 0.85 | E120: 0 | F120: =0.68*'Input beam data'!$O$9*VLOOKUP('Basic data'!$V$5,'Basic data'!$G$7:$Y$14,17) -> 0 | I120: =C120/VLOOKUP('Basic data'!V$5,'Basic data'!$G$7:$Y$14,16) -> 0.8799847533 | J120: =SUM(D120:I120) -> 0.8799847533 | O120: =IF(OR($P$113=1,$P$113=2),J120*Span^2/4+J120*Overhang*Span,IF(P113=3,J120*(LD+Overhang)*Span,0.5*Span)) -> 6.863881076 | P120: =IF($P$113=1,AM120/3+O120*LD^2/6,IF($P$113=2,O120*LD^2/6*(Span_2^3)/(Span^3+Span_2^3),AM120/2)) -> 0 | Q120: =IF(OR(P$113=1,P$113=2),0.333*O120*Span+P120*Span,0.5*O120*Span+P120*Span) -> 10.29582161 | S120: R* | T120: =1/(AI120/1000)*IF(OR(P113=1,P113=2),(O120*Span^3/15+P120*Span^3/3+Q120*Span*BSpan/3),O120*Span^3/8+P120*Span^3/3+Q120*Span*BSpan/3) -> 1930.466553 | U120: =VLOOKUP(MAX(S120:T120),VSGMSG8!E$5:I$11,4) -> 6 | V120: =VLOOKUP(MAX(S120:T120),VSGMSG8!E$12:I$17,4) -> 5 | W120: =VLOOKUP(MAX(S120:T120),VSGMSG8!E$18:I$23,4) -> 5 | X120: =VLOOKUP(MAX(S120:T120),VSGMSG8!E$24:I$29,4) -> 5 | Y120: =VLOOKUP(MAX(S120:T120),LVL!C$5:F$14,3) -> 8 | Z120: =VLOOKUP(MAX(S120:T120),LVL!C$15:F$26,3) -> 7 | AA120: =VLOOKUP(MAX(S120:T120),LVL!C$27:F$33,3) -> 4 | AB120: =VLOOKUP(MAX(S120:T120),Glulam!B$5:E$11,3) -> 5 | AC120: =VLOOKUP(MAX(S120:T120),Glulam!B$12:E$20,3) -> 5 | AD120: =VLOOKUP(MAX(S120:T120),Steel!$F$4:$H$24,2) -> 3 | AE120: =VLOOKUP(MAX(S120:T120),Steel!$F$26:$H$35,2) -> 4 | AF120: =VLOOKUP(MAX(S120:T120),Flitch!$D$5:$F$10,3) -> 3 | AG120: =VLOOKUP(MAX(S120:T120),Flitch!$D$44:$F$54,3) -> 5 | AH120: 100 | AI120: 12 | AM120: =IF($P$113=1,J120*Span_2^2/4+J120*Overhang*Span_2,IF($P$113=2,0,IF($P$113=3,0.5*Span_2,J120*(LDcant+Overhang)*Span_2))) -> 0 | AQ120: =IF($P$113=2,J120*Span_2^2/4+J120*Overhang*Span_2,0) -> 0 | AR120: =IF($P$113=2,O120*LD^2/6*(Span^3)/(Span^3+Span_2^3),0) -> 0 | AV120: =1/(AI120/1000)*(O120*Span^3/15+P120*Span^3/3+Q120*Span*BSpan/3) -> 1029.582161
A121: 5 | B121: 1.35G | C121: =VLOOKUP('Basic data'!M$5,'Basic data'!$G$7:$Y$14,7) -> 0.85 | I121: =C121/VLOOKUP('Basic data'!V$5,'Basic data'!$G$7:$Y$14,16) -> 0.8799847533 | J121: =1.35*I121 -> 1.187979417 | O121: =IF(OR($P$113=1,$P$113=2),J121*Span^2/4+J121*Overhang*Span,IF(P113=3,J121*(LD+Overhang)*Span,1.35*0.5*Span)) -> 9.266239453 | P121: =IF($P$113=1,AM121/3+O121*LD^2/6,IF($P$113=2,O121*LD^2/6*(Span_2^3)/(Span^3+Span_2^3),AM121/2)) -> 0 | Q121: =IF(OR(P$113=1,P$113=2),0.333*O121*Span+P121*Span,0.5*O121*Span+P121*Span) -> 13.89935918 | R121: =O121+P121 -> 9.266239453 | S121: =R121+Q121/BSpan ->  | U121: =VLOOKUP((MAX(Q121,AN121,AS121)/AJ121),VSGMSG8!$B$5:$I$11,7) -> 6 | V121: =VLOOKUP(MAX(Q121,AN121,AS121)/AJ121,VSGMSG8!$B$12:$I$17,7) -> 5 | W121: =VLOOKUP(MAX(Q121,AN121,AS121)/AJ121,VSGMSG8!$B$18:$I$23,7) -> 5 | X121: =VLOOKUP(MAX(Q121,AN121,AS121)/AJ121,VSGMSG8!$B$24:$I$29,7) -> 5 | Y121: =VLOOKUP(MAX(Q121,AN121,AS121)/AJ121,LVL!A$5:F$14,5) -> 7 | Z121: =VLOOKUP(MAX(Q121,AN121,AS121)/AJ121,LVL!A$15:F$26,5) -> 6 | AA121: =VLOOKUP(MAX(Q121,AN121,AS121)/AJ121,LVL!A$27:F$33,5) -> 3 | AB121: =VLOOKUP(MAX(Q121,AN121,AS121)/AJ121,Glulam!$A$5:$D$20,4) -> 5 | AC121: =VLOOKUP(MAX(Q121,AN121,AS121)/AJ121,Glulam!$A$12:$D$20,4) -> 5 | AD121: =VLOOKUP(MAX(Q121,AN121,AS121),Steel!$E$64:$G$84,3) -> 2 | AE121: =VLOOKUP(MAX(Q121,AN121,AS121),Steel!$E$26:$G$35,3) -> 3 | AF121: =VLOOKUP(MAX(Q121,AN121,AS121),Flitch!$B$5:$F$10,5) -> 3 | AG121: =VLOOKUP(MAX(Q121,AN121,AS121),Flitch!$B$44:$F$54,5) -> 2 | AJ121: 0.6 | AM121: =IF($P$113=1,J121*Span_2^2/4+J121*Overhang*Span_2,IF($P$113=2,0,IF($P$113=3,0.5*Span_2,J121*(LDcant+Overhang)*Span_2))) -> 0 | AN121: =IF(P$113=1,0.128*AM121*Span_2,IF(P$113=2,0,AM121*Span_2/8)) -> 0 | AQ121: =IF($P$113=2,J121*Span_2^2/4+J121*Overhang*Span_2,0) -> 0 | AR121: =IF($P$113=2,O121*LD^2/6*(Span^3)/(Span^3+Span_2^3),0) -> 0 | AS121: =IF(P$113=2,0.333*AQ121*Span_2+AR121*Span_2,0) -> 0 | AT121: =AQ121+AR121 -> 0
A122: 6 | B122: 1.2G+1.5Q | C122: =VLOOKUP('Basic data'!M$5,'Basic data'!$G$7:$Y$14,7) -> 0.85 | E122: ='Basic data'!M$11 -> 0.25 | I122: =C122/VLOOKUP('Basic data'!V$5,'Basic data'!$G$7:$Y$14,16) -> 0.8799847533 | J122: =1.2*I122+1.5*E122 -> 1.430981704 | O122: =IF(OR($P$113=1,$P$113=2),J122*Span^2/4+J122*Overhang*Span,IF(P113=3,J122*(LD+Overhang)*Span,1.2*0.5*Span)) -> 11.16165729 | P122: 0 | Q122: =IF(OR(P$113=1,P$113=2),0.333*O122*Span+P122*Span,0.5*O122*Span+P122*Span) -> 16.74248594 | R122: =O122+P122 -> 11.16165729 | S122: =R122+Q122/BSpan ->  | U122: =VLOOKUP(MAX(Q122,AN122,AS122)/AJ122,VSGMSG8!$B$5:$I$11,7) -> 6 | V122: =VLOOKUP(MAX(Q122,AN122,AS122)/AJ122,VSGMSG8!$B$12:$I$17,7) -> 5 | W122: =VLOOKUP(MAX(Q122,AN122,AS122)/AJ122,VSGMSG8!$B$18:$I$23,7) -> 5 | X122: =VLOOKUP(MAX(Q122,AN122,AS122)/AJ122,VSGMSG8!$B$24:$I$29,7) -> 5 | Y122: =VLOOKUP(MAX(Q122,AN122,AS122)/AJ122,LVL!A$5:F$14,5) -> 7 | Z122: =VLOOKUP(MAX(Q122,AN122,AS122)/AJ122,LVL!A$15:F$26,5) -> 6 | AA122: =VLOOKUP(MAX(Q122,AN122,AS122)/AJ122,LVL!A$27:F$33,5) -> 2 | AB122: =VLOOKUP(MAX(Q122,AN122,AS122)/AJ122,Glulam!$A$5:$D$20,4) -> 5 | AC122: =VLOOKUP(MAX(Q122,AN122,AS122)/AJ122,Glulam!$A$12:$D$20,4) -> 5 | AD122: =VLOOKUP(MAX(Q122,AN122,AS122),Steel!$E$64:$G$84,3) -> 2 | AE122: =VLOOKUP(MAX(Q122,AN122,AS122),Steel!$E$26:$G$35,3) -> 3 | AF122: =VLOOKUP(MAX(Q122,AN122,AS122),Flitch!$B$5:$F$10,5) -> 3 | AG122: =VLOOKUP(MAX(Q122,AN122,AS122),Flitch!$B$44:$F$54,5) -> 3 | AJ122: 0.8 | AM122: =IF($P$113=1,J122*Span_2^2/4+J122*Overhang*Span_2,IF($P$113=2,0,IF($P$113=3,0.5*Span_2,J122*(LDcant+Overhang)*Span_2))) -> 0 | AN122: =IF(P$113=1,0.128*AM122*Span_2,IF(P$113=2,0,AM122*Span_2/8)) -> 0 | AQ122: =IF($P$113=2,J122*Span_2^2/4+J122*Overhang*Span_2,0) -> 0 | AR122: 0 | AS122: =IF(P$113=2,0.333*AQ122*Span_2+AR122*Span_2,0) -> 0 | AT122: =AQ122+AR122 -> 0
A123: 7 | B123: 1.2G+yQ+W | C123: =VLOOKUP('Basic data'!M$5,'Basic data'!$G$7:$Y$14,7) -> 0.85 | E123: 0 | G123: =VLOOKUP('Basic data'!I$5,'Basic data'!$G$7:$Y$14,3)*'Basic data'!D$19*'Basic data'!F$19*'Basic data'!G$19 -> 0.232 | H123: =VLOOKUP('Basic data'!I$5,'Basic data'!$G$7:$Y$14,3)*'Basic data'!E$19*'Basic data'!F$19*'Basic data'!G$19 -> 0.58 | I123: =C123/VLOOKUP('Basic data'!V$5,'Basic data'!$G$7:$Y$14,16) -> 0.8799847533 | J123: =1.2*I123+H123 -> 1.635981704 | O123: =IF(OR($P$113=1,$P$113=2),J123*Span^2/4+(1.2*I123+G123)*Overhang*Span,IF(P113=3,J123*(LD+Overhang)*Span,1.2*0.5*Span)) -> 12.76065729 | P123: 0 | Q123: =IF(OR(P$113=1,P$113=2),0.333*O123*Span+P123*Span,0.5*O123*Span+P123*Span) -> 19.14098594 | R123: =O123+P123 -> 12.76065729 | S123: =R123+Q123/BSpan ->  | U123: =VLOOKUP(MAX(Q123,AN123,AS123)/AJ123,VSGMSG8!$B$5:$I$11,7) -> 6 | V123: =VLOOKUP(MAX(Q123,AN123,AS123)/AJ123,VSGMSG8!$B$12:$I$17,7) -> 5 | W123: =VLOOKUP(MAX(Q123,AN123,AS123)/AJ123,VSGMSG8!$B$18:$I$23,7) -> 5 | X123: =VLOOKUP(MAX(Q123,AN123,AS123)/AJ123,VSGMSG8!$B$24:$I$29,7) -> 5 | Y123: =VLOOKUP(MAX(Q123,AN123,AS123)/AJ123,LVL!A$5:F$14,5) -> 7 | Z123: =VLOOKUP(MAX(Q123,AN123,AS123)/AJ123,LVL!A$15:F$26,5) -> 6 | AA123: =VLOOKUP(MAX(Q123,AN123,AS123)/AJ123,LVL!A$27:F$33,5) -> 2 | AB123: =VLOOKUP(MAX(Q123,AN123,AS123)/AJ123,Glulam!$A$5:$D$20,4) -> 5 | AC123: =VLOOKUP(MAX(Q123,AN123,AS123)/AJ123,Glulam!$A$12:$D$20,4) -> 5 | AD123: =VLOOKUP(MAX(Q123,AN123,AS123),Steel!$E$64:$G$84,3) -> 3 | AE123: =VLOOKUP(MAX(Q123,AN123,AS123),Steel!$E$26:$G$35,3) -> 3 | AF123: =VLOOKUP(MAX(Q123,AN123,AS123),Flitch!$B$5:$F$10,5) -> 3 | AG123: =VLOOKUP(MAX(Q123,AN123,AS123),Flitch!$B$44:$F$54,5) -> 5 | AJ123: 1 | AM123: =IF($P$113=1,J123*Span_2^2/4+(1.2*I123+G123)*Overhang*Span_2,IF($P$113=2,0,IF($P$113=3,0.5*Span_2,J123*(LDcant+Overhang)*Span_2))) -> 0 | AN123: =IF(P$113=1,0.128*AM123*Span_2,IF(P$113=2,0,AM123*Span_2/8)) -> 0 | AQ123: =IF($P$113=2,J123*Span_2^2/4+(1.2*I123+G123)*Overhang*Span_2,0) -> 0 | AR123: 0 | AS123: =IF(P$113=2,0.333*AQ123*Span_2+AR123*Span_2,0) -> 0 | AT123: =AQ123+AR123 -> 0
A124: 8 | B124: .9G+W | C124: =VLOOKUP((2+'Basic data'!M$5),'Basic data'!$G$7:$Y$14,7) -> 0.4 | G124: =VLOOKUP('Basic data'!I$5,'Basic data'!$G$7:$Y$14,3)*'Basic data'!D$20*'Basic data'!F$20*'Basic data'!G$20 -> 1.856 | H124: =VLOOKUP('Basic data'!I$5,'Basic data'!$G$7:$Y$14,3)*'Basic data'!E$20*'Basic data'!F$20*'Basic data'!G$20 -> 1.1136 | I124: =C124/VLOOKUP('Basic data'!V$5,'Basic data'!$G$7:$Y$14,16) -> 0.4141104722 | J124: =0.9*I124-H124 -> -0.7409005751 | O124: =IF(OR($P$113=1,$P$113=2),J124*Span^2/4-(G124-0.9*I124)*Overhang*Span,IF(P113=3,J124*(LD+Overhang)*Span,0.9*0.5*Span)) -> -5.779024485 | P124: 0 | Q124: =ABS(IF(OR(P$113=1,P$113=2),0.333*O124*Span+P124*Span,0.5*O124*Span+P124*Span)) -> 8.668536728 | R124: =O124+P124 -> -5.779024485 | S124: =R124-Q124/BSpan ->  | U124: =VLOOKUP(MAX(Q124,AN124,AS124)/AJ124,VSGMSG8!$C$5:$H$11,6) -> 6 | V124: =VLOOKUP(MAX(Q124,AN124,AS124)/AJ124,VSGMSG8!$C$12:$H$17,6) -> 4 | W124: =VLOOKUP(MAX(Q124,AN124,AS124)/AJ124,VSGMSG8!$C$18:$H$23,6) -> 3 | X124: =VLOOKUP(MAX(Q124,AN124,AS124)/AJ124,VSGMSG8!$C$24:$H$29,6) -> 3 | Y124: =VLOOKUP(MAX(Q124,AN124,AS124)/AJ124,LVL!B$5:F$14,4) -> 5 | Z124: =VLOOKUP(MAX(Q124,AN124,AS124)/AJ124,LVL!B$15:F$26,4) -> 3 | AA124: =VLOOKUP(MAX(Q124,AN124,AS124)/AJ124,LVL!B$27:F$33,4) -> 0 | AB124: =VLOOKUP(MAX(Q124,AN124,AS124)/AJ124,Glulam!$A$5:$D$20,4) -> 2 | AC124: =VLOOKUP(MAX(Q124,AN124,AS124)/AJ124,Glulam!$A$12:$D$20,4) -> 2 | AD124: =VLOOKUP(MAX(Q124,AN124,AS124),Steel!$D$39:$G$59,4) -> 1 | AE124: =VLOOKUP(MAX(Q124,AN124,AS124),Steel!$D$26:$G$35,4) -> 2 | AF124: =VLOOKUP(MAX(Q124,AN124,AS124),Flitch!$C$5:$F$10,4) -> 1 | AG124: =VLOOKUP(MAX(Q124,AN124,AS124),Flitch!$C$44:$F$54,4) -> 1 | AJ124: 1 | AM124: =IF($P$113=1,J124*Span_2^2/4-(G124-0.9*I124)*Overhang*Span_2,IF($P$113=2,0,IF($P$113=3,0.5*Span_2,J124*(LDcant+Overhang)*Span_2))) -> 0 | AN124: =ABS(IF(P$113=1,0.128*AM124*Span_2,IF(P$113=2,0,AM124*Span_2/8))) -> 0 | AQ124: =IF($P$113=2,J124*Span_2^2/4+(0.9*I124-G124)*Overhang*Span_2,0) -> 0 | AR124: 0 | AS124: =ABS(IF(P$113=2,0.333*AQ124*Span_2+AR124*Span_2,0)) -> 0 | AT124: =AQ124+AR124 -> 0
A125: 9 | B125: 1.2G+yQ+S | C125: =VLOOKUP('Basic data'!M$5,'Basic data'!$G$7:$Y$14,7) -> 0.85 | E125: 0 | F125: ='Input beam data'!$O$9*VLOOKUP('Basic data'!$V$5,'Basic data'!$G$7:$Y$14,17) -> 0 | I125: =C125/VLOOKUP('Basic data'!V$5,'Basic data'!$G$7:$Y$14,16) -> 0.8799847533 | J125: =1.2*I125+E125+F125 -> 1.055981704 | O125: =IF(OR($P$113=1,$P$113=2),J125*Span^2/4+J125*Overhang*Span,IF(P113=3,J125*(LD+Overhang)*Span,1.2*0.5*Span)) -> 8.236657291 | P125: 0 | Q125: =IF(OR(P$113=1,P$113=2),0.333*O125*Span+P125*Span,0.5*O125*Span+P125*Span) -> 12.35498594 | R125: =O125+P125 -> 8.236657291 | S125: =R125+Q125/BSpan ->  | U125: =VLOOKUP(MAX(Q125,AN125,AS125)/AJ125,VSGMSG8!$B$5:$I$11,7) -> 6 | V125: =VLOOKUP(MAX(Q125,AN125,AS125)/AJ125,VSGMSG8!$B$12:$I$17,7) -> 5 | W125: =VLOOKUP(MAX(Q125,AN125,AS125)/AJ125,VSGMSG8!$B$18:$I$23,7) -> 4 | X125: =VLOOKUP(MAX(Q125,AN125,AS125)/AJ125,VSGMSG8!$B$24:$I$29,7) -> 5 | Y125: =VLOOKUP(MAX(Q125,AN125,AS125)/AJ125,LVL!A$5:F$14,5) -> 6 | Z125: =VLOOKUP(MAX(Q125,AN125,AS125)/AJ125,LVL!A$15:F$26,5) -> 5 | AA125: =VLOOKUP(MAX(Q125,AN125,AS125)/AJ125,LVL!A$27:F$33,5) -> 1 | AB125: =VLOOKUP(MAX(Q125,AN125,AS125)/AJ125,Glulam!$A$5:$D$20,4) -> 4 | AC125: =VLOOKUP(MAX(Q125,AN125,AS125)/AJ125,Glulam!$A$12:$D$20,4) -> 4 | AD125: =VLOOKUP(MAX(Q125,AN125,AS125),Steel!$E$64:$G$84,3) -> 2 | AE125: =VLOOKUP(MAX(Q125,AN125,AS125),Steel!$E$26:$G$35,3) -> 3 | AF125: =VLOOKUP(MAX(Q125,AN125,AS125),Flitch!$B$5:$F$10,5) -> 2 | AG125: =VLOOKUP(MAX(Q125,AN125,AS125),Flitch!$B$44:$F$54,5) -> 2 | AJ125: 0.8 | AM125: =IF($P$113=1,J125*Span_2^2/4+J125*Overhang*Span_2,IF($P$113=2,0,IF($P$113=3,0.5*Span_2,J125*(LDcant+Overhang)*Span_2))) -> 0 | AN125: =IF(P$113=1,0.128*AM125*Span_2,IF(P$113=2,0,AM125*Span_2/8)) -> 0 | AQ125: =IF($P$113=2,J125*Span_2^2/4+J125*Overhang*Span_2,0) -> 0 | AR125: 0 | AS125: =IF(P$113=2,0.333*AQ125*Span_2+AR125*Span_2,0) -> 0 | AT125: =AQ125+AR125 -> 0
Q126: Min: | R126: =MIN(R117:R125) -> -5.779024485 | T126: Max: | U126: =MAX(U117:U125) -> 6 | V126: 5 | W126: 5 | X126: 5 | Y126: 9 | Z126: 8 | AA126: 4 | AB126: 6 | AC126: 6 | AD126: 4 | AE126: 4 | AF126: =MAX(AF117:AF125) -> 4 | AG126: =MAX(AG117:AG125) -> 6 | AS126: Min: | AT126: =MIN(AT117:AT125) -> 0

Sheet Basic data (hidden)
A1: Basic data from AS/NZS 1170 and/or NZS 3604
A2: This is the only sheet where data should be changed. Ensure all yellow cells are appropriate for the use of the spreadsheet.
AA3: Table of options for foundation | AD3: See also Range (AB5:AH16) in "Results"
F4: Col no. | G4: 1 | H4: 2 | I4: 3 | J4: 4 | K4: 5 | L4: 6 | M4: 7 | N4: 8 | O4: 9 | P4: 10 | Q4: 11 | R4: 12 | S4: 13 | T4: 14 | U4: 15 | V4: 16 | W4: 17 | X4: 18 | Y4: 19 | AC4: Internal pad footing (timber floor) | AD4: Foundation wall with timber subfloor | AJ4: Table of options for supports
B5: =T5 -> 1 | G5: Cell links | I5: 3 | J5: 1 | M5: 2 | O5: 1 | Q5: 1 | T5: 1 | U5: =MAX(V5-1,1) -> 2 | V5: 3 | Y5: 2 | AE5: Concrete slab edging | AF5: Local slab thickening | AG5: External pad footing | AL5: Prop studs | AM5: Post | AN5: Wall studs | AO5: Pile
A6: Index | B6: Application | C6: Results index | D6: Application | G6: Index | H6: Wind zone | I6: (kPa) | J6: Snow region | K6: sg (kPa) | L6: Roof | M6: (kPa) | N6: Wall | O6: (kPa) | P6: Floor/live load | Q6: (kPa) | R6: Floor load | S6: (kPa) | T6: Application | U6: Roof slope | V6: Cos | W6: m1 | X6: Wall ht | Y6: (m) | AH6: Pile footing
A7: 1 | B7: Lintel, roof only | C7: 14 | D7: 0 | G7: 1 | H7: Low | I7: 0.61 | J7: Region N0 | K7: 0 | L7: Light | M7: 0.4 | N7: Light | O7: 0.2 | P7: 1.5 kPa | Q7: 1.5 | R7: Internal | S7: 0.4 | T7: Lintel, roof only | U7: 5 | V7: =COS(RADIANS(U7)) -> 0.9961946981 | W7: =MIN(0.7,0.7*(60-0)/50) -> 0.7 | X7: 2.4 m | Y7: 2.4 | AA7: Lintel, roof only | AB7: 1 | AC7: y | AD7: y | AE7: y | AF7: y | AG7: n | AH7: n | AJ7: Lintel, roof only | AK7: 1 | AL7: y | AM7: n | AN7: n | AO7: n
A8: 2 | B8: Lintel, roof and wall | C8: 28 | D8: 14 | G8: 2 | H8: Medium | I8: 0.82 | J8: Region N1 | K8: =IF(U18<400,0,3*(U18-250)/1000) -> 0 | L8: Heavy | M8: 0.85 | N8: Medium | O8: 0.8 | P8: 2.0 kPa | Q8: 2 | R8: Deck | S8: 0.4 | T8: Lintel, roof and wall | U8: 10 | V8: 0.984807753 | W8: =MIN(0.7,0.7*(60-U7)/50) -> 0.7 | X8: 2.7 m | Y8: 2.7 | AA8: Lintel, roof and wall | AB8: 2 | AC8: y | AD8: y | AE8: y | AF8: y | AG8: n | AH8: n | AJ8: Lintel, roof and wall | AK8: 2 | AL8: y | AM8: n | AN8: n | AO8: n
A9: 3 | B9: Lintel, roof wall and floor | C9: =C8+C$7 -> 42 | D9: 28 | G9: 3 | H9: High | I9: 1.16 | J9: Region N2 | K9: =IF(U$18<200,0,3.4*(U$18-150)/1000) -> 0 | L9: L(W) | M9: 0.2 | N9: L(W) | O9: 0.1 | P9: 3.0 kPa | Q9: 3 | T9: Lintel, roof wall and floor | U9: 15 | V9: 0.9659258263 | W9: =MIN(0.7,0.7*(60-U8)/50) -> 0.7 | X9: 3.0 m | Y9: 3 | AA9: Lintel, roof wall and floor | AB9: 3 | AC9: y | AD9: y | AE9: y | AF9: y | AG9: n | AH9: n | AJ9: Lintel, roof wall and floor | AK9: 3 | AL9: y | AM9: n | AN9: n | AO9: n
A10: 4 | B10: Verandah beam | C10: 56 | D10: 42 | G10: 4 | H10: Very high | I10: 1.5 | J10: Region N3 | K10: =IF(U$18<150,0,3.8*(U$18-150)/1000) -> 0 | L10: H(W) | M10: 0.4 | N10: M(W) | O10: 0.2 | T10: Verandah beam | U10: 30 | V10: 0.8660254038 | W10: =MIN(0.7,0.7*(60-U9)/50) -> 0.63 | AA10: Verandah beam | AB10: 4 | AC10: y | AD10: n | AE10: y | AF10: y | AG10: y | AH10: y | AJ10: Verandah beam | AK10: 4 | AL10: n | AM10: y | AN10: y | AO10: n
A11: 5 | B11: Floor beam | C11: 70 | D11: 56 | G11: 5 | H11: Extra high | I11: 1.82 | J11: Region N4 | K11: =MAX(IF(U$18<400,1.5*(3*U$18/1000+0.3),1.5*(2*U$18/1000+0.7)),0.9) -> 0.9 | L11: Live | M11: 0.25 | N11: Heavy | O11: 0.7 | T11: Floor beam | U11: 45 | V11: 0.7071067812 | W11: =MIN(0.7,0.7*(60-U10)/50) -> 0.42 | AA11: Floor beam | AB11: 5 | AC11: y | AD11: y | AE11: y | AF11: y | AG11: n | AH11: n | AJ11: Floor beam | AK11: 5 | AL11: n | AM11: n | AN11: y | AO11: n
A12: 6 | B12: Deck beam/bearer | C12: 84 | D12: 70 | G12: 6 | H12: 60 m/sec | I12: 2.16 | J12: Region N5 | K12: =MAX(IF(U$18<400,1.5*(1.5*U$18/1000+0.3),1.5*(2*U$18/1000+0.1)),0.9) -> 0.9 | L12: L(VW) | M12: 0.1 | T12: Deck beam/bearer | U12: 60 | V12: 0.5 | W12: =MIN(0.7,0.7*(60-U11)/50) -> 0.21 | AA12: Deck beam/bearer | AB12: 6 | AC12: n | AD12: n | AE12: n | AF12: n | AG12: y | AH12: y | AJ12: Deck beam/bearer | AK12: 6 | AL12: n | AM12: y | AN12: n | AO12: y
A13: 7 | B13: Ridge/roof beam | C13: 98 | D13: 84 | G13: 7 | H13: 65 m/sec | I13: 2.54 | L13: H(VW) | M13: 0.4 | T13: Ridge/roof beam | AA13: Ridge/roof beam | AB13: 7 | AC13: y | AD13: y | AE13: y | AF13: y | AG13: n | AH13: n | AJ13: Ridge/roof beam | AK13: 7 | AL13: n | AM13: n | AN13: y | AO13: n
A14: 8 | B14: Garage door lintel | C14: 112 | D14: 98 | G14: 8 | H14: 70 m/sec | I14: 2.94 | T14: Garage door lintel | W14: 1 | X14: Less than 5 degrees | AA14: Garage door lintel | AB14: 8 | AC14: n | AD14: n | AE14: y | AF14: n | AG14: n | AH14: n | AJ14: Garage door lintel | AK14: 8 | AL14: y | AM14: n | AN14: n | AO14: n
A15: 9 | B15: Cantilever lintel | C15: 126 | D15: 112 | G15: 9 | T15: Cantilever lintel | W15: 2 | X15: 5 to 10 degrees | AA15: Cantilever lintel | AB15: 9 | AC15: y | AD15: y | AE15: y | AF15: y | AG15: n | AH15: n | AJ15: Cantilever lintel | AK15: 9 | AL15: y | AM15: n | AN15: n | AO15: n
A16: =IF(OR(T5=1,T5=4,T5=7,T5=8),"Userform1",IF(T5=2,"Userform2",IF(T5=3,"Userform3",IF(T5=9,"Userform6","Userform4")))) -> Userform1 | C16: Wind factors | P16: Load cases | W16: 3 | X16: 10 to 15 degrees
A17: =IF(OR(T5=1,T5=2,T5=3,T5=8),1,0) -> 1 | C17: Internal factors | H17: Wall factors | I17: Timber properties | P17: 1 | Q17: G+Ql | T17: Elevation | U17: 1 | V17: 3 | W17: 4 | X17: 15 to 30 degrees | AL17: Input data for choice of support on front page
C18: Case | E18: Cp(r) | F18: Kc | G18: Ka | H18: Cp | I18: VSGMSG8 and Glulam | P18: 2 | Q18: G+Qs | T18: < 100m | U18: =U17*100 -> 100 | V18: 2 | W18: 5 | X18: 30 to 45 degrees | AE18: Isolated pad footing | AL18: =IF(VLOOKUP($T$5,$AK$7:$AO$15,2)="y",AL5,"") -> Prop studs
C19: 7 | D19: 0.2 | E19: 0.5 | F19: 1 | G19: 1 | H19: 0.65 | I19: Dry | K19: Green | P19: 3 | Q19: Spare | T19: 101 - 200m | V19: 2 | W19: 6 | X19: 45 to 60 degrees | AE19: Foundation wall with timber sub-floor | AL19: =IF(VLOOKUP($T$5,$AK$7:$AO$15,3)="y",AM5,"") -> 
C20: 8 | D20: =0.9+0.7 -> 1.6 | E20: 0.96 | F20: 1 | G20: 1 | H20: 1 | I20: fc | J20: fp | K20: fc | L20: fp | P20: 4 | Q20: G+S | T20: 201 - 300m | V20: -1 | AE20: Concrete slab edging | AL20: =IF(VLOOKUP($T$5,$AK$7:$AO$15,4)="y",AN5,"") -> 
C21: Verandah factors | I21: 18 | J21: 8.9 | K21: 12 | L21: 5.3 | P21: 5 | Q21: 1.35G | T21: 301 - 400m | V21: 1 | AE21: Local slab thickening | AL21: =IF(VLOOKUP($T$5,$AK$7:$AO$15,5)="y",AO5,"") -> 
C22: Case | D22: Cp | F22: Kc | G22: Ka | P22: 6 | Q22: 1.2G+1.5Q | T22: 401 - 500m | AE22: Input data for choice of foundation on front page
C23: 7 | D23: 0.2 | F23: 1 | G23: 1 | I23: LVL | P23: 7 | Q23: 1.2G+yQ+W | T23: 501 - 600m | AE23: =IF(VLOOKUP($T$5,$AB$7:$AH$15,2)="y",AC4,"") -> Internal pad footing (timber floor)
C24: 8 | D24: =0.9+0.7 -> 1.6 | F24: 1 | G24: 1 | I24: Dry | P24: 8 | Q24: .9G+W | T24: 601 - 700m | V24: 0 | Z24: Cantilever configurations: | AA24: 1 = Hip roof, cantilever span and supported span | AE24: =IF(VLOOKUP($T$5,$AB$7:$AH$15,3)="y",AD4,"") -> Foundation wall with timber subfloor
I25: fc | J25: fp | P25: 9 | Q25: 1.2G+yQ+S | T25: 701 - 800m | AA25: 2 = Hip roof, 2 cantilever spans (not necessarily equal) | AE25: =IF(VLOOKUP($T$5,$AB$7:$AH$15,4)="y",AE5,"") -> Concrete slab edging
I26: 28 | J26: 10 | T26: 801 - 900m | AA26: 3 = Gable roof, cantilever span load bearing | AE26: =IF(VLOOKUP($T$5,$AB$7:$AH$15,5)="y",AF5,"") -> Local slab thickening
AA27: 4 = Gable roof, supported span load bearing | AE27: =IF(VLOOKUP($T$5,$AB$7:$AH$15,6)="y",AG5,"") -> 
C28: Support capacity (assumed 2.7m long) | O28: End fixings | AE28: =IF(VLOOKUP($T$5,$AB$7:$AH$15,7)="y",AH6,"") -> 
B29: Application | C29: kN | O29: kN
B30: 1, 2, 3, 8, 9 | C30: 6 | D30: 1 | E30: 15 - 20 mm deep check-out of trimmer stud (see fig 8.12 of NZS 3604) | N30: Lintels | O30: 2.1 | P30: 1 | Q30: 4 end nails only to trimmer stud
C31: 10.9 | D31: 2 | E31: Single prop stud (90x45) | O31: 6.16 | P31: 2 | Q31: 25x0.9 mm nail strap with 6/30x3.15 nails (see Figure 8.12 NZS 3604)
C32: 21.9 | D32: 3 | E32: Double prop stud (2/90x45) | O32: 9.96 | P32: 3 | Q32: 2/25x0.9 mm nail straps with 12/30x3.15 nails (see Figure 8.12 NZS 3604)
B33: 4, 6 | C33: 17.5 | D33: 4 | E33: 90x90 post (max ht 3.0m) | O33: 13.65 | P33: 4 | Q33: Welded cleat with 2/M12 bolts or coach screws into trimmer stud
B34: 5, 7 | C34: 10.9 | D34: 5 | E34: Single stud (90x45) | N34: Veranda and deck beams | O34: 4.75 | P34: 5 | Q34: 6/100x4 nails to post (2/M12 bolts where beam is continuous over notched post)
C35: 21.9 | D35: 6 | E35: Double studs (2/90x45) | O35: 4.87 | P35: 6 | Q35: 1/M12 bolt to post (similar to Figure 9.3 (C) of NZS 3604) (2/M12 bolts where beam is continuous over notched post)
C36: 32.8 | D36: 7 | E36: Triple studs (3/90x45) | O36: 9.76 | P36: 7 | Q36: 2/M12 bolts to post (see Figure 9.3 (C) of NZS 3604) (3/M16 bolts where beam is continuous over notched post)
B37: 6 | C37: 42 | D37: 8 | E37: 125x125 pile (max ht 3.0m) | O37: 19.5 | P37: 8 | Q37: Steel bracket each side of beam with 2/M12 bolts to beam and post (see Figure 9.3 (B) of NZS3604)
D38: 9 | E38: Support requires specific engineering design | O38: 13.65 | P38: 9 | Q38: Welded cleat with 2/M12 bolts or coach screws into post
D39: 10 | E39: Full support on top of post required (Figure 9.3 (a) or (b) of NZS 3604) | N39: Ridge beams | O39: 1.58 | P39: 10 | Q39: 2/100x4 nails (or 4/90x3.15)
O40: 3.17 | P40: 11 | Q40: 4/100x4 nails (or 6/90x3.15)
A41: Durability | O41: 4.75 | P41: 12 | Q41: 6/100x4 nails (or 10/90x3.15)
O42: 9.76 | P42: 13 | Q42: 1/M12 bolt to built up studs
A43: Fixings | B43: Refer to Tables 4.1, 4.2 and 4.3 in the current NZS 3604 to determine suitable fixing types for the building location and B2 Durability requirements | O43: 26 | P43: 14 | Q43: 2/M16 bolts to built up studs
A44: Timber | B44: Timber beam treated to H1.2 | O44: 13.65 | P44: 15 | Q44: Welded cleat with 2/M12 bolts or coach screws into built-up studs
B45: Timber beam treated to H3.2 (Fixings in accordance with Tables 4.2 and 4.3 of NZS 3604) | P45: 16 | Q45: Fixing against wind uplift requires specific engineering design
A46: Steel | B46: Steel beam to be wire brushed and primed | N46: Floor beams | P46: 17 | Q46: Bolt beam to support studs
B47: Corrosion protection of steel beam requires Specific Engineering Design | P47: 18 | Q47: 4/100x4 nails (or 6/90x3.15)
N48: Deck beams | P48: 19 | Q48: 4/100x4 skew nails into pile
N49: Cantilever lintels | O49: 6.16 | P49: 20 | Q49: 25x0.9 mm nail strap with 6/30x3.15 nails (see Figure 8.12 NZS 3604)
A50: Flitch beam specifications | O50: 9.96 | P50: 21 | Q50: 2/25x0.9 mm nail straps with 12/30x3.15 nails (see Figure 8.12 NZS 3604)
A52: refer to Mitek NZ for details (www.miteknz.co.nz)
A53: refer to Pryda NZ for details (www.pryda.co.nz)
O61: Foundation fixings
N63: Studs/found wall | O63: 2.5 | P63: 1 | Q63: No specific fixing required. (NZS 3604 standard details with normal lining fixings)
O64: 3.8 | P64: 2 | Q64: 25x0.9 mm nail strap folded under wall plate, attached to stud with 6/30x3.15 nails, 15kN bolt, plate to foundation wall
O65: 7.6 | P65: 3 | Q65: 2/25x0.9 mm nail straps folded under wall plate, attached to each stud with 6/30x3.15 nails (12 total), 15kN bolt, plate to foundation wall
O66: 11.4 | P66: 4 | Q66: 3/25x0.9 mm nail straps folded under wall plate, attached to each stud with 6/30x3.15 nails (18 total), 15kN bolt, plate to foundation wall
N67: Studs/pad | O67: 2.5 | P67: 5 | Q67: No specific fixing required. (NZS 3604 standard details with normal lining fixings) Directly support studs by dwang between floor joists
O68: 7.6 | P68: 6 | Q68: 25x0.9 mm nail strap each side of stud attached to 90x90 jackstud, 6/30x3.15 nails each end of each strap (12 total), jackstud bolted to pad with bracket
O69: 15.2 | P69: 7 | Q69: 2/25x0.9 mm nail straps each side of stud attached to 90x90 jackstud, 6/30x3.15 nails each end of each strap (24 total), jackstud bolted to pad with bracket
O70: 18.6 | P70: 8 | Q70: 3/25x0.9 mm nail straps each side of stud attached to 2/140x45 jackstud, 6/30x3.15 nails each end of each strap (36 total), jackstud fixed with bracket cast into pad
N71: Post/pad | O71: 12.8 | P71: 9 | Q71: Bracket cast into foundation, with M12 bolt to post (Figure 9.2 NZS 3604) (2/M12 bolts where beam is continuous over post)
O72: 25.5 | P72: 10 | Q72: Bracket cast into foundation, with 2/M12 bolts to post (Figure 9.2 NZS 3604) (4/M12 bolts where beam is continuous over post)
N73: Studs/slab | O73: 2.5 | P73: 11 | Q73: No specific fixing required. (NZS 3604 standard details with normal lining fixings)
O74: 7.6 | P74: 12 | Q74: 25x0.9 mm nail strap folded under plate, with 6/30x3.15 nails each side of stud (see Figure 8.12 NZS 3604), 15kN bolt, plate to slab
O75: =2*O74 -> 15.2 | P75: 13 | Q75: 2/25x0.9 mm nail straps folded under plate, with 6/30x3.15 nails each side of stud (similar Figure 8.12 NZS 3604), 15kN bolt, plate to slab
O76: 22.8 | P76: 14 | Q76: 3/25x0.9 mm nail straps folded under plate, with 6/30x3.15 nails each side of stud (similar Figure 8.12 NZS 3604), 2/15kN bolts, plate to slab
P77: 15 | Q77: Fixing to foundation requires specific engineering design
P78: 16 | Q78: Not an appropriate foundation for this application
P79: 17 | Q79: Pile cast into footing as per NZS 3604

Sheet Results (hidden)
A1: A | B1: This sheet takes the results from the load calculation and sorts and enables data required for selecting an option by the user.
A2: B | B2: It then takes the results of that selection and calculates deflection, required supports and fixings
AB3: Foundations options
A4: A | AA4: End 1 | AB4: 3 | AC4: Foundation fixings
C5: Selection | I5: Faceload results | L5: Data for input forms | AA5: End 2 | AB5: 3 | AC5: Internal pad footing (with timber floor) | AD5: Foundation wall with timber sub-floor | AE5: Concrete slab edging (NZS3604) | AF5: Local slab thickening | AG5: External pad footing | AH5: Pile footing
A6: Timber (VSG/MSG8) | B6: =IF('Basic data'!T5=1,VLOOKUP(INDEX(Calc!$AO$14:$BA$27,Results!I6,1),VSGMSG8!H5:I11,2),VLOOKUP(INDEX(Calc!$U$1:$AE$126,'Basic data'!$T$5*14,1),VSGMSG8!H5:I11,2)) -> 290x45 | C6: 1 | D6: 140x45 | E6: =IF(D6="","",D6&IF(MATCH(D6,Combined!B$5:B$109,0)<22," VSG/MSG8 (SG8)",IF(AND(MATCH(D6,Combined!B$5:B$109,0)>21,MATCH(D6,Combined!B$5:B$109,0)<48)," LVL",IF(AND(MATCH(D6,Combined!B$5:B$109,0)>47,MATCH(D6,Combined!B$5:B$109,0)<62)," Glulam",IF(AND(MATCH(D6,Combined!B$5:B$109,0)>90,MATCH(D6,Combined!B$5:B$109,0)<96)," Mitek flitch beam",IF(MATCH(D6,Combined!B$5:B$109,0)>95," Pryda flitch beam","")))))) -> 140x45 VSG/MSG8 (SG8) | I6: 1 | J6: =MAX('Face loads'!F7,'Face loads'!I7) -> 1 | M6: Opt1 | N6: Opt2 | O6: Opt3 | P6: Opt4 | Q6: Opt5 | R6: Opt6 | Z6: End 1 | AA6: =IF($AB$4=1,AC5,IF($AB$4=2,AD5,IF($AB$4=3,AE5,IF($AB$4=4,AF5,IF($AB$4=5,AG5,AH5))))) -> Concrete slab edging (NZS3604)
B7: =IF('Basic data'!T5=1,VLOOKUP(INDEX(Calc!$AO$14:$BA$27,Results!I7,2),VSGMSG8!H12:I17,2),VLOOKUP(INDEX(Calc!$U$1:$AE$126,'Basic data'!$T$5*14,2),VSGMSG8!H12:I17,2)) -> 290x70 | C7: 2 | D7: 140x70 | E7: =IF(D7="","",D7&IF(MATCH(D7,Combined!B$5:B$109,0)<22," VSG/MSG8 (SG8)",IF(AND(MATCH(D7,Combined!B$5:B$109,0)>21,MATCH(D7,Combined!B$5:B$109,0)<48)," LVL",IF(AND(MATCH(D7,Combined!B$5:B$109,0)>47,MATCH(D7,Combined!B$5:B$109,0)<62)," Glulam",IF(AND(MATCH(D7,Combined!B$5:B$109,0)>90,MATCH(D7,Combined!B$5:B$109,0)<96)," Mitek flitch beam",IF(MATCH(D7,Combined!B$5:B$109,0)>95," Pryda flitch beam","")))))) -> 140x70 VSG/MSG8 (SG8) | I7: 1 | J7: =MAX('Face loads'!F8,'Face loads'!I8) -> 0 | L7: Roofwt | M7: FALSE | N7: TRUE | Z7: End 2 | AA7: =IF($AB$5=1,AC5,IF($AB$5=2,AD5,IF($AB$5=3,AE5,IF($AB$5=4,AF5,IF($AB$5=5,AG5,AH5))))) -> Concrete slab edging (NZS3604) | AC7: 1 | AD7: 2 | AE7: 3 | AF7: 4 | AG7: 5 | AH7: 6
B8: =IF('Basic data'!T5=1,VLOOKUP(INDEX(Calc!$AO$14:$BA$27,Results!I8,3),VSGMSG8!H18:I23,2),VLOOKUP(INDEX(Calc!$U$1:$AE$126,'Basic data'!$T$5*14,3),VSGMSG8!H18:I23,2)) -> 2/240x45 | C8: 3 | D8: 2/90x45 | E8: =IF(D8="","",D8&IF(MATCH(D8,Combined!B$5:B$109,0)<22," VSG/MSG8 (SG8)",IF(AND(MATCH(D8,Combined!B$5:B$109,0)>21,MATCH(D8,Combined!B$5:B$109,0)<48)," LVL",IF(AND(MATCH(D8,Combined!B$5:B$109,0)>47,MATCH(D8,Combined!B$5:B$109,0)<62)," Glulam",IF(AND(MATCH(D8,Combined!B$5:B$109,0)>90,MATCH(D8,Combined!B$5:B$109,0)<96)," Mitek flitch beam",IF(MATCH(D8,Combined!B$5:B$109,0)>95," Pryda flitch beam","")))))) -> 2/90x45 VSG/MSG8 (SG8) | I8: 1 | J8: =MAX('Face loads'!F9,'Face loads'!I9) -> 0 | L8: Roofslope | M8: FALSE | N8: FALSE | O8: TRUE | P8: FALSE | Q8: FALSE | R8: FALSE | AA8: Lintel, roof only | AB8: 1 | AC8: =IF($F$34<'Basic data'!$O$67,5,IF($F$34<'Basic data'!$O$68,6,IF($F$34<'Basic data'!$O$69,7,IF($F$34<'Basic data'!$O$70,8,15)))) -> 6 | AD8: =IF($F$34<'Basic data'!$O$63,1,IF($F$34<'Basic data'!$O$64,2,IF($F$34<'Basic data'!$O$65,3,IF($F$34<'Basic data'!$O$66,4,15)))) -> 2 | AE8: =IF($F$34<'Basic data'!$O$73,11,IF($F$34<'Basic data'!$O$74,12,IF($F$34<'Basic data'!$O$75,13,IF($F$34<'Basic data'!$O$76,14,15)))) -> 12 | AF8: =IF($F$34<'Basic data'!$O$73,11,IF($F$34<'Basic data'!$O$74,12,IF($F$34<'Basic data'!$O$75,13,IF($F$34<'Basic data'!$O$76,14,15)))) -> 12 | AG8: 16 | AH8: 16
B9: =IF('Basic data'!T5=1,VLOOKUP(INDEX(Calc!$AO$14:$BA$27,Results!I9,4),VSGMSG8!H24:I29,2),VLOOKUP(INDEX(Calc!$U$1:$AE$126,'Basic data'!$T$5*14,4),VSGMSG8!H24:I29,2)) -> 240x90 | C9: 4 | D9: 140x90 | E9: =IF(D9="","",D9&IF(MATCH(D9,Combined!B$5:B$109,0)<22," VSG/MSG8 (SG8)",IF(AND(MATCH(D9,Combined!B$5:B$109,0)>21,MATCH(D9,Combined!B$5:B$109,0)<48)," LVL",IF(AND(MATCH(D9,Combined!B$5:B$109,0)>47,MATCH(D9,Combined!B$5:B$109,0)<62)," Glulam",IF(AND(MATCH(D9,Combined!B$5:B$109,0)>90,MATCH(D9,Combined!B$5:B$109,0)<96)," Mitek flitch beam",IF(MATCH(D9,Combined!B$5:B$109,0)>95," Pryda flitch beam","")))))) -> 140x90 VSG/MSG8 (SG8) | I9: 1 | J9: =MAX('Face loads'!F10,'Face loads'!I10) -> 0 | L9: Wallwt | M9: TRUE | N9: FALSE | AA9: Lintel, roof and wall | AB9: 2 | AC9: =IF($F$34<'Basic data'!$O$67,5,IF($F$34<'Basic data'!$O$68,6,IF($F$34<'Basic data'!$O$69,7,IF($F$34<'Basic data'!$O$70,8,15)))) -> 6 | AD9: =IF($F$34<'Basic data'!$O$63,1,IF($F$34<'Basic data'!$O$64,2,IF($F$34<'Basic data'!$O$65,3,IF($F$34<'Basic data'!$O$66,4,15)))) -> 2 | AE9: =IF($F$34<'Basic data'!$O$73,11,IF($F$34<'Basic data'!$O$74,12,IF($F$34<'Basic data'!$O$75,13,IF($F$34<'Basic data'!$O$76,14,15)))) -> 12 | AF9: =IF($F$34<'Basic data'!$O$73,11,IF($F$34<'Basic data'!$O$74,12,IF($F$34<'Basic data'!$O$75,13,IF($F$34<'Basic data'!$O$76,14,15)))) -> 12 | AG9: 16 | AH9: 16
A10: LVL | B10: =IF('Basic data'!T5=1,VLOOKUP(INDEX(Calc!$AO$14:$BA$27,Results!I10,5),LVL!E5:F14,2),IF('Basic data'!T5=6,"NA",VLOOKUP(INDEX(Calc!$U$1:$AE$126,'Basic data'!$T$5*14,5),LVL!E5:F14,2))) -> 240 x45 | C10: 5 | D10: 90 x45 | E10: =IF(D10="","",D10&IF(MATCH(D10,Combined!B$5:B$109,0)<22," VSG/MSG8",IF(AND(MATCH(D10,Combined!B$5:B$109,0)>21,MATCH(D10,Combined!B$5:B$109,0)<48)," LVL",IF(AND(MATCH(D10,Combined!B$5:B$109,0)>47,MATCH(D10,Combined!B$5:B$109,0)<62)," Glulam",IF(AND(MATCH(D10,Combined!B$5:B$109,0)>90,MATCH(D10,Combined!B$5:B$109,0)<96)," Mitek flitch beam",IF(MATCH(D10,Combined!B$5:B$109,0)>95," Pryda flitch beam","")))))) -> 90 x45 LVL | I10: 1 | J10: =MAX('Face loads'!F11,'Face loads'!I11) -> 0 | L10: Wallht | M10: TRUE | N10: FALSE | O10: FALSE | AA10: Lintel, roof wall and floor | AB10: 3 | AC10: =IF($F$34<'Basic data'!$O$67,5,IF($F$34<'Basic data'!$O$68,6,IF($F$34<'Basic data'!$O$69,7,IF($F$34<'Basic data'!$O$70,8,15)))) -> 6 | AD10: =IF($F$34<'Basic data'!$O$63,1,IF($F$34<'Basic data'!$O$64,2,IF($F$34<'Basic data'!$O$65,3,IF($F$34<'Basic data'!$O$66,4,15)))) -> 2 | AE10: =IF($F$34<'Basic data'!$O$73,11,IF($F$34<'Basic data'!$O$74,12,IF($F$34<'Basic data'!$O$75,13,IF($F$34<'Basic data'!$O$76,14,15)))) -> 12 | AF10: =IF($F$34<'Basic data'!$O$73,11,IF($F$34<'Basic data'!$O$74,12,IF($F$34<'Basic data'!$O$75,13,IF($F$34<'Basic data'!$O$76,14,15)))) -> 12 | AG10: 16 | AH10: 16
B11: =IF('Basic data'!T5=1,VLOOKUP(INDEX(Calc!$AO$14:$BA$27,Results!I11,6),LVL!E15:F26,2),IF('Basic data'!T5=6,"NA",VLOOKUP(INDEX(Calc!$U$1:$AE$126,'Basic data'!$T$5*14,6),LVL!E15:F26,2))) -> 200x63 | C11: 6 | D11: 170x63 | E11: =IF(D11="","",D11&IF(MATCH(D11,Combined!B$5:B$109,0)<22," VSG/MSG8",IF(AND(MATCH(D11,Combined!B$5:B$109,0)>21,MATCH(D11,Combined!B$5:B$109,0)<48)," LVL",IF(AND(MATCH(D11,Combined!B$5:B$109,0)>47,MATCH(D11,Combined!B$5:B$109,0)<62)," Glulam",IF(AND(MATCH(D11,Combined!B$5:B$109,0)>90,MATCH(D11,Combined!B$5:B$109,0)<96)," Mitek flitch beam",IF(MATCH(D11,Combined!B$5:B$109,0)>95," Pryda flitch beam","")))))) -> 170x63 LVL | I11: 1 | J11: =MAX('Face loads'!F12,'Face loads'!I12) -> 0 | L11: Floorload | M11: TRUE | N11: FALSE | O11: FALSE | AA11: Verandah beam | AB11: 4 | AC11: =IF($F$34<'Basic data'!$O$71,9,IF($F$34<'Basic data'!$O$72,10,15)) -> 9 | AD11: 16 | AE11: =IF($F$34<'Basic data'!$O$71,9,IF($F$34<'Basic data'!$O$72,10,15)) -> 9 | AF11: =IF($F$34<'Basic data'!$O$71,9,IF($F$34<'Basic data'!$O$72,10,15)) -> 9 | AG11: =IF($F$34<'Basic data'!$O$71,9,IF($F$34<'Basic data'!$O$72,10,15)) -> 9 | AH11: 17
B12: =IF('Basic data'!T5=1,VLOOKUP(INDEX(Calc!$AO$14:$BA$27,Results!I12,7),LVL!E27:F33,2),IF('Basic data'!$T$5=6,"NA",VLOOKUP(INDEX(Calc!$U$1:$AE$126,'Basic data'!$T$5*14,7),LVL!E27:F33,2))) -> 200x90 | C12: 7 | D12: 150x90 | E12: =IF(D12="","",D12&IF(MATCH(D12,Combined!B$5:B$109,0)<22," VSG/MSG8",IF(AND(MATCH(D12,Combined!B$5:B$109,0)>21,MATCH(D12,Combined!B$5:B$109,0)<48)," LVL",IF(AND(MATCH(D12,Combined!B$5:B$109,0)>47,MATCH(D12,Combined!B$5:B$109,0)<62)," Glulam",IF(AND(MATCH(D12,Combined!B$5:B$109,0)>90,MATCH(D12,Combined!B$5:B$109,0)<96)," Mitek flitch beam",IF(MATCH(D12,Combined!B$5:B$109,0)>95," Pryda flitch beam","")))))) -> 150x90 LVL | I12: 1 | J12: =MAX('Face loads'!F13,'Face loads'!I13) -> 0 | AA12: Floor beam | AB12: 5 | AC12: =IF($F$34<'Basic data'!$O$67,5,IF($F$34<'Basic data'!$O$68,6,IF($F$34<'Basic data'!$O$69,7,IF($F$34<'Basic data'!$O$70,8,15)))) -> 6 | AD12: =IF($F$34<'Basic data'!$O$63,1,IF($F$34<'Basic data'!$O$64,2,IF($F$34<'Basic data'!$O$65,3,IF($F$34<'Basic data'!$O$66,4,15)))) -> 2 | AE12: =IF($F$34<'Basic data'!$O$73,11,IF($F$34<'Basic data'!$O$74,12,IF($F$34<'Basic data'!$O$75,13,IF($F$34<'Basic data'!$O$76,14,15)))) -> 12 | AF12: =IF($F$34<'Basic data'!$O$73,11,IF($F$34<'Basic data'!$O$74,12,IF($F$34<'Basic data'!$O$75,13,IF($F$34<'Basic data'!$O$76,14,15)))) -> 12 | AG12: 16 | AH12: 16
A13: Glulam (GL8) | B13: =IF('Basic data'!T5=1,VLOOKUP(INDEX(Calc!$AO$14:$BA$27,Results!I13,8),Glulam!D5:E11,2),IF('Basic data'!$T$5=6,"NA",VLOOKUP(INDEX(Calc!$U$1:$AE$126,'Basic data'!$T$5*14,8),Glulam!D5:E11,2))) -> 225x65 | C13: 8 | D13: 135x65 | E13: =IF(D13="","",D13&IF(MATCH(D13,Combined!B$5:B$109,0)<22," VSG/MSG8",IF(AND(MATCH(D13,Combined!B$5:B$109,0)>21,MATCH(D13,Combined!B$5:B$109,0)<48)," LVL",IF(AND(MATCH(D13,Combined!B$5:B$109,0)>47,MATCH(D13,Combined!B$5:B$109,0)<62)," Glulam",IF(AND(MATCH(D13,Combined!B$5:B$109,0)>90,MATCH(D13,Combined!B$5:B$109,0)<96)," Mitek flitch beam",IF(MATCH(D13,Combined!B$5:B$109,0)>95," Pryda flitch beam","")))))) -> 135x65 Glulam | I13: 1 | J13: =MAX('Face loads'!F14,'Face loads'!I14) -> 0 | L13: Concload | M13: FALSE | N13: TRUE | AA13: Deck beam/bearer | AB13: 6 | AC13: 16 | AD13: 16 | AE13: 16 | AF13: 16 | AG13: =IF($F$34<'Basic data'!$O$71,9,IF($F$34<'Basic data'!$O$72,10,15)) -> 9 | AH13: 17
B14: =IF('Basic data'!T5=1,VLOOKUP(INDEX(Calc!$AO$14:$BA$27,Results!I14,9),Glulam!D12:E20,2),IF('Basic data'!$T$5=6,"NA",VLOOKUP(INDEX(Calc!$U$1:$AE$126,'Basic data'!$T$5*14,9),Glulam!D12:E20,2))) -> 225x90 | C14: 9 | D14: 135x90 | E14: =IF(D14="","",D14&IF(MATCH(D14,Combined!B$5:B$109,0)<22," VSG/MSG8",IF(AND(MATCH(D14,Combined!B$5:B$109,0)>21,MATCH(D14,Combined!B$5:B$109,0)<48)," LVL",IF(AND(MATCH(D14,Combined!B$5:B$109,0)>47,MATCH(D14,Combined!B$5:B$109,0)<62)," Glulam",IF(AND(MATCH(D14,Combined!B$5:B$109,0)>90,MATCH(D14,Combined!B$5:B$109,0)<96)," Mitek flitch beam",IF(MATCH(D14,Combined!B$5:B$109,0)>95," Pryda flitch beam","")))))) -> 135x90 Glulam | I14: 1 | J14: =MAX('Face loads'!F15,'Face loads'!I15) -> 0 | AA14: Ridge/roof beam | AB14: 7 | AC14: =IF($F$34<'Basic data'!$O$67,5,IF($F$34<'Basic data'!$O$68,6,IF($F$34<'Basic data'!$O$69,7,IF($F$34<'Basic data'!$O$70,8,15)))) -> 6 | AD14: =IF($F$34<'Basic data'!$O$63,1,IF($F$34<'Basic data'!$O$64,2,IF($F$34<'Basic data'!$O$65,3,IF($F$34<'Basic data'!$O$66,4,15)))) -> 2 | AE14: =IF($F$34<'Basic data'!$O$73,11,IF($F$34<'Basic data'!$O$74,12,IF($F$34<'Basic data'!$O$75,13,IF($F$34<'Basic data'!$O$76,14,15)))) -> 12 | AF14: =IF($F$34<'Basic data'!$O$73,11,IF($F$34<'Basic data'!$O$74,12,IF($F$34<'Basic data'!$O$75,13,IF($F$34<'Basic data'!$O$76,14,15)))) -> 12 | AG14: 16 | AH14: 16
A15: Steel | B15: =IF('Basic data'!T5=1,VLOOKUP(INDEX(Calc!$AO$14:$BA$27,Results!I15,10),Steel!G4:H24,2),IF('Basic data'!$T$5=6,"NA",VLOOKUP(INDEX(Calc!$U$1:$AE$126,'Basic data'!$T$5*14,10),Steel!G4:H24,2))) -> 150UB14 | C15: 10 | D15: 150UB14 | E15: =IF(D15="","",D15&IF(MATCH(D15,Combined!B$5:B$109,0)<22," VSG/MSG8",IF(AND(MATCH(D15,Combined!B$5:B$109,0)>21,MATCH(D15,Combined!B$5:B$109,0)<48)," LVL",IF(AND(MATCH(D15,Combined!B$5:B$109,0)>47,MATCH(D15,Combined!B$5:B$109,0)<62)," Glulam",IF(AND(MATCH(D15,Combined!B$5:B$109,0)>90,MATCH(D15,Combined!B$5:B$109,0)<96)," Mitek flitch beam",IF(MATCH(D15,Combined!B$5:B$109,0)>95," Pryda flitch beam","")))))) -> 150UB14 | I15: 1 | J15: =MAX('Face loads'!F16,'Face loads'!I16) -> 0 | L15: Configuration | M15: FALSE | N15: FALSE | O15: TRUE | P15: FALSE | AA15: Garage door lintel | AB15: 8 | AC15: 16 | AD15: 16 | AE15: =IF($F$34<'Basic data'!$O$73,11,IF($F$34<'Basic data'!$O$74,12,IF($F$34<'Basic data'!$O$75,13,IF($F$34<'Basic data'!$O$76,14,15)))) -> 12 | AF15: 16 | AG15: 16 | AH15: 16
B16: =IF('Basic data'!T5=1,VLOOKUP(INDEX(Calc!$AO$14:$BA$27,Results!I16,11),Steel!G26:H35,2),IF('Basic data'!$T$5=6,"NA",VLOOKUP(INDEX(Calc!$U$1:$AE$126,'Basic data'!$T$5*14,11),Steel!G26:H35,2))) -> 100PFC | C16: 11 | D16: 100PFC | I16: 1 | J16: =MAX('Face loads'!F17,'Face loads'!I17) -> 0 | AA16: Cantilever lintel | AB16: 9 | AC16: =IF($F$34<'Basic data'!$O$67,5,IF($F$34<'Basic data'!$O$68,6,IF($F$34<'Basic data'!$O$69,7,IF($F$34<'Basic data'!$O$70,8,15)))) -> 6 | AD16: =IF($F$34<'Basic data'!$O$63,1,IF($F$34<'Basic data'!$O$64,2,IF($F$34<'Basic data'!$O$65,3,IF($F$34<'Basic data'!$O$66,4,15)))) -> 2 | AE16: =IF($F$34<'Basic data'!$O$73,11,IF($F$34<'Basic data'!$O$74,12,IF($F$34<'Basic data'!$O$75,13,IF($F$34<'Basic data'!$O$76,14,15)))) -> 12 | AF16: =IF($F$34<'Basic data'!$O$73,11,IF($F$34<'Basic data'!$O$74,12,IF($F$34<'Basic data'!$O$75,13,IF($F$34<'Basic data'!$O$76,14,15)))) -> 12 | AG16: 16 | AH16: 16
A17: Flitch | B17: =IF('Basic data'!T5=1,VLOOKUP(INDEX(Calc!$AO$14:$BA$27,Results!I17,12),Flitch!F5:G10,2),IF(OR('Basic data'!T5=4,'Basic data'!T5=6),"NA",VLOOKUP(INDEX(Calc!$U$1:$AG$126,'Basic data'!$T$5*14,12),Flitch!F5:G10,2))) -> FB15L | C17: 12 | D17: FB15L | E17: =IF(D17="","",D17&IF(MATCH(D17,Combined!B$5:B$109,0)<22," VSG/MSG8",IF(AND(MATCH(D17,Combined!B$5:B$109,0)>21,MATCH(D17,Combined!B$5:B$109,0)<48)," LVL",IF(AND(MATCH(D17,Combined!B$5:B$109,0)>47,MATCH(D17,Combined!B$5:B$109,0)<62)," Glulam",IF(AND(MATCH(D17,Combined!B$5:B$109,0)>90,MATCH(D17,Combined!B$5:B$109,0)<96)," Mitek flitch beam",IF(MATCH(D17,Combined!B$5:B$109,0)>95," Pryda flitch beam","")))))) -> FB15L Mitek flitch beam | I17: 1 | J17: =MAX('Face loads'!F18,'Face loads'!I18) -> 0 | AE17: Now allows up to 3 straps for all lintel applications
B18: =IF('Basic data'!T5=1,VLOOKUP(INDEX(Calc!$AO$14:$BA$27,Results!I18,13),Flitch!F44:G54,2),IF(OR('Basic data'!T5=4,'Basic data'!T5=6),"NA",VLOOKUP(INDEX(Calc!$U$1:$AG$126,'Basic data'!$T$5*14,13),Flitch!F44:G54,2))) -> 150PF6 | C18: 13 | D18: 150PF6 | E18: =IF(D18="","",D18&IF(MATCH(D18,Combined!B$5:B$109,0)<22," VSG/MSG8",IF(AND(MATCH(D18,Combined!B$5:B$109,0)>21,MATCH(D18,Combined!B$5:B$109,0)<48)," LVL",IF(AND(MATCH(D18,Combined!B$5:B$109,0)>47,MATCH(D18,Combined!B$5:B$109,0)<62)," Glulam",IF(AND(MATCH(D18,Combined!B$5:B$109,0)>90,MATCH(D18,Combined!B$5:B$109,0)<96)," Mitek flitch beam",IF(MATCH(D18,Combined!B$5:B$109,0)>95," Pryda flitch beam","")))))) -> 150PF6 Pryda flitch beam | I18: 1 | J18: =MAX('Face loads'!F19,'Face loads'!I19) -> 0
J19: =SUM(J6:J18) -> 1
B20: Chosen option: | C20: 1 | D20: =VLOOKUP(C20,C6:D18,2) -> 140x45 | F20: Width | G20: =VLOOKUP($D$20,Combined!$B$5:$G$109,6,FALSE) -> 45 | H20: mm | J20: =IF(OR(Results!AB4=1,Results!AB4=5),IF(Results!AC32>Results!AC28,Results!AD32,Results!AD28),IF(Results!AB5=2,"Min. of "&MAX(Results!AC33,Results!AC29)&" m of foundation wall, at least 165mm wide",IF(Results!AB5=3,"Min. of "&MAX(Results!AC34,Results!AC29)&" lineal metres of slab edging",IF(Results!AB5=4,Results!AD35,Results!AD36))))
B21: Application: | C21: ='Basic data'!T5 -> 1 | D21: =VLOOKUP(C21,'Basic data'!A7:B15,2) -> Lintel, roof only
A24: B
B25: Applied | C25: EI | D25: Defl | E25: Reaction (kN) | G25: Bearing area | I25: Beam support for given application | S25: Beam fixing for given application | AB25: Foundation for given application | AG25: Conc load
A26: Load case | B26: UDL (kN/m) | C26: (kNm2) | D26: (mm) | E26: Down | F26: Up | G26: Para. | H26: Perp. | I26: Criterion | J26: 1 | K26: 2 | L26: 3 | M26: 4 | N26: 5 | O26: 6 | P26: 7 | Q26: 8 | R26: 9 | S26: 1 | T26: 2 | U26: 3 | V26: 4 | W26: 5 | X26: 6 | Y26: 7 | Z26: 8 | AA26: 9 | AB26: 1 | AC26: 2 | AD26: 3 | AE26: 4 | AF26: 5 | AG26: kN
A27: G+Ql | B27: =INDEX(Calc!$O$1:$O$125,5+VLOOKUP('Basic data'!$B$5,'Basic data'!$A$7:$D$15,4)) -> 2.287960359 | C27: =VLOOKUP(D$20,Combined!$B$5:$F$109,IF('Basic data'!T$5=6,4,5),FALSE) -> 27.783 | D27: =IF('Basic data'!T$5=9,(B27*Span^3/8+Calc!P117*Span^3/3+Calc!Q117*Span*BSpan/3)/C27*1000,0.013*B27*'Input beam data'!E$15^4/C27*1000) -> 86.71569873 | E27: =B27*'Input beam data'!$E$15/2 -> 3.431940538 | AB27: Bearing area: | AC27: =MAX(MAX(E31:E35)/300,MAX(E27:E30)/100) -> 0.04114440538 | AD27: m2 | AG27: =INDEX(Calc!$P$1:$P$111,5+VLOOKUP('Basic data'!$B$5,'Basic data'!$A$7:$D$14,4)) -> 0
A28: G+Qs | B28: =INDEX(Calc!$O$1:$O$125,6+VLOOKUP('Basic data'!$B$5,'Basic data'!$A$7:$D$15,4)) -> 2.742960359 | C28: =VLOOKUP(D20,Combined!$B$5:$F$109,IF('Basic data'!T$5=6,2,3),FALSE) -> 55.566 | D28: =IF('Basic data'!T$5=9,(B28*Span^3/8+Calc!P118*Span^3/3+Calc!Q118*Span*BSpan/3)/C28*1000,0.013*B28*'Input beam data'!E$15^4/C28*1000) -> 51.98029834 | E28: =B28*'Input beam data'!$E$15/2 -> 4.114440538 | AB28: Equiv | AC28: =CEILING(AC27^0.5*1000,100) -> 300 | AD28: =AC28&" x "&AC28&" x 200 thick (mm)" -> 300 x 300 x 200 thick (mm) | AF28: (for isolated pad or slab thickening) | AG28: =INDEX(Calc!$P$1:$P$111,6+VLOOKUP('Basic data'!$B$5,'Basic data'!$A$7:$D$14,4)) -> 0
A29: Spare | E29: =B29*'Input beam data'!$E$15/2 -> 0 | AC29: =CEILING(AC27/0.165,0.1) -> 0.3 | AD29: m | AF29: (for foundation wall)
A30: G+S | B30: =INDEX(Calc!$O$1:$O$125,8+VLOOKUP('Basic data'!$B$5,'Basic data'!$A$7:$D$15,4)) -> 2.287960359 | C30: =VLOOKUP(D20,Combined!$B$5:$F$109,IF('Basic data'!T$5=6,4,5),FALSE) -> 27.783 | D30: =IF('Basic data'!T$5=9,(B30*Span^3/8+Calc!P120*Span^3/3+Calc!Q120*Span*BSpan/3)/C30*1000,0.013*B30*'Input beam data'!E$15^4/C30*1000) -> 86.71569873 | E30: =B30*'Input beam data'!$E$15/2 -> 3.431940538 | I30: End 1 | J30: 1 | S30: End 1 | AC30: =CEILING(AC27/0.24,0.1) -> 0.2 | AD30: m | AF30: (for slab edge) | AG30: =INDEX(Calc!$P$1:$P$111,8+VLOOKUP('Basic data'!$B$5,'Basic data'!$A$7:$D$14,4)) -> 0
A31: 1.35G | B31: =INDEX(Calc!$O$1:$O$125,9+VLOOKUP('Basic data'!$B$5,'Basic data'!$A$7:$D$15,4)) -> 3.088746484 | E31: =IF('Basic data'!$T$5=9,Calc!S121,B31*'Input beam data'!$E$15/2) -> 4.633119726 | G31: =INDEX(Calc!$AI$1:$AI$111,10+VLOOKUP('Basic data'!$B$5,'Basic data'!$A$7:$D$14,4)) -> 0 | H31: =E31*1000/IF('Basic data'!T5=6,'Basic data'!$L$21,'Basic data'!$J$21) -> 520.5752502 | I31: i | J31: =IF(OR(MID($D$20,4,1)="U",MID($D$20,4,1)="P"),"", IF(MAX($H$31:$H$35)<15*VLOOKUP($D$20,Combined!$B$5:$G$109,6,FALSE),1, IF(MAX($H$31:$H$35)<45*VLOOKUP($D$20,Combined!$B$5:$G$109,6,FALSE),2, IF(MAX($H$31:$H$35)<90*VLOOKUP($D$20,Combined!$B$5:$G$109,6,FALSE),3,9)))) -> 2 | K31: =IF(OR(MID($D$20,4,1)="U",MID($D$20,4,1)="P"),"", IF(MAX($H$31:$H$35)<15*VLOOKUP($D$20,Combined!$B$5:$G$109,6,FALSE),1, IF(MAX($H$31:$H$35)<45*VLOOKUP($D$20,Combined!$B$5:$G$109,6,FALSE),2, IF(MAX($H$31:$H$35)<90*VLOOKUP($D$20,Combined!$B$5:$G$109,6,FALSE),3,9)))) -> 2 | L31: =IF(OR(MID($D$20,4,1)="U",MID($D$20,4,1)="P"),"",IF(MAX($H$31:$H$35)<15*VLOOKUP($D$20,Combined!$B$5:$G$109,6,FALSE),1,IF(MAX($H$31:$H$35)<45*VLOOKUP($D$20,Combined!$B$5:$G$109,6,FALSE),2,IF(MAX($H$31:$H$35)<90*VLOOKUP($D$20,Combined!$B$5:$G$109,6,FALSE),3,9)))) -> 2 | M31: =IF(OR(MID($D$20,4,1)="U",MID($D$20,4,1)="P"),"", IF(J30=2, IF(MAX($H$31:$H$35)<15*90,4,10), IF(MAX($H$31:$H$35)>VLOOKUP($D$20,Combined!$B$5:$G$109,6,FALSE)*90,9,5))) -> 5 | N31: =IF(OR(MID($D$20,4,1)="U",MID($D$20,4,1)="P"),"",IF(MAX(H$31:H$35)>VLOOKUP($D$20,Combined!$B$5:$G$109,6,FALSE)*90,9,5)) -> 5 | O31: =IF(OR(MID($D$20,4,1)="U",MID($D$20,4,1)="P"),"", IF(J30=2,IF(MAX($H$31:$H$35)<VLOOKUP($D$20,Combined!$B$5:$G$109,6,FALSE)*90,4,9), IF(MAX($H$31:$H$35)<VLOOKUP($D$20,Combined!$B$5:$G$109,6,FALSE)*125,8,9))) -> 8 | P31: =IF(OR(MID($D$20,4,1)="U",MID($D$20,4,1)="P"),"",IF(MAX(H$31:H$35)>VLOOKUP($D$20,Combined!$B$5:$G$109,6,FALSE)*90,9,5)) -> 5 | Q31: =IF(OR(MID($D$20,4,1)="U",MID($D$20,4,1)="P"),"",IF(MAX($H$31:$H$35)<15*VLOOKUP($D$20,Combined!$B$5:$G$109,6,FALSE),1,IF(MAX($H$31:$H$35)<45*VLOOKUP($D$20,Combined!$B$5:$G$109,6,FALSE),2,IF(MAX($H$31:$H$35)<90*VLOOKUP($D$20,Combined!$B$5:$G$109,6,FALSE),3,9)))) -> 2 | R31: =IF(OR(MID($D$20,4,1)="U",MID($D$20,4,1)="P"),"",IF(MAX($H$31:$H$35)<15*VLOOKUP($D$20,Combined!$B$5:$G$109,6,FALSE),1,IF(MAX($H$31:$H$35)<45*VLOOKUP($D$20,Combined!$B$5:$G$109,6,FALSE),2,IF(MAX($H$31:$H$35)<90*VLOOKUP($D$20,Combined!$B$5:$G$109,6,FALSE),3,9)))) -> 2 | AB31: Vol conc: | AC31: =F34/24 -> 0.1565799092 | AD31: m3 | AG31: =INDEX(Calc!$P$1:$P$111,9+VLOOKUP('Basic data'!$B$5,'Basic data'!$A$7:$D$14,4)) -> 0
A32: 1.2G+1.5Q | B32: =INDEX(Calc!$O$1:$O$125,10+VLOOKUP('Basic data'!$B$5,'Basic data'!$A$7:$D$15,4)) -> 3.72055243 | E32: =IF('Basic data'!$T$5=9,Calc!S122,B32*'Input beam data'!$E$15/2) -> 5.580828646 | G32: =INDEX(Calc!$AI$1:$AI$111,10+VLOOKUP('Basic data'!$B$5,'Basic data'!$A$7:$D$14,4)) -> 0 | H32: =E32*1000/IF('Basic data'!T5=6,'Basic data'!$L$21,'Basic data'!$J$21) -> 627.0593984 | I32: ii | J32: =IF(VLOOKUP($D$20,Combined!$B$5:$G$109,6,FALSE)>90,"Note: Your chosen lintel is wider than a 90mm wall","") ->  | K32: =IF(VLOOKUP($D$20,Combined!$B$5:$G$109,6,FALSE)>90,"Note: Your chosen lintel is wider than a 90mm wall","") ->  | L32: =IF(VLOOKUP($D$20,Combined!$B$5:$G$109,6,FALSE)>90,"Note: Your chosen lintel is wider than a 90mm wall","") ->  | M32: =IF(J30=2,"",IF(VLOOKUP($D$20,Combined!$B$5:$G$109,6,FALSE)<=45,5,IF(VLOOKUP($D$20,Combined!$B$5:$G$109,6,FALSE)<=90,6,IF(VLOOKUP($D$20,Combined!$B$5:$G$109,6,FALSE)<=135,7,9)))) -> 5 | N32: =IF(J30=2,"",IF(VLOOKUP($D$20,Combined!$B$5:$G$109,6,FALSE)<=45,5,IF(VLOOKUP($D$20,Combined!$B$5:$G$109,6,FALSE)<=90,6,IF(VLOOKUP($D$20,Combined!$B$5:$G$109,6,FALSE)<=135,7,9)))) -> 5 | P32: =IF(J30=2,"",IF(VLOOKUP($D$20,Combined!$B$5:$G$109,6,FALSE)<=45,5,IF(VLOOKUP($D$20,Combined!$B$5:$G$109,6,FALSE)<=90,6,IF(VLOOKUP($D$20,Combined!$B$5:$G$109,6,FALSE)<=135,7,9)))) -> 5 | Q32: =IF(VLOOKUP($D$20,Combined!$B$5:$G$109,6,FALSE)>90,"Note: Your chosen lintel is wider than a 90mm wall","") ->  | R32: =IF(VLOOKUP($D$20,Combined!$B$5:$G$109,6,FALSE)>90,"Note: Your chosen lintel is wider than a 90mm wall","") ->  | AB32: Equiv | AC32: =CEILING(AC31^0.333*1000,50) -> 550 | AD32: =AC32&" x "&AC32&" x "&AC32&" (mm)" -> 550 x 550 x 550 (mm) | AF32: (for isolated pad) | AG32: =INDEX(Calc!$P$1:$P$111,10+VLOOKUP('Basic data'!$B$5,'Basic data'!$A$7:$D$14,4)) -> 0
A33: 1.2G+yQ+W | B33: =INDEX(Calc!$O$1:$O$125,11+VLOOKUP('Basic data'!$B$5,'Basic data'!$A$7:$D$15,4)) -> 4.25355243 | E33: =IF('Basic data'!$T$5=9,Calc!S123,B33*'Input beam data'!$E$15/2) -> 6.380328646 | G33: =INDEX(Calc!$AI$1:$AI$111,11+VLOOKUP('Basic data'!$B$5,'Basic data'!$A$7:$D$14,4)) -> 0 | H33: =E33*1000/IF('Basic data'!T5=6,'Basic data'!$L$21,'Basic data'!$J$21) -> 716.8908591 | I33: iii | J33: =IF(MAX($E$31:$E$35)<'Basic data'!C30,1,IF(MAX($E$31:$E$35)<'Basic data'!C31,2,IF(MAX($E$31:$E$35)<'Basic data'!C32,3,9))) -> 2 | K33: =IF(MAX($E$31:$E$35)<'Basic data'!C30,1,IF(MAX($E$31:$E$35)<'Basic data'!C31,2,IF(MAX($E$31:$E$35)<'Basic data'!C32,3,9))) -> 2 | L33: =IF(MAX($E$31:$E$35)<'Basic data'!C30,1,IF(MAX($E$31:$E$35)<'Basic data'!C31,2,IF(MAX($E$31:$E$35)<'Basic data'!C32,3,9))) -> 2 | M33: =IF(J30=2,IF(MAX(E$31:E$35)<'Basic data'!$C$33,4,9),IF(MAX(E$31:E$35)<'Basic data'!$C$34,5,IF(MAX(E$31:E$35)<'Basic data'!$C$35,6,IF(MAX(E$31:E$35)<'Basic data'!$C$36,7,9)))) -> 5 | N33: =IF(J30=2,IF(MAX($E$31:$E$35)<'Basic data'!C33,4,9),IF(MAX($E$31:$E$35)<'Basic data'!C34,5,IF(MAX($E$31:$E$35)<'Basic data'!C35,6,IF(MAX($E$31:$E$35)<'Basic data'!C36,7,9)))) -> 5 | O33: =IF(J30=2,IF(MAX($E$31:$E$35)<'Basic data'!C33,4,9),IF(MAX($E$31:$E$35)<'Basic data'!C37,8,9)) -> 8 | P33: =IF(J30=2,IF(MAX($E$31:$E$35)<'Basic data'!C33,4,9),IF(MAX($E$31:$E$35)<'Basic data'!C34,5,IF(MAX($E$31:$E$35)<'Basic data'!C35,6,IF(MAX($E$31:$E$35)<'Basic data'!C36,7,9)))) -> 5 | Q33: =IF(MAX($E$31:$E$35)<'Basic data'!C30,1,IF(MAX($E$31:$E$35)<'Basic data'!C31,2,IF(MAX($E$31:$E$35)<'Basic data'!C32,3,9))) -> 2 | R33: =IF(MAX($E$31:$E$35)<'Basic data'!C34,5,IF(MAX($E$31:$E$35)<'Basic data'!C35,6,IF(MAX($E$31:$E$35)<'Basic data'!C36,7,9))) -> 5 | X33: =IF(AND(OR(MID($D$20,4,1)="U",MID($D$20,4,3)="PFC"),$F34<'Basic data'!$O38),9,IF($F34<'Basic data'!$O34,5,IF($F34<'Basic data'!$O35,6,IF($F34<'Basic data'!$O36,7,IF($F34<'Basic data'!$O37,8,16))))) -> 5 | AC33: =CEILING(AC31/0.07,0.1) -> 2.3 | AD33: m | AF33: (for foundation wall) | AG33: =INDEX(Calc!$P$1:$P$111,11+VLOOKUP('Basic data'!$B$5,'Basic data'!$A$7:$D$14,4)) -> 0
A34: .9G+W | B34: =INDEX(Calc!$O$1:$O$125,12+VLOOKUP('Basic data'!$B$5,'Basic data'!$A$7:$D$15,4)) -> -2.505278547 | F34: =ABS(IF('Basic data'!$T$5=9,Calc!S124,B34*'Input beam data'!$E$15/2)) -> 3.75791782 | I34: iv | S34: =IF(AND(OR(MID($D$20,4,1)="U",MID($D$20,4,3)="PFC"),$F34<'Basic data'!$O33),4,IF($F34<'Basic data'!$O30,1,IF($F34<'Basic data'!$O31,2,IF($F34<'Basic data'!$O32,3,16)))) -> 2 | T34: =IF(AND(OR(MID($D$20,4,1)="U",MID($D$20,4,3)="PFC"),$F34<'Basic data'!$O33),4,IF($F34<'Basic data'!$O30,1,IF($F34<'Basic data'!$O31,2,IF($F34<'Basic data'!$O32,3,16)))) -> 2 | U34: =IF(AND(OR(MID($D$20,4,1)="U",MID($D$20,4,3)="PFC"),$F34<'Basic data'!$O33),4,IF($F34<'Basic data'!$O30,1,IF($F34<'Basic data'!$O31,2,IF($F34<'Basic data'!$O32,3,16)))) -> 2 | V34: =IF(J30=2,IF(AND(OR(MID($D$20,4,1)="U",MID($D$20,4,3)="PFC"),$F34<'Basic data'!$O38),9,IF($F34<'Basic data'!$O34,5,IF($F34<'Basic data'!$O35,6,IF($F34<'Basic data'!$O36,7,IF($F34<'Basic data'!$O37,8,16))))),IF(AND(OR(MID($D$20,4,1)="U",MID($D$20,4,3)="PFC"),$F34<'Basic data'!$O44),15,IF($F34<'Basic data'!$O39,10,IF($F34<'Basic data'!$O40,11,IF($F34<'Basic data'!$O41,12,IF($F34<'Basic data'!O42,13,IF($F34<'Basic data'!O43,14,16))))))) -> 12 | W34: =IF(OR(MID($D$20,4,1)="U",MID($D$20,4,3)="PFC"),17,18) -> 18 | X34: =IF(J30=4,19,7) -> 7 | Y34: =IF(J30=2,IF(AND(OR(MID($D$20,4,1)="U",MID($D$20,4,3)="PFC"),$F34<'Basic data'!$O38),9,IF($F34<'Basic data'!$O34,5,IF($F34<'Basic data'!$O35,6,IF($F34<'Basic data'!$O36,7,IF($F34<'Basic data'!$O37,8,16))))),IF(AND(OR(MID($D$20,4,1)="U",MID($D$20,4,3)="PFC"),$F34<'Basic data'!$O44),15,IF($F34<'Basic data'!$O39,10,IF($F34<'Basic data'!$O40,11,IF($F34<'Basic data'!$O41,12,IF($F34<'Basic data'!O42,13,IF($F34<'Basic data'!O43,14,16))))))) -> 12 | Z34: =IF(AND(OR(MID($D$20,4,1)="U",MID($D$20,4,3)="PFC"),$F34<'Basic data'!$O33),4,IF($F34<'Basic data'!$O30,1,IF($F34<'Basic data'!$O31,2,IF($F34<'Basic data'!$O32,3,16)))) -> 2 | AA34: =IF(AND(OR(MID($D$20,4,1)="U",MID($D$20,4,3)="PFC"),$F34<'Basic data'!$O33),4,IF($F34<'Basic data'!$O49,20,IF($F34<'Basic data'!$O50,21,16))) -> 20 | AC34: =CEILING(AC31/0.15,0.1) -> 1.1 | AD34: m | AF34: (for slab edge) | AG34: =INDEX(Calc!$P$1:$P$111,12+VLOOKUP('Basic data'!$B$5,'Basic data'!$A$7:$D$14,4)) -> 0
A35: 1.2G+yQ+S | B35: =INDEX(Calc!$O$1:$O$125,13+VLOOKUP('Basic data'!$B$5,'Basic data'!$A$7:$D$15,4)) -> 2.74555243 | E35: =IF('Basic data'!$T$5=9,Calc!S125,B35*'Input beam data'!$E$15/2) -> 4.118328646 | G35: =INDEX(Calc!$AI$1:$AI$111,13+VLOOKUP('Basic data'!$B$5,'Basic data'!$A$7:$D$14,4)) -> 0 | H35: =E35*1000/IF('Basic data'!T5=6,'Basic data'!$L$21,'Basic data'!$J$21) -> 462.7335557 | I35: v | O35: =IF('Input beam data'!E22=">3m",9,"") ->  | AC35: =IF(AC31>0.4,CEILING(1000*((AC31-0.4)/0.2)^0.5,50),0) -> 0 | AD35: =MAX(AC35,AC28,400)&" x "&MAX(AC35,AC28,400)&", x 300 o.a. thickness (mm)" -> 400 x 400, x 300 o.a. thickness (mm) | AF35: (for slab thickening) | AG35: =INDEX(Calc!$P$1:$P$111,13+VLOOKUP('Basic data'!$B$5,'Basic data'!$A$7:$D$14,4)) -> 0
J36: =IF(OR(MID($D$20,4,1)="U",MID($D$20,4,1)="P"),MAX(2,MAX(J31:J34)),MAX(J31:J34)) -> 2 | K36: =IF(OR(MID($D$20,4,1)="U",MID($D$20,4,1)="P"),MAX(2,MAX(K31:K34)),MAX(K31:K34)) -> 2 | L36: =IF(OR(MID($D$20,4,1)="U",MID($D$20,4,1)="P"),MAX(2,MAX(L31:L34)),MAX(L31:L34)) -> 2 | M36: =MAX(M31:M34) -> 5 | N36: 5 | O36: =MAX(O31:O35) -> 8 | P36: 5 | Q36: =IF(OR(MID($D$20,4,1)="U",MID($D$20,4,1)="P"),MAX(2,MAX(Q31:Q34)),MAX(Q31:Q34)) -> 2 | R36: 5 | AB36: Pile: | AC36: =IF('Basic data'!T5=6,MAX(Results!AC28,200),ROUND(AC31,2)) -> 0.16 | AD36: =IF('Basic data'!T5=6,AC36&" x "&AC36&" x 200 thick (mm)",AC36&" m3 of concrete") -> 0.16 m3 of concrete
I37: Support required: | S37: Fixing required: | AB37: Fixing to found (end 1):
A38: Max M | B38: =MAX(ABS(INDEX(Calc!$Q$1:$Q$125,9+VLOOKUP('Basic data'!$B$5,'Basic data'!$A$7:$D$15,4))),ABS(INDEX(Calc!$Q$1:$Q$125,10+VLOOKUP('Basic data'!$B$5,'Basic data'!$A$7:$D$15,4))),ABS(INDEX(Calc!$Q$1:$Q$125,11+VLOOKUP('Basic data'!$B$5,'Basic data'!$A$7:$D$15,4))),ABS(INDEX(Calc!$Q$1:$Q$125,12+VLOOKUP('Basic data'!$B$5,'Basic data'!$A$7:$D$15,4))),ABS(INDEX(Calc!$Q$1:$Q$125,13+VLOOKUP('Basic data'!$B$5,'Basic data'!$A$7:$D$15,4)))) -> 4.785246484 | C38: kNm | I38: =VLOOKUP(HLOOKUP('Basic data'!T5,Results!I26:R36,11),'Basic data'!D30:E39,2) -> Single prop stud (90x45) | S38: =VLOOKUP(HLOOKUP('Basic data'!T5,Results!S26:AA36,9),'Basic data'!P30:Q50,2) -> 25x0.9 mm nail strap with 6/30x3.15 nails (see Figure 8.12 NZS 3604) | AB38: =VLOOKUP(INDEX(AC8:AH16,'Basic data'!T5,AB4),'Basic data'!P63:Q79,2) -> 25x0.9 mm nail strap folded under plate, with 6/30x3.15 nails each side of stud (see Figure 8.12 NZS 3604), 15kN bolt, plate to slab
A39: Max V | B39: =MAX(ABS(INDEX(Calc!$R$1:$R$125,9+VLOOKUP('Basic data'!$B$5,'Basic data'!$A$7:$D$15,4))),ABS(INDEX(Calc!$R$1:$R$125,10+VLOOKUP('Basic data'!$B$5,'Basic data'!$A$7:$D$15,4))),ABS(INDEX(Calc!$R$1:$R$125,11+VLOOKUP('Basic data'!$B$5,'Basic data'!$A$7:$D$15,4))),ABS(INDEX(Calc!$R$1:$R$125,12+VLOOKUP('Basic data'!$B$5,'Basic data'!$A$7:$D$15,4))),ABS(INDEX(Calc!$R$1:$R$125,13+VLOOKUP('Basic data'!$B$5,'Basic data'!$A$7:$D$15,4)))) -> 6.380328646 | C39: kN
I40: End 2 | J40: 1 | S40: End 2
I41: i | J41: =IF(OR(MID($D$20,4,1)="U",MID($D$20,4,1)="P"),"",IF(MAX($H$31:$H$35)<15*VLOOKUP($D$20,Combined!$B$5:$G$109,6,FALSE),1,IF(MAX($H$31:$H$35)<45*VLOOKUP($D$20,Combined!$B$5:$G$109,6,FALSE),2,IF(MAX($H$31:$H$35)<90*VLOOKUP($D$20,Combined!$B$5:$G$109,6,FALSE),3,9)))) -> 2 | K41: =IF(OR(MID($D$20,4,1)="U",MID($D$20,4,1)="P"),"", IF(MAX($H31:$H35)<15*VLOOKUP($D$20,Combined!$B$5:$G$109,6,FALSE),1, IF(MAX($H31:$H35)<45*VLOOKUP($D$20,Combined!$B$5:$G$109,6,FALSE),2, IF(MAX($H31:$H35)<90*VLOOKUP($D$20,Combined!$B$5:$G$109,6,FALSE),3,9)))) -> 2 | L41: =IF(OR(MID($D$20,4,1)="U",MID($D$20,4,1)="P"),"",IF(MAX($H$31:$H$35)<15*VLOOKUP($D$20,Combined!$B$5:$G$109,6,FALSE),1,IF(MAX($H$31:$H$35)<45*VLOOKUP($D$20,Combined!$B$5:$G$109,6,FALSE),2,IF(MAX($H$31:$H$35)<90*VLOOKUP($D$20,Combined!$B$5:$G$109,6,FALSE),3,9)))) -> 2 | M41: =IF(OR(MID($D$20,4,1)="U",MID($D$20,4,1)="P"),"", IF(J40=2, IF(MAX($H$31:$H$35)<15*90,4,10), IF(MAX(H$31:H$35)>VLOOKUP($D$20,Combined!$B$5:$G$109,6,FALSE)*90,9,5))) -> 5 | N41: =IF(OR(MID($D$20,4,1)="U",MID($D$20,4,1)="P"),"",IF(MAX(H$31:H$35)>VLOOKUP($D$20,Combined!$B$5:$G$109,6,FALSE)*90,9,5)) -> 5 | O41: =IF(OR(MID($D$20,4,1)="U",MID($D$20,4,1)="P"),"",IF(J40=2,IF(MAX($H$31:$H$35)<90*90,4,9),IF(MAX($H$31:$H$35)<125*125,8,9))) -> 8 | P41: =IF(OR(MID($D$20,4,1)="U",MID($D$20,4,1)="P"),"",IF(MAX(H$31:H$35)>VLOOKUP($D$20,Combined!$B$5:$G$109,6,FALSE)*90,9,5)) -> 5 | Q41: =IF(OR(MID($D$20,4,1)="U",MID($D$20,4,1)="P"),"",IF(MAX($H$31:$H$35)<15*VLOOKUP($D$20,Combined!$B$5:$G$109,6,FALSE),1,IF(MAX($H$31:$H$35)<45*VLOOKUP($D$20,Combined!$B$5:$G$109,6,FALSE),2,IF(MAX($H$31:$H$35)<90*VLOOKUP($D$20,Combined!$B$5:$G$109,6,FALSE),3,9)))) -> 2 | R41: =IF(OR(MID($D$20,4,1)="U",MID($D$20,4,1)="P"),"",IF(MAX($H31:$H35)<15*VLOOKUP($D$20,Combined!$B$5:$G$109,6,FALSE),1,IF(MAX($H31:$H35)<45*VLOOKUP($D$20,Combined!$B$5:$G$109,6,FALSE),2,IF(MAX($H31:$H35)<90*VLOOKUP($D$20,Combined!$B$5:$G$109,6,FALSE),3,9)))) -> 2
I42: ii | J42: =IF(VLOOKUP($D$20,Combined!$B$5:$G$109,6,FALSE)>90,"Note: Your chosen lintel is wider than a 90mm wall","") ->  | K42: =IF(VLOOKUP($D$20,Combined!$B$5:$G$109,6,FALSE)>90,"Note: Your chosen lintel is wider than a 90mm wall","") ->  | L42: =IF(VLOOKUP($D$20,Combined!$B$5:$G$109,6,FALSE)>90,"Note: Your chosen lintel is wider than a 90mm wall","") ->  | M42: =IF(J40=2,"",IF(VLOOKUP($D$20,Combined!$B$5:$G$109,6,FALSE)<=45,5,IF(VLOOKUP($D$20,Combined!$B$5:$G$109,6,FALSE)<=90,6,IF(VLOOKUP($D$20,Combined!$B$5:$G$109,6,FALSE)<=135,7,9)))) -> 5 | N42: =IF(J40=2,"",IF(VLOOKUP($D$20,Combined!$B$5:$G$109,6,FALSE)<=45,5,IF(VLOOKUP($D$20,Combined!$B$5:$G$109,6,FALSE)<=90,6,IF(VLOOKUP($D$20,Combined!$B$5:$G$109,6,FALSE)<=135,7,9)))) -> 5 | P42: =IF(J40=2,"",IF(VLOOKUP($D$20,Combined!$B$5:$G$109,6,FALSE)<=45,5,IF(VLOOKUP($D$20,Combined!$B$5:$G$109,6,FALSE)<=90,6,IF(VLOOKUP($D$20,Combined!$B$5:$G$109,6,FALSE)<=135,7,9)))) -> 5 | Q42: =IF(VLOOKUP($D$20,Combined!$B$5:$G$109,6,FALSE)>90,"Note: Your chosen lintel is wider than a 90mm wall","") ->  | R42: =IF(VLOOKUP($D$20,Combined!$B$5:$G$109,6,FALSE)>90,"Note: Your chosen lintel is wider than a 90mm wall","") -> 
I43: iii | J43: =IF(MAX($E$31:$E$35)<'Basic data'!C30,1,IF(MAX($E$31:$E$35)<'Basic data'!C31,2,IF(MAX($E$31:$E$35)<'Basic data'!C32,3,9))) -> 2 | K43: =IF(MAX($E$31:$E$35)<'Basic data'!C30,1,IF(MAX($E$31:$E$35)<'Basic data'!C31,2,IF(MAX($E$31:$E$35)<'Basic data'!C32,3,9))) -> 2 | L43: =IF(MAX($E$31:$E$35)<'Basic data'!C30,1,IF(MAX($E$31:$E$35)<'Basic data'!C31,2,IF(MAX($E$31:$E$35)<'Basic data'!C32,3,9))) -> 2 | M43: =IF(J40=2,IF(MAX(E$31:E$35)<'Basic data'!$C$33,4,9),IF(MAX(E$31:E$35)<'Basic data'!$C$34,5,IF(MAX(E$31:E$35)<'Basic data'!$C$35,6,IF(MAX(E$31:E$35)<'Basic data'!$C$36,7,9)))) -> 5 | N43: =IF(J40=2,IF(MAX($E$31:$E$35)<'Basic data'!C33,4,9),IF(MAX($E$31:$E$35)<'Basic data'!C34,5,IF(MAX($E$31:$E$35)<'Basic data'!C35,6,IF(MAX($E$31:$E$35)<'Basic data'!C36,7,9)))) -> 5 | O43: =IF(J40=2,IF(MAX($E$31:$E$35)<'Basic data'!C33,4,9),IF(MAX($E$31:$E$35)<'Basic data'!C37,8,9)) -> 8 | P43: =IF(J40=2,IF(MAX($E$31:$E$35)<'Basic data'!C33,4,9),IF(MAX($E$31:$E$35)<'Basic data'!C34,5,IF(MAX($E$31:$E$35)<'Basic data'!C35,6,IF(MAX($E$31:$E$35)<'Basic data'!C36,7,9)))) -> 5 | Q43: =IF(MAX($E$31:$E$35)<'Basic data'!C30,1,IF(MAX($E$31:$E$35)<'Basic data'!C31,2,IF(MAX($E$31:$E$35)<'Basic data'!C32,3,9))) -> 2 | R43: =IF(MAX($E$31:$E$35)<'Basic data'!C34,5,IF(MAX($E$31:$E$35)<'Basic data'!C35,6,IF(MAX($E$31:$E$35)<'Basic data'!C36,7,9))) -> 5 | X43: =IF(AND(OR(MID($D$20,4,1)="U",MID($D$20,4,3)="PFC"),$F44<'Basic data'!$O48),9,IF($F44<'Basic data'!$O44,5,IF($F44<'Basic data'!$O45,6,IF($F44<'Basic data'!$O46,7,IF($F44<'Basic data'!$O47,8,16))))) -> 5
I44: iv | S44: =IF(AND(OR(MID($D$20,4,1)="U",MID($D$20,4,3)="PFC"),$F34<'Basic data'!$O33),4,IF($F34<'Basic data'!$O30,1,IF($F34<'Basic data'!$O31,2,IF($F34<'Basic data'!$O32,3,16)))) -> 2 | T44: =IF(AND(OR(MID($D$20,4,1)="U",MID($D$20,4,3)="PFC"),$F34<'Basic data'!$O33),4,IF($F34<'Basic data'!$O30,1,IF($F34<'Basic data'!$O31,2,IF($F34<'Basic data'!$O32,3,16)))) -> 2 | U44: =IF(AND(OR(MID($D$20,4,1)="U",MID($D$20,4,3)="PFC"),$F34<'Basic data'!$O33),4,IF($F34<'Basic data'!$O30,1,IF($F34<'Basic data'!$O31,2,IF($F34<'Basic data'!$O32,3,16)))) -> 2 | V44: =IF(J40=2,IF(AND(OR(MID($D$20,4,1)="U",MID($D$20,4,3)="PFC"),$F34<'Basic data'!$O38),9,IF($F34<'Basic data'!$O34,5,IF($F34<'Basic data'!$O35,6,IF($F34<'Basic data'!$O36,7,IF($F34<'Basic data'!$O37,8,16))))),IF(AND(OR(MID($D$20,4,1)="U",MID($D$20,4,3)="PFC"),$F34<'Basic data'!$O44),15,IF($F34<'Basic data'!$O39,10,IF($F34<'Basic data'!$O40,11,IF($F34<'Basic data'!$O41,12,IF($F34<'Basic data'!O42,13,IF($F34<'Basic data'!O43,14,16))))))) -> 12 | W44: =IF(OR(MID($D$20,4,1)="U",MID($D$20,4,3)="PFC"),17,18) -> 18 | X44: =IF(J40=4,19,7) -> 7 | Y44: =IF(J40=2,IF(AND(OR(MID($D$20,4,1)="U",MID($D$20,4,3)="PFC"),$F34<'Basic data'!$O38),9,IF($F34<'Basic data'!$O34,5,IF($F34<'Basic data'!$O35,6,IF($F34<'Basic data'!$O36,7,IF($F34<'Basic data'!$O37,8,16))))),IF(AND(OR(MID($D$20,4,1)="U",MID($D$20,4,3)="PFC"),$F34<'Basic data'!$O44),15,IF($F34<'Basic data'!$O39,10,IF($F34<'Basic data'!$O40,11,IF($F34<'Basic data'!$O41,12,IF($F34<'Basic data'!O42,13,IF($F34<'Basic data'!O43,14,16))))))) -> 12 | Z44: =IF(AND(OR(MID($D$20,4,1)="U",MID($D$20,4,3)="PFC"),$F34<'Basic data'!$O33),4,IF($F34<'Basic data'!$O30,1,IF($F34<'Basic data'!$O31,2,IF($F34<'Basic data'!$O32,3,16)))) -> 2 | AA44: =IF(AND(OR(MID($D$20,4,1)="U",MID($D$20,4,3)="PFC"),$F34<'Basic data'!$O43),4,IF($F34<'Basic data'!$O49,20,IF($F34<'Basic data'!$O50,21,16))) -> 20
I45: v | O45: =IF('Input beam data'!E22=">3m",9,"") -> 
J46: =IF(OR(MID($D$20,4,1)="U",MID($D$20,4,1)="P"),MAX(2,MAX(J41:J44)),MAX(J41:J44)) -> 2 | K46: =IF(OR(MID($D$20,4,1)="U",MID($D$20,4,1)="P"),MAX(2,MAX(K41:K44)),MAX(K41:K44)) -> 2 | L46: =IF(OR(MID($D$20,4,1)="U",MID($D$20,4,1)="P"),MAX(2,MAX(L41:L44)),MAX(L41:L44)) -> 2 | M46: =MAX(M41:M44) -> 5 | N46: 5 | O46: =MAX(O41:O45) -> 8 | P46: =MAX(P41:P44) -> 5 | Q46: =IF(OR(MID($D$20,4,1)="U",MID($D$20,4,1)="P"),MAX(2,MAX(Q41:Q44)),MAX(Q41:Q44)) -> 2 | R46: =MAX(R41:R44) -> 5
I47: Support required: | S47: Fixing required:
I48: =VLOOKUP(HLOOKUP('Basic data'!T5,Results!I26:R46,21),'Basic data'!D30:E39,2) -> Single prop stud (90x45) | S48: =VLOOKUP(HLOOKUP('Basic data'!T5,Results!S26:AA44,19),'Basic data'!P30:Q50,2) -> 25x0.9 mm nail strap with 6/30x3.15 nails (see Figure 8.12 NZS 3604)
AB51: Fixing to found (end 2):
AB52: =VLOOKUP(INDEX(AC8:AH16,'Basic data'!T5,AB5),'Basic data'!P63:Q79,2) -> 25x0.9 mm nail strap folded under plate, with 6/30x3.15 nails each side of stud (see Figure 8.12 NZS 3604), 15kN bolt, plate to slab

Sheet Face loads (hidden)
A1: Bending about 2 axes | E1: LD | F1: 400 | G1: mm
E2: Deflection limit | F2: 100
A3: ULS: | B3: Mx* | C3: =MAX(Calc!Q11:Q12) -> 4.785246484 | D3: kNm | F3: SLS: | G3: w | H3: =IF('Basic data'!T5=1,0.71*VLOOKUP('Basic data'!I$5,'Basic data'!$G$7:$Y$14,3)*'Basic data'!$H$20*(F1/2000),0.1) -> 0.16472 | I3: kN/m
B4: My* | C4: =IF('Basic data'!T5=1,VLOOKUP('Basic data'!I$5,'Basic data'!$G$7:$Y$14,3)*'Basic data'!$H$20*(F1/2000)*Span^2/8,0) -> 0.261 | D4: kNm
F5: "0" = Means size is OK, "1" = size must be incremented (done in "Results sheet" by macro "Selection" in module 2)
A6: Calculated size | C6: fMx | D6: fMy | E6: Eqn result | F6: What to do? | G6: EIface | H6: dface | I6: What to do?
A7: =Results!A6 -> Timber (VSG/MSG8) | B7: =Results!B6 -> 290x45 | C7: =INDEX(VSGMSG8!$I$5:$M$29,MATCH(B7,VSGMSG8!$I$5:$I$29,0),4) -> 4.964755662 | D7: =INDEX(VSGMSG8!$I$5:$M$29,MATCH(B7,VSGMSG8!$I$5:$I$29,0),3) -> 1.0962 | E7: =IF(B7="X","NA",$C$3/C7+$C$4/D7) -> 1.201938539 | F7: =IF(E7="NA","0",IF(E7>=1,1,0)) -> 1 | G7: =INDEX(VSGMSG8!$I$5:$M$29,MATCH(B7,VSGMSG8!$I$5:$I$29,0),5) -> 11.8918125 | H7: =IF(G7=0,"NA",0.013*$H$3*Span^4/G7*1000) -> 14.58567901 | I7: =IF(H7="NA",0,IF(Span*1000/H7<$F$2,1,0)) -> 0
B8: =Results!B7 -> 290x70 | C8: =INDEX(VSGMSG8!$I$5:$M$29,MATCH(B8,VSGMSG8!$I$5:$I$29,0),4) -> 10.98906667 | D8: =INDEX(VSGMSG8!$I$5:$M$29,MATCH(B8,VSGMSG8!$I$5:$I$29,0),3) -> 2.652533333 | E8: =IF(B8="X","NA",$C$3/C8+$C$4/D8) -> 0.5338517252 | F8: =IF(E8="NA","0",IF(E8>=1,1,0)) -> 0 | G8: =INDEX(VSGMSG8!$I$5:$M$29,MATCH(B8,VSGMSG8!$I$5:$I$29,0),5) -> 55.53741667 | H8: 3.12312258 | I8: 0
B9: =Results!B8 -> 2/240x45 | C9: =INDEX(VSGMSG8!$I$5:$M$29,MATCH(B9,VSGMSG8!$I$5:$I$29,0),4) -> 11.031552 | D9: =INDEX(VSGMSG8!$I$5:$M$29,MATCH(B9,VSGMSG8!$I$5:$I$29,0),3) -> 2.068416 | E9: 0.5599616885 | F9: 0 | G9: =INDEX(VSGMSG8!$I$5:$M$29,MATCH(B9,VSGMSG8!$I$5:$I$29,0),5) -> 24.4215 | H9: 7.102354892 | I9: 0
B10: =Results!B9 -> 240x90 | C10: =INDEX(VSGMSG8!$I$5:$M$29,MATCH(B10,VSGMSG8!$I$5:$I$29,0),4) -> 9.6768 | D10: =INDEX(VSGMSG8!$I$5:$M$29,MATCH(B10,VSGMSG8!$I$5:$I$29,0),3) -> 3.6288 | E10: 0.5664317217 | F10: 0 | G10: =INDEX(VSGMSG8!$I$5:$M$29,MATCH(B10,VSGMSG8!$I$5:$I$29,0),5) -> 97.686 | H10: 1.775588723 | I10: 0
A11: =Results!A10 -> LVL | B11: =Results!B10 -> 240 x45 | C11: =INDEX(LVL!$F$5:$J$32,MATCH(B11,LVL!$F$5:$F$32,0),4) -> 10.87904628 | D11: =INDEX(LVL!$F$5:$J$32,MATCH(B11,LVL!$F$5:$F$32,0),3) -> 2.7702 | E11: 0.53407603 | F11: 0 | G11: =INDEX(LVL!$F$5:$J$32,MATCH(B11,LVL!$F$5:$F$32,0),5) -> 20.0475 | H11: 8.651959596 | I11: 0
B12: =Results!B11 -> 200x63 | C12: =INDEX(LVL!$F$5:$J$32,MATCH(B12,LVL!$F$5:$F$32,0),4) -> 12.68478847 | D12: =INDEX(LVL!$F$5:$J$32,MATCH(B12,LVL!$F$5:$F$32,0),3) -> 4.52466 | E12: 0.4349267999 | F12: 0 | G12: =INDEX(LVL!$F$5:$J$32,MATCH(B12,LVL!$F$5:$F$32,0),5) -> 45.84195 | H12: 3.7836558 | I12: 0
B13: =Results!B12 -> 200x90 | C13: =INDEX(LVL!$F$5:$J$32,MATCH(B13,LVL!$F$5:$F$32,0),4) -> 16.37131228 | D13: =INDEX(LVL!$F$5:$J$32,MATCH(B13,LVL!$F$5:$F$32,0),3) -> 8.262 | E13: 0.3238850328 | F13: 0 | G13: =INDEX(LVL!$F$5:$J$32,MATCH(B13,LVL!$F$5:$F$32,0),5) -> 115.425 | H13: 1.502708772 | I13: 0
A14: =Results!A13 -> Glulam (GL8) | B14: =Results!B13 -> 225x65 | C14: =INDEX(Glulam!$E$5:$H$11,MATCH(B14,Glulam!$E$5:$E$11,0),3) -> 6.669 | D14: =INDEX(Glulam!$E$5:$H$11,MATCH(B14,Glulam!$E$5:$E$11,0),2) -> 2.427516 | E14: 0.8250531491 | F14: 0 | G14: =INDEX(Glulam!$E$5:$H$11,MATCH(B14,Glulam!$E$5:$E$11,0),4) -> 41.19375 | H14: 4.210594083 | I14: 0
B15: =Results!B14 -> 225x90 | C15: =INDEX(Glulam!$E$12:$H$20,MATCH(B15,Glulam!$E$12:$E$20,0),3) -> 9.234 | D15: =INDEX(Glulam!$E$12:$H$20,MATCH(B15,Glulam!$E$12:$E$20,0),2) -> 4.653936 | E15: 0.5743018873 | F15: 0 | G15: =INDEX(Glulam!$E$12:$H$20,MATCH(B15,Glulam!$E$12:$E$20,0),4) -> 109.35 | H15: 1.586192593 | I15: 0
A16: =Results!A15 -> Steel | B16: =Results!B15 -> 150UB14 | C16: =INDEX(Steel!$H$4:$AH$24,MATCH(B16,Steel!$H$4:$H$24,0),25) -> 18.25220971 | D16: =INDEX(Steel!$H$4:$AH$24,MATCH(B16,Steel!$H$4:$H$24,0),24) -> 5.9904 | E16: 0.2351074368 | F16: 0 | G16: =INDEX(Steel!$H$4:$AH$24,MATCH(B16,Steel!$H$4:$H$24,0),27) -> 103.95 | H16: 1.668592208 | I16: 0
B17: =Results!B16 -> 100PFC | C17: =INDEX(Steel!$H$26:$AH$35,MATCH(B17,Steel!$H$26:$H$35,0),25) -> 8.066426719 | D17: =INDEX(Steel!$H$26:$AH$35,MATCH(B17,Steel!$H$26:$H$35,0),24) -> 2.30688 | E17: 0.7063698453 | F17: 0 | G17: =INDEX(Steel!$H$26:$AH$35,MATCH(B17,Steel!$H$26:$H$35,0),27) -> 56.07 | H17: 3.093457464 | I17: 0
A18: =Results!A17 -> Flitch | B18: =Results!B17 -> FB15L | C18: =INDEX(Flitch!$G$5:$L$54,MATCH(B18,Flitch!$G$5:$G$54,0),5) -> 6.372230769 | D18: =INDEX(Flitch!$G$5:$L$54,MATCH(B18,Flitch!$G$5:$G$54,0),4) -> 1.061666667 | E18: 0.9967929798 | F18: 0 | G18: =INDEX(Flitch!$G$5:$L$54,MATCH(B18,Flitch!$G$5:$G$54,0),6) -> 12.99806667 | H18: 13.34430454 | I18: 0
B19: =Results!B18 -> 150PF6 | C19: =INDEX(Flitch!$G$5:$L$54,MATCH(B19,Flitch!$G$5:$G$54,0),5) -> 6.662972222 | D19: =INDEX(Flitch!$G$5:$L$54,MATCH(B19,Flitch!$G$5:$G$54,0),4) -> 1.061666667 | E19: 0.9640248412 | F19: 0 | G19: =INDEX(Flitch!$G$5:$L$54,MATCH(B19,Flitch!$G$5:$G$54,0),6) -> 13.01696667 | H19: 13.32492926 | I19: 0
F21: =SUM(F7:F17,I7:I17) -> 1

Sheet Schedule (hidden)
A1: Schedule of beams | N1: Produced by BRANZ Lintels and Beams | P1: To design a new beam, press button
L2: Date: | N2: =LastModified() -> 2020-07-16T13:16:57
B3: Project ref: | C3: ='Input beam data'!D7 -> Project reference | G3: Wind zone: | H3: =Print!C17 -> High | J3: Snow load: | K3: =Print!C18 -> 0
B4: Title: | C4: ='Input beam data'!D4 -> BRANZ
A5: 1 | B5: 2 | C5: 3 | D5: 4 | E5: 5 | F5: 6 | G5: 7 | H5: 8 | I5: 9 | J5: 10 | K5: 11 | L5: 12 | M5: 13 | N5: 14 | P5: To alter beam details, select beam Id and press button
A6: Id | B6: Beam ref | C6: Opening | D6: Application | E6: Span (m) | F6: Loaded dim. (m) | G6: Roof weight | H6: Roof slope (deg) | I6: Roof o/h (m) | J6: Wall weight | K6: Wall height (m) | L6: Floor live load (kPa) | M6: LD floor (m) | N6: Selected beam
A7: 1 | B7: Check3 B1 | D7: Lintel, roof wall and floor | E7: 3 | F7: 5 | G7: Heavy | H7: 15 | I7: 0.6 | J7: Light | K7: 2.4 | L7: 1.5 | M7: 3 | N7: 180PFC
A8: 2 | B8: Check3 B2 | D8: Lintel, roof wall and floor | E8: 3.5 | F8: 5 | G8: Light | H8: 15 | I8: 0.6 | J8: Light | K8: 2.4 | L8: 1.5 | M8: 3 | N8: 250UB37
A9: 3 | B9: Check3 B3 | D9: Lintel, roof wall and floor | E9: 3 | F9: 5 | G9: Light | H9: 15 | I9: 0.6 | J9: Light | K9: 2.4 | L9: 1.5 | M9: 3 | N9: 610x63 LVL
A10: 4 | B10: Check5 B3 | D10: Floor beam | E10: 5 | F10: 3.5 | I10: 0 | L10: 1.5 | N10: 150UB18 | P10: Print the schedule for your record
A11: 5 | B11: Check5 B4 | D11: Deck beam/bearer | E11: 4 | F11: 4 | I11: 0 | N11: 360x63 LVL
A12: 6 | B12: Check5 B7 | D12: Ridge/roof beam | E12: 4 | F12: 0.8999999762 | G12: Light | H12: 5 | I12: 0 | N12: 360x65 Glulam

Sheet Clean-up (hidden)
A1: Notes for cleanup exercise | L1: Named cells | O1: Action for each sheet
L2: Appplication | M2: =Print!$C$23 | O2: Sheet | P2: Needed? | Q2: Visible? | R2: Changes | S2: Done?
B3: Table of options | C3: See also Range (AB5:AH16) in "Results" | L3: Beam | M3: =Print!$C$46 | O3: Combined | P3: y | Q3: n | R3: None
D4: Isolated pad footing (timber floor) | E4: Foundation wall with timber subfloor | L4: Beamref | M4: =Front!$B$10 | O4: VSGMSG8 | P4: y | Q4: n | R4: None
F5: Concrete slab edging | G5: Local slab thickening | L5: BSpan | M5: =Front!$O$23 | O5: LVL | P5: y | Q5: n | R5: Remove note to Doug | S5: Done
H6: Pad footing | I6: Pile footing | L6: ConcOp1 | M6: =Results!$M$13 | O6: Glulam | P6: y | Q6: n | R6: None
B7: Lintel, roof only | C7: 1 | D7: y | E7: y | F7: y | G7: y | H7: n | I7: n | L7: ConcOp2 | M7: =Results!$N$13 | O7: Steel | P7: y | Q7: n | R7: None
B8: Lintel, roof and wall | C8: 2 | D8: y | E8: y | F8: y | G8: y | H8: n | I8: n | L8: Config1 | M8: =Results!$M$15 | O8: Flitch | P8: y | Q8: n | R8: None
B9: Lintel, roof wall and floor | C9: 3 | D9: y | E9: y | F9: y | G9: y | H9: n | I9: n | L9: Config2 | M9: =Results!$N$15 | O9: Calc | P9: y | Q9: n | R9: All works OK? | S9: Done
B10: Verandah beam | C10: 4 | D10: y | E10: n? | F10: y | G10: y | H10: y | I10: y | L10: Config3 | M10: =Results!$O$15 | O10: Basic data | P10: y | Q10: n | R10: Tidy up wording for outputs | S10: Done
B11: Floor beam | C11: 5 | D11: y | E11: y | F11: y | G11: y | H11: n | I11: n | L11: Config4 | M11: =Results!$P$15 | O11: Front | P11: y | Q11: y | R11: M27. Move input data box away | S11: Done
B12: Deck beam/bearer | C12: 6 | D12: n | E12: n | F12: n | G12: n | H12: y | I12: y | L12: Configuration | M12: =Calc!$P$113 | O12: Results | P12: y | Q12: n
B13: Ridge/roof beam | C13: 7 | D13: y | E13: y | F13: y | G13: y | H13: n | I13: n | L13: DeadLoad | M13: =Front!$V$17 | O13: Changes | P13: n | Q13: n | R13: Delete sheet? | S13: Done
B14: Garage door lintel | C14: 8 | D14: n | E14: n | F14: y | G14: y | H14: n | I14: n | L14: DeckHeight | M14: =Front!$E$22 | O14: Face loads | P14: y | Q14: n
B15: Cantilever lintel | C15: 9 | D15: y | E15: y | F15: y | G15: y | H15: n | I15: n | L15: Distance | M15: =Front!$V$16 | O15: Print | P15: y | Q15: y?
L16: FloorLD | M16: =Front!$K$21 | O16: Welcome | P16: n? | Q16: n? | R16: Cover on front sheet? & delete
L17: Floorload | M17: ='Basic data'!$Q$5 | O17: Schedule | P17: y? | Q17: y?
L18: FloorOp1 | M18: =Results!$M$11 | O18: Functionality | P18: n? | Q18: n | R18: Delete sheet?
L19: FloorOp2 | M19: =Results!$N$11 | O19: BM issue | P19: n | Q19: n | R19: Delete sheet?
L20: FloorOp3 | M20: =Results!$O$11 | O20: Clean-up | P20: n | Q20: n | R20: Delete sheet?
L21: LD | M21: =Front!$K$15
L22: LDcant | M22: =Front!$O$21 | O22: Action for macros | S22: Sheet | T22: Needed? | U22: Changes | V22: Done?
L23: LiveLoad | M23: =Front!$V$18 | O23: Module 1 | P23: Print beam | S23: Front | V23: Done
L24: Overhang | M24: =Front!$O$17 | P24: Addbeamtoschedule | S24: Front | U24: Needs work
L25: RoofOp1 | M25: =Results!$M$7 | P25: Go (prints selected sheet) | S25: Print | V25: Done
L26: RoofOp2 | M26: =Results!$N$7 | P26: Input data (opens correct userform) | S26: Front (x2) | T26: y
L27: Roofslope | M27: ='Basic data'!$V$5 | O27: Module 2 | P27: Selection (populates dropdown box on Front) | S27: Front | T27: y
L28: Roofweight | M28: ='Basic data'!$M$5 | O28: Module 3 | P28: empty
L29: SlopeOp1 | M29: =Results!$M$8 | O29: Module 4 | P29: Schedule (nothing?) | T29: n | U29: delete | V29: Done
L30: SlopeOp2 | M30: =Results!$N$8 | P30: Newbeam (nothing?) | S30: Print | T30: n | U30: delete | V30: Done
L31: SlopeOp3 | M31: =Results!$O$8 | P31: Printschedule | S31: Schedule
L32: SlopeOp4 | M32: =Results!$P$8 | P32: Back | S32: Schedule & Front
L33: SlopeOp5 | M33: =Results!$Q$8 | O33: Module 5 | P33: Newproject (clears ready for new peoject) | S33: Schedule
L34: SlopeOp6 | M34: =Results!$R$8 | P34: AlterBeam | S34: Schedule
L35: SnowLoad | M35: =Front!$V$21 | O35: Module 6 | P35: empty
L36: Span | M36: =Front!$E$15
L37: Span_2 | M37: =Front!$O$19
L38: Span2 | M38: =Front!$O$19
L39: TotalLoad | M39: =Front!$V$23
L40: Userform | M40: ='Basic data'!$A$16
L41: Wallheight | M41: ='Basic data'!$Y$5
L42: WallhOp1 | M42: =Results!$M$10
L43: WallhOp2 | M43: =Results!$N$10
L44: WallhOp3 | M44: =Results!$O$10
L45: Wallweight | M45: ='Basic data'!$O$5
L46: WallwOp1 | M46: =Results!$M$9
L47: WallwOp2 | M47: =Results!$N$9
L48: WindDn | M48: =Front!$V$20
L49: WindUp | M49: =Front!$V$19

Sheet Functionality (hidden)
A1: Operations to be considered in lintels and beams
A2: Operations | C2: What? (red ones not written as yet) | D2: Starting from (sheet) | E2: Macro assigned to button? | F2: Macro name | G2: In module | H2: Finish at (sheet)
A3: 1 | B3: New project | C3: Clears project data from Front and Schedule | D3: Welcome | E3: New project | F3: NewProject | G3: 5 | H3: Front
A4: 2 | B4: Save project | C4: Start save as and wait for file name | D4: Welcome | H4: Welcome
A5: 4 | B5: Beam design(s) | C5: Opens Front to enter new data and choose a beam option | D5: Welcome | E5: Design a new beam | F5: NewBeam | G5: 4 | H5: Front
A6: 5 | B6: Beam design(s) | C6: Opens Front | D6: Print | E6: New beam | F6: NewBeam | G6: 4 | H6: Front
A7: 6 | B7: Beam design(s) | C7: Opens Front | D7: Schedule | E7: New beam | F7: NewBeam | G7: 4 | H7: Front
A8: 7 | B8: Input data | C8: Displays appropriate user form for inputting beam data | D8: Front | E8: Input beam data | F8: InputData | G8: 1 | H8: Front
A9: 8 | B9: Select beam | C9: Sorts and lists beam options for selection | D9: Front | E9: Yes to calculate | F9: Selection | G9: 2 | H9: Front
A10: 9 | B10: Alter beam design | C10: Insert schedule info. into front sheet for correction/redesign | D10: Schedule | E10: Alter beam | F10: AlterBeam | G10: 5 | H10: Front
A11: 10 | B11: Save beam | C11: Add beam data to schedule | D11: Front | E11: Save beam | F11: AddBeamToSchedule | G11: 1 | H11: Schedule
A12: 11 | B12: Print beam (1) | C12: Prepares to print beam data for Consent | D12: Front | E12: Print | F12: PrintBeam | G12: 1 | H12: Print
A13: 12 | B13: Print beam (2) | C13: Prints beam data and clips ticket | D13: Print | E13: Print this calculation | F13: Go | G13: 1 | H13: Print
A14: 13 | B14: Go to schedule | C14: Opens the schedule of beams for the project | D14: Welcome | E14: Beam schedule | F14: Schedule | G14: 4 | H14: Schedule
A15: 14 | B15: Print schedule | C15: Print | D15: Schedule | E15: Print this schedule | F15: PrintSchedule | G15: 4 | H15: Welcome
A16: 15 | B16: Print eng basis | C16: Prints Engineering basis of "Lintels and Beams" for BCA | D16: Welcome | H16: Welcome
A17: 16 | B17: Back | C17: Back to Welcome | D17: Schedule | E17: Back to Welcome | F17: Back | G17: 4 | H17: Welcome
A18: 17 | B18: Exit | C18: Exit (prompt for save) | D18: Welcome | H18: Excel
